Workbook

Sheet Програм
A1: Обрасци за припрему програмског буџета
A2: 1. ПРОГРАМ
V3: =VLOOKUP($D$4,Упутство!$B$38:$C$54,2,FALSE) -> п15
A4: Назив програма: | D4: Програм 15. Опште услуге локалне самоуправе | V4: =VLOOKUP($D$5,Упутство!$A$76:$B$92,2,FALSE) -> ПГ_15
A5: Шифра програма: | D5: =IF(D4="","",VLOOKUP(D4,Упутство!A2:B20,2,FALSE)) -> 0602 | V5: =VLOOKUP($B$15,Упутство!$A$93:$B$131,2,FALSE) -> 
A6: Сектор: | D6: =IF(D4="","",VLOOKUP(D4,Упутство!$A$354:$B$370,2,FALSE)) -> Опште услуге јавне управе | V6: =VLOOKUP($B$21,Упутство!$A$93:$B$131,2,FALSE) -> 
A7: Сврха: | D7: =IF(D5="","",VLOOKUP(D5,Упутство!$B$2:$C$20,2,FALSE)) -> Обезбеђивање услова за остварење права грађана на лакши и бржи начин у граду/општини | V7: =VLOOKUP($B$27,Упутство!$A$93:$B$131,2,FALSE) -> 
A8: Основ: | D8: Закон о локалној самоуправи, Статут Месне заједнице | V8: =VLOOKUP($B$27,Упутство!$A$93:$B$131,2,FALSE) -> 
A9: Опис: | D9: Задоволљење потреба и интереса локалног становништва, кроз очуванје и унапређенје квалитета живота у делу надлежности Месне заједнице | V9: =VLOOKUP($B$39,Упутство!$A$93:$B$131,2,FALSE) -> 
A10: Назив организационе јединице/Буџетски корисник: | D10: Месна заједница Остојићево
A11: Одговорно лице за спровођење програмa: | D11: Јосип Чешљар, председник Савета Месне заједнице Остојићево
B13: Циљ* | D13: Индикатори**
D14: Назив индикатора | G14: Вредност у базној години (2015) | H14: Очекивана вредност у 2016. години | I14: Циљана вредност у 2017. години | J14: Циљана вредност у 2018. години | K14: Циљана вредност у 2019. години | L14: Извор верификације
A15: 1 | B15: 0602-0002 Функционисање месних заједница | D15: Степен остварења финансијских планова месних заједница | G15: 70% | H15: 87% | I15: 87% | J15: 87% | K15: 87%
B19: Циљ | D19: Индикатори
D20: Назив индикатора | G20: Вредност у базној години (2015) | H20: Очекивана вредност у 2016. години | I20: Циљана вредност у 2017. години | J20: Циљана вредност у 2018. години | K20: Циљана вредност у 2019. години | L20: Извор верификације
A21: 2
B25: Циљ | D25: Индикатори
D26: Назив индикатора | G26: Вредност у базној години (2015.) | H26: Очекивана вредност у 2016. години | I26: Циљана вредност 2017. | J26: Циљана вредност 2018. | K26: Циљана вредност 2019. | L26: Извор верификације
A27: 3
Q29: Између 30. и 42. реда се налазе још 2 циља уколико је потребно . Активирају се маркирањем целог 30. и 42. реда > десни клик> опција "Unhide". Графичку илустрацију поступка видети у Упутству.
B31: Циљ | D31: Индикатори
D32: Назив индикатора | G32: Вредност у базној години (2015.) | H32: Очекивана вредност у 2016. години | I32: Циљана вредност у 2017. години | J32: Циљана вредност у 2018. години | K32: Циљана вредност у 2019. години | L32: Извор верификације
A33: 4
B37: Циљ | D37: Индикатори
D38: Назив индикатора | G38: Вредност у базној години (2015.) | H38: Очекивана вредност у 2016. години | I38: Циљана вредност у 2017. години | J38: Циљана вредност у 2018. години | K38: Циљана вредност у 2019. години | L38: Извор верификације
A39: 5
A43: Рбр. | B43: Списак програмских активности и пројеката у оквиру програма по буџетским корисницима | D43: Вредност у базној години (2015) | F43: Очекивана вредност у 2016. години | H43: Вредност у 2017. години | J43: Вредност у 2018. години | L43: Вредност у 2019. години | N43: Укупно (2017-2019)
D44: Буџетска средства | E44: Средства из осталих извора | F44: Буџетска средства | G44: Средства из осталих извора | H44: Буџетска средства | I44: Средства из осталих извора | J44: Буџетска средства | K44: Средства из осталих извора | L44: Буџетска средства | M44: Средства из осталих извора | N44: Буџетска средства | O44: Средства из осталих извора
A45: 1 | B45: =IFERROR(VLOOKUP(ROWS($B$45:B45),Упутство!$B$374:$D$473,3,FALSE),"") -> 0 (Месна заједница Остојићево) | D45: =IFERROR(VLOOKUP(ROWS(D$45:D45),Упутство!$B$374:$N$473,4,FALSE),"") -> 3,750,000 | E45: =IFERROR(VLOOKUP(ROWS(E$45:E45),Упутство!$B$374:$N$473,5,FALSE),"") -> 1,748,000 | F45: =IFERROR(VLOOKUP(ROWS(F$45:F45),Упутство!$B$374:$N$473,6,FALSE),"") -> 1,502,000 | G45: =IFERROR(VLOOKUP(ROWS(G$45:G45),Упутство!$B$374:$N$473,7,FALSE),"") -> 2,507,500 | H45: =IFERROR(VLOOKUP(ROWS(H$45:H45),Упутство!$B$374:$N$473,8,FALSE),"") -> 1,760,000 | I45: =IFERROR(VLOOKUP(ROWS(I$45:I45),Упутство!$B$374:$N$473,9,FALSE),"") -> 1,510,000 | J45: =IFERROR(VLOOKUP(ROWS(J$45:J45),Упутство!$B$374:$N$473,10,FALSE),"") -> 1,500,000 | K45: =IFERROR(VLOOKUP(ROWS(K$45:K45),Упутство!$B$374:$N$473,11,FALSE),"") -> 0 | L45: =IFERROR(VLOOKUP(ROWS(L$45:L45),Упутство!$B$374:$N$473,12,FALSE),"") -> 1,500,000 | M45: =IFERROR(VLOOKUP(ROWS(M$45:M45),Упутство!$B$374:$N$473,13,FALSE),"") -> 0 | N45: =SUM(H45,J45,L45) -> 4,760,000 | O45: =SUM(I45,K45,M45) -> 1,510,000
A46: =A45+1 -> 2 | B46: =IFERROR(VLOOKUP(ROWS($B$45:B46),Упутство!$B$374:$D$473,3,FALSE),"") ->  | D46: =IFERROR(VLOOKUP(ROWS(D$45:D46),Упутство!$B$374:$N$473,4,FALSE),"") ->  | E46: =IFERROR(VLOOKUP(ROWS(E$45:E46),Упутство!$B$374:$N$473,5,FALSE),"") ->  | F46: =IFERROR(VLOOKUP(ROWS(F$45:F46),Упутство!$B$374:$N$473,6,FALSE),"") ->  | G46: =IFERROR(VLOOKUP(ROWS(G$45:G46),Упутство!$B$374:$N$473,7,FALSE),"") ->  | H46: =IFERROR(VLOOKUP(ROWS(H$45:H46),Упутство!$B$374:$N$473,8,FALSE),"") ->  | I46: =IFERROR(VLOOKUP(ROWS(I$45:I46),Упутство!$B$374:$N$473,9,FALSE),"") ->  | J46: =IFERROR(VLOOKUP(ROWS(J$45:J46),Упутство!$B$374:$N$473,10,FALSE),"") ->  | K46: =IFERROR(VLOOKUP(ROWS(K$45:K46),Упутство!$B$374:$N$473,11,FALSE),"") ->  | L46: =IFERROR(VLOOKUP(ROWS(L$45:L46),Упутство!$B$374:$N$473,12,FALSE),"") ->  | M46: =IFERROR(VLOOKUP(ROWS(M$45:M46),Упутство!$B$374:$N$473,13,FALSE),"") ->  | N46: =SUM(H46,J46,L46) -> 0 | O46: =SUM(I46,K46,M46) -> 0
A47: =A46+1 -> 3 | B47: =IFERROR(VLOOKUP(ROWS($B$45:B47),Упутство!$B$374:$D$473,3,FALSE),"") ->  | D47: =IFERROR(VLOOKUP(ROWS(D$45:D47),Упутство!$B$374:$N$473,4,FALSE),"") ->  | E47: =IFERROR(VLOOKUP(ROWS(E$45:E47),Упутство!$B$374:$N$473,5,FALSE),"") ->  | F47: =IFERROR(VLOOKUP(ROWS(F$45:F47),Упутство!$B$374:$N$473,6,FALSE),"") ->  | G47: =IFERROR(VLOOKUP(ROWS(G$45:G47),Упутство!$B$374:$N$473,7,FALSE),"") ->  | H47: =IFERROR(VLOOKUP(ROWS(H$45:H47),Упутство!$B$374:$N$473,8,FALSE),"") ->  | I47: =IFERROR(VLOOKUP(ROWS(I$45:I47),Упутство!$B$374:$N$473,9,FALSE),"") ->  | J47: =IFERROR(VLOOKUP(ROWS(J$45:J47),Упутство!$B$374:$N$473,10,FALSE),"") ->  | K47: =IFERROR(VLOOKUP(ROWS(K$45:K47),Упутство!$B$374:$N$473,11,FALSE),"") ->  | L47: =IFERROR(VLOOKUP(ROWS(L$45:L47),Упутство!$B$374:$N$473,12,FALSE),"") ->  | M47: =IFERROR(VLOOKUP(ROWS(M$45:M47),Упутство!$B$374:$N$473,13,FALSE),"") ->  | N47: 0 | O47: 0
A48: =A47+1 -> 4 | B48: =IFERROR(VLOOKUP(ROWS($B$45:B48),Упутство!$B$374:$D$473,3,FALSE),"") ->  | D48: =IFERROR(VLOOKUP(ROWS(D$45:D48),Упутство!$B$374:$N$473,4,FALSE),"") ->  | E48: =IFERROR(VLOOKUP(ROWS(E$45:E48),Упутство!$B$374:$N$473,5,FALSE),"") ->  | F48: =IFERROR(VLOOKUP(ROWS(F$45:F48),Упутство!$B$374:$N$473,6,FALSE),"") ->  | G48: =IFERROR(VLOOKUP(ROWS(G$45:G48),Упутство!$B$374:$N$473,7,FALSE),"") ->  | H48: =IFERROR(VLOOKUP(ROWS(H$45:H48),Упутство!$B$374:$N$473,8,FALSE),"") ->  | I48: =IFERROR(VLOOKUP(ROWS(I$45:I48),Упутство!$B$374:$N$473,9,FALSE),"") ->  | J48: =IFERROR(VLOOKUP(ROWS(J$45:J48),Упутство!$B$374:$N$473,10,FALSE),"") ->  | K48: =IFERROR(VLOOKUP(ROWS(K$45:K48),Упутство!$B$374:$N$473,11,FALSE),"") ->  | L48: =IFERROR(VLOOKUP(ROWS(L$45:L48),Упутство!$B$374:$N$473,12,FALSE),"") ->  | M48: =IFERROR(VLOOKUP(ROWS(M$45:M48),Упутство!$B$374:$N$473,13,FALSE),"") ->  | N48: 0 | O48: 0
A49: =A48+1 -> 5 | B49: =IFERROR(VLOOKUP(ROWS($B$45:B49),Упутство!$B$374:$D$473,3,FALSE),"") ->  | D49: =IFERROR(VLOOKUP(ROWS(D$45:D49),Упутство!$B$374:$N$473,4,FALSE),"") ->  | E49: =IFERROR(VLOOKUP(ROWS(E$45:E49),Упутство!$B$374:$N$473,5,FALSE),"") ->  | F49: =IFERROR(VLOOKUP(ROWS(F$45:F49),Упутство!$B$374:$N$473,6,FALSE),"") ->  | G49: =IFERROR(VLOOKUP(ROWS(G$45:G49),Упутство!$B$374:$N$473,7,FALSE),"") ->  | H49: =IFERROR(VLOOKUP(ROWS(H$45:H49),Упутство!$B$374:$N$473,8,FALSE),"") ->  | I49: =IFERROR(VLOOKUP(ROWS(I$45:I49),Упутство!$B$374:$N$473,9,FALSE),"") ->  | J49: =IFERROR(VLOOKUP(ROWS(J$45:J49),Упутство!$B$374:$N$473,10,FALSE),"") ->  | K49: =IFERROR(VLOOKUP(ROWS(K$45:K49),Упутство!$B$374:$N$473,11,FALSE),"") ->  | L49: =IFERROR(VLOOKUP(ROWS(L$45:L49),Упутство!$B$374:$N$473,12,FALSE),"") ->  | M49: =IFERROR(VLOOKUP(ROWS(M$45:M49),Упутство!$B$374:$N$473,13,FALSE),"") ->  | N49: 0 | O49: 0
A50: 6 | B50: =IFERROR(VLOOKUP(ROWS($B$45:B50),Упутство!$B$374:$D$473,3,FALSE),"") ->  | D50: =IFERROR(VLOOKUP(ROWS(D$45:D50),Упутство!$B$374:$N$473,4,FALSE),"") ->  | E50: =IFERROR(VLOOKUP(ROWS(E$45:E50),Упутство!$B$374:$N$473,5,FALSE),"") ->  | F50: =IFERROR(VLOOKUP(ROWS(F$45:F50),Упутство!$B$374:$N$473,6,FALSE),"") ->  | G50: =IFERROR(VLOOKUP(ROWS(G$45:G50),Упутство!$B$374:$N$473,7,FALSE),"") ->  | H50: =IFERROR(VLOOKUP(ROWS(H$45:H50),Упутство!$B$374:$N$473,8,FALSE),"") ->  | I50: =IFERROR(VLOOKUP(ROWS(I$45:I50),Упутство!$B$374:$N$473,9,FALSE),"") ->  | J50: =IFERROR(VLOOKUP(ROWS(J$45:J50),Упутство!$B$374:$N$473,10,FALSE),"") ->  | K50: =IFERROR(VLOOKUP(ROWS(K$45:K50),Упутство!$B$374:$N$473,11,FALSE),"") ->  | L50: =IFERROR(VLOOKUP(ROWS(L$45:L50),Упутство!$B$374:$N$473,12,FALSE),"") ->  | M50: =IFERROR(VLOOKUP(ROWS(M$45:M50),Упутство!$B$374:$N$473,13,FALSE),"") ->  | N50: 0 | O50: 0
A51: 7 | B51: =IFERROR(VLOOKUP(ROWS($B$45:B51),Упутство!$B$374:$D$473,3,FALSE),"") ->  | D51: =IFERROR(VLOOKUP(ROWS(D$45:D51),Упутство!$B$374:$N$473,4,FALSE),"") ->  | E51: =IFERROR(VLOOKUP(ROWS(E$45:E51),Упутство!$B$374:$N$473,5,FALSE),"") ->  | F51: =IFERROR(VLOOKUP(ROWS(F$45:F51),Упутство!$B$374:$N$473,6,FALSE),"") ->  | G51: =IFERROR(VLOOKUP(ROWS(G$45:G51),Упутство!$B$374:$N$473,7,FALSE),"") ->  | H51: =IFERROR(VLOOKUP(ROWS(H$45:H51),Упутство!$B$374:$N$473,8,FALSE),"") ->  | I51: =IFERROR(VLOOKUP(ROWS(I$45:I51),Упутство!$B$374:$N$473,9,FALSE),"") ->  | J51: =IFERROR(VLOOKUP(ROWS(J$45:J51),Упутство!$B$374:$N$473,10,FALSE),"") ->  | K51: =IFERROR(VLOOKUP(ROWS(K$45:K51),Упутство!$B$374:$N$473,11,FALSE),"") ->  | L51: =IFERROR(VLOOKUP(ROWS(L$45:L51),Упутство!$B$374:$N$473,12,FALSE),"") ->  | M51: =IFERROR(VLOOKUP(ROWS(M$45:M51),Упутство!$B$374:$N$473,13,FALSE),"") ->  | N51: 0 | O51: 0
A52: 8 | B52: =IFERROR(VLOOKUP(ROWS($B$45:B52),Упутство!$B$374:$D$473,3,FALSE),"") ->  | D52: =IFERROR(VLOOKUP(ROWS(D$45:D52),Упутство!$B$374:$N$473,4,FALSE),"") ->  | E52: =IFERROR(VLOOKUP(ROWS(E$45:E52),Упутство!$B$374:$N$473,5,FALSE),"") ->  | F52: =IFERROR(VLOOKUP(ROWS(F$45:F52),Упутство!$B$374:$N$473,6,FALSE),"") ->  | G52: =IFERROR(VLOOKUP(ROWS(G$45:G52),Упутство!$B$374:$N$473,7,FALSE),"") ->  | H52: =IFERROR(VLOOKUP(ROWS(H$45:H52),Упутство!$B$374:$N$473,8,FALSE),"") ->  | I52: =IFERROR(VLOOKUP(ROWS(I$45:I52),Упутство!$B$374:$N$473,9,FALSE),"") ->  | J52: =IFERROR(VLOOKUP(ROWS(J$45:J52),Упутство!$B$374:$N$473,10,FALSE),"") ->  | K52: =IFERROR(VLOOKUP(ROWS(K$45:K52),Упутство!$B$374:$N$473,11,FALSE),"") ->  | L52: =IFERROR(VLOOKUP(ROWS(L$45:L52),Упутство!$B$374:$N$473,12,FALSE),"") ->  | M52: =IFERROR(VLOOKUP(ROWS(M$45:M52),Упутство!$B$374:$N$473,13,FALSE),"") ->  | N52: 0 | O52: 0
A53: 9 | B53: =IFERROR(VLOOKUP(ROWS($B$45:B53),Упутство!$B$374:$D$473,3,FALSE),"") ->  | D53: =IFERROR(VLOOKUP(ROWS(D$45:D53),Упутство!$B$374:$N$473,4,FALSE),"") ->  | E53: =IFERROR(VLOOKUP(ROWS(E$45:E53),Упутство!$B$374:$N$473,5,FALSE),"") ->  | F53: =IFERROR(VLOOKUP(ROWS(F$45:F53),Упутство!$B$374:$N$473,6,FALSE),"") ->  | G53: =IFERROR(VLOOKUP(ROWS(G$45:G53),Упутство!$B$374:$N$473,7,FALSE),"") ->  | H53: =IFERROR(VLOOKUP(ROWS(H$45:H53),Упутство!$B$374:$N$473,8,FALSE),"") ->  | I53: =IFERROR(VLOOKUP(ROWS(I$45:I53),Упутство!$B$374:$N$473,9,FALSE),"") ->  | J53: =IFERROR(VLOOKUP(ROWS(J$45:J53),Упутство!$B$374:$N$473,10,FALSE),"") ->  | K53: =IFERROR(VLOOKUP(ROWS(K$45:K53),Упутство!$B$374:$N$473,11,FALSE),"") ->  | L53: =IFERROR(VLOOKUP(ROWS(L$45:L53),Упутство!$B$374:$N$473,12,FALSE),"") ->  | M53: =IFERROR(VLOOKUP(ROWS(M$45:M53),Упутство!$B$374:$N$473,13,FALSE),"") ->  | N53: 0 | O53: 0
A54: 10 | B54: =IFERROR(VLOOKUP(ROWS($B$45:B54),Упутство!$B$374:$D$473,3,FALSE),"") ->  | D54: =IFERROR(VLOOKUP(ROWS(D$45:D54),Упутство!$B$374:$N$473,4,FALSE),"") ->  | E54: =IFERROR(VLOOKUP(ROWS(E$45:E54),Упутство!$B$374:$N$473,5,FALSE),"") ->  | F54: =IFERROR(VLOOKUP(ROWS(F$45:F54),Упутство!$B$374:$N$473,6,FALSE),"") ->  | G54: =IFERROR(VLOOKUP(ROWS(G$45:G54),Упутство!$B$374:$N$473,7,FALSE),"") ->  | H54: =IFERROR(VLOOKUP(ROWS(H$45:H54),Упутство!$B$374:$N$473,8,FALSE),"") ->  | I54: =IFERROR(VLOOKUP(ROWS(I$45:I54),Упутство!$B$374:$N$473,9,FALSE),"") ->  | J54: =IFERROR(VLOOKUP(ROWS(J$45:J54),Упутство!$B$374:$N$473,10,FALSE),"") ->  | K54: =IFERROR(VLOOKUP(ROWS(K$45:K54),Упутство!$B$374:$N$473,11,FALSE),"") ->  | L54: =IFERROR(VLOOKUP(ROWS(L$45:L54),Упутство!$B$374:$N$473,12,FALSE),"") ->  | M54: =IFERROR(VLOOKUP(ROWS(M$45:M54),Упутство!$B$374:$N$473,13,FALSE),"") ->  | N54: 0 | O54: 0
A55: 11 | B55: =IFERROR(VLOOKUP(ROWS($B$45:B55),Упутство!$B$374:$D$473,3,FALSE),"") ->  | D55: =IFERROR(VLOOKUP(ROWS(D$45:D55),Упутство!$B$374:$N$473,4,FALSE),"") ->  | E55: =IFERROR(VLOOKUP(ROWS(E$45:E55),Упутство!$B$374:$N$473,5,FALSE),"") ->  | F55: =IFERROR(VLOOKUP(ROWS(F$45:F55),Упутство!$B$374:$N$473,6,FALSE),"") ->  | G55: =IFERROR(VLOOKUP(ROWS(G$45:G55),Упутство!$B$374:$N$473,7,FALSE),"") ->  | H55: =IFERROR(VLOOKUP(ROWS(H$45:H55),Упутство!$B$374:$N$473,8,FALSE),"") ->  | I55: =IFERROR(VLOOKUP(ROWS(I$45:I55),Упутство!$B$374:$N$473,9,FALSE),"") ->  | J55: =IFERROR(VLOOKUP(ROWS(J$45:J55),Упутство!$B$374:$N$473,10,FALSE),"") ->  | K55: =IFERROR(VLOOKUP(ROWS(K$45:K55),Упутство!$B$374:$N$473,11,FALSE),"") ->  | L55: =IFERROR(VLOOKUP(ROWS(L$45:L55),Упутство!$B$374:$N$473,12,FALSE),"") ->  | M55: =IFERROR(VLOOKUP(ROWS(M$45:M55),Упутство!$B$374:$N$473,13,FALSE),"") ->  | N55: 0 | O55: 0
A56: 12 | B56: =IFERROR(VLOOKUP(ROWS($B$45:B56),Упутство!$B$374:$D$473,3,FALSE),"") ->  | D56: =IFERROR(VLOOKUP(ROWS(D$45:D56),Упутство!$B$374:$N$473,4,FALSE),"") ->  | E56: =IFERROR(VLOOKUP(ROWS(E$45:E56),Упутство!$B$374:$N$473,5,FALSE),"") ->  | F56: =IFERROR(VLOOKUP(ROWS(F$45:F56),Упутство!$B$374:$N$473,6,FALSE),"") ->  | G56: =IFERROR(VLOOKUP(ROWS(G$45:G56),Упутство!$B$374:$N$473,7,FALSE),"") ->  | H56: =IFERROR(VLOOKUP(ROWS(H$45:H56),Упутство!$B$374:$N$473,8,FALSE),"") ->  | I56: =IFERROR(VLOOKUP(ROWS(I$45:I56),Упутство!$B$374:$N$473,9,FALSE),"") ->  | J56: =IFERROR(VLOOKUP(ROWS(J$45:J56),Упутство!$B$374:$N$473,10,FALSE),"") ->  | K56: =IFERROR(VLOOKUP(ROWS(K$45:K56),Упутство!$B$374:$N$473,11,FALSE),"") ->  | L56: =IFERROR(VLOOKUP(ROWS(L$45:L56),Упутство!$B$374:$N$473,12,FALSE),"") ->  | M56: =IFERROR(VLOOKUP(ROWS(M$45:M56),Упутство!$B$374:$N$473,13,FALSE),"") ->  | N56: 0 | O56: 0
A57: 13 | B57: =IFERROR(VLOOKUP(ROWS($B$45:B57),Упутство!$B$374:$D$473,3,FALSE),"") ->  | D57: =IFERROR(VLOOKUP(ROWS(D$45:D57),Упутство!$B$374:$N$473,4,FALSE),"") ->  | E57: =IFERROR(VLOOKUP(ROWS(E$45:E57),Упутство!$B$374:$N$473,5,FALSE),"") ->  | F57: =IFERROR(VLOOKUP(ROWS(F$45:F57),Упутство!$B$374:$N$473,6,FALSE),"") ->  | G57: =IFERROR(VLOOKUP(ROWS(G$45:G57),Упутство!$B$374:$N$473,7,FALSE),"") ->  | H57: =IFERROR(VLOOKUP(ROWS(H$45:H57),Упутство!$B$374:$N$473,8,FALSE),"") ->  | I57: =IFERROR(VLOOKUP(ROWS(I$45:I57),Упутство!$B$374:$N$473,9,FALSE),"") ->  | J57: =IFERROR(VLOOKUP(ROWS(J$45:J57),Упутство!$B$374:$N$473,10,FALSE),"") ->  | K57: =IFERROR(VLOOKUP(ROWS(K$45:K57),Упутство!$B$374:$N$473,11,FALSE),"") ->  | L57: =IFERROR(VLOOKUP(ROWS(L$45:L57),Упутство!$B$374:$N$473,12,FALSE),"") ->  | M57: =IFERROR(VLOOKUP(ROWS(M$45:M57),Упутство!$B$374:$N$473,13,FALSE),"") ->  | N57: 0 | O57: 0
A58: 14 | B58: =IFERROR(VLOOKUP(ROWS($B$45:B58),Упутство!$B$374:$D$473,3,FALSE),"") ->  | D58: =IFERROR(VLOOKUP(ROWS(D$45:D58),Упутство!$B$374:$N$473,4,FALSE),"") ->  | E58: =IFERROR(VLOOKUP(ROWS(E$45:E58),Упутство!$B$374:$N$473,5,FALSE),"") ->  | F58: =IFERROR(VLOOKUP(ROWS(F$45:F58),Упутство!$B$374:$N$473,6,FALSE),"") ->  | G58: =IFERROR(VLOOKUP(ROWS(G$45:G58),Упутство!$B$374:$N$473,7,FALSE),"") ->  | H58: =IFERROR(VLOOKUP(ROWS(H$45:H58),Упутство!$B$374:$N$473,8,FALSE),"") ->  | I58: =IFERROR(VLOOKUP(ROWS(I$45:I58),Упутство!$B$374:$N$473,9,FALSE),"") ->  | J58: =IFERROR(VLOOKUP(ROWS(J$45:J58),Упутство!$B$374:$N$473,10,FALSE),"") ->  | K58: =IFERROR(VLOOKUP(ROWS(K$45:K58),Упутство!$B$374:$N$473,11,FALSE),"") ->  | L58: =IFERROR(VLOOKUP(ROWS(L$45:L58),Упутство!$B$374:$N$473,12,FALSE),"") ->  | M58: =IFERROR(VLOOKUP(ROWS(M$45:M58),Упутство!$B$374:$N$473,13,FALSE),"") ->  | N58: 0 | O58: 0
A59: =A58+1 -> 15 | B59: =IFERROR(VLOOKUP(ROWS($B$45:B59),Упутство!$B$374:$D$473,3,FALSE),"") ->  | D59: =IFERROR(VLOOKUP(ROWS(D$45:D59),Упутство!$B$374:$N$473,4,FALSE),"") ->  | E59: =IFERROR(VLOOKUP(ROWS(E$45:E59),Упутство!$B$374:$N$473,5,FALSE),"") ->  | F59: =IFERROR(VLOOKUP(ROWS(F$45:F59),Упутство!$B$374:$N$473,6,FALSE),"") ->  | G59: =IFERROR(VLOOKUP(ROWS(G$45:G59),Упутство!$B$374:$N$473,7,FALSE),"") ->  | H59: =IFERROR(VLOOKUP(ROWS(H$45:H59),Упутство!$B$374:$N$473,8,FALSE),"") ->  | I59: =IFERROR(VLOOKUP(ROWS(I$45:I59),Упутство!$B$374:$N$473,9,FALSE),"") ->  | J59: =IFERROR(VLOOKUP(ROWS(J$45:J59),Упутство!$B$374:$N$473,10,FALSE),"") ->  | K59: =IFERROR(VLOOKUP(ROWS(K$45:K59),Упутство!$B$374:$N$473,11,FALSE),"") ->  | L59: =IFERROR(VLOOKUP(ROWS(L$45:L59),Упутство!$B$374:$N$473,12,FALSE),"") ->  | M59: =IFERROR(VLOOKUP(ROWS(M$45:M59),Упутство!$B$374:$N$473,13,FALSE),"") ->  | N59: 0 | O59: 0
A60: 16 | B60: =IFERROR(VLOOKUP(ROWS($B$45:B60),Упутство!$B$374:$D$473,3,FALSE),"") ->  | D60: =IFERROR(VLOOKUP(ROWS(D$45:D60),Упутство!$B$374:$N$473,4,FALSE),"") ->  | E60: =IFERROR(VLOOKUP(ROWS(E$45:E60),Упутство!$B$374:$N$473,5,FALSE),"") ->  | F60: =IFERROR(VLOOKUP(ROWS(F$45:F60),Упутство!$B$374:$N$473,6,FALSE),"") ->  | G60: =IFERROR(VLOOKUP(ROWS(G$45:G60),Упутство!$B$374:$N$473,7,FALSE),"") ->  | H60: =IFERROR(VLOOKUP(ROWS(H$45:H60),Упутство!$B$374:$N$473,8,FALSE),"") ->  | I60: =IFERROR(VLOOKUP(ROWS(I$45:I60),Упутство!$B$374:$N$473,9,FALSE),"") ->  | J60: =IFERROR(VLOOKUP(ROWS(J$45:J60),Упутство!$B$374:$N$473,10,FALSE),"") ->  | K60: =IFERROR(VLOOKUP(ROWS(K$45:K60),Упутство!$B$374:$N$473,11,FALSE),"") ->  | L60: =IFERROR(VLOOKUP(ROWS(L$45:L60),Упутство!$B$374:$N$473,12,FALSE),"") ->  | M60: =IFERROR(VLOOKUP(ROWS(M$45:M60),Упутство!$B$374:$N$473,13,FALSE),"") ->  | N60: 0 | O60: 0
A61: 17 | B61: =IFERROR(VLOOKUP(ROWS($B$45:B61),Упутство!$B$374:$D$473,3,FALSE),"") ->  | D61: =IFERROR(VLOOKUP(ROWS(D$45:D61),Упутство!$B$374:$N$473,4,FALSE),"") ->  | E61: =IFERROR(VLOOKUP(ROWS(E$45:E61),Упутство!$B$374:$N$473,5,FALSE),"") ->  | F61: =IFERROR(VLOOKUP(ROWS(F$45:F61),Упутство!$B$374:$N$473,6,FALSE),"") ->  | G61: =IFERROR(VLOOKUP(ROWS(G$45:G61),Упутство!$B$374:$N$473,7,FALSE),"") ->  | H61: =IFERROR(VLOOKUP(ROWS(H$45:H61),Упутство!$B$374:$N$473,8,FALSE),"") ->  | I61: =IFERROR(VLOOKUP(ROWS(I$45:I61),Упутство!$B$374:$N$473,9,FALSE),"") ->  | J61: =IFERROR(VLOOKUP(ROWS(J$45:J61),Упутство!$B$374:$N$473,10,FALSE),"") ->  | K61: =IFERROR(VLOOKUP(ROWS(K$45:K61),Упутство!$B$374:$N$473,11,FALSE),"") ->  | L61: =IFERROR(VLOOKUP(ROWS(L$45:L61),Упутство!$B$374:$N$473,12,FALSE),"") ->  | M61: =IFERROR(VLOOKUP(ROWS(M$45:M61),Упутство!$B$374:$N$473,13,FALSE),"") ->  | N61: 0 | O61: 0
A62: 18 | B62: =IFERROR(VLOOKUP(ROWS($B$45:B62),Упутство!$B$374:$D$473,3,FALSE),"") ->  | D62: =IFERROR(VLOOKUP(ROWS(D$45:D62),Упутство!$B$374:$N$473,4,FALSE),"") ->  | E62: =IFERROR(VLOOKUP(ROWS(E$45:E62),Упутство!$B$374:$N$473,5,FALSE),"") ->  | F62: =IFERROR(VLOOKUP(ROWS(F$45:F62),Упутство!$B$374:$N$473,6,FALSE),"") ->  | G62: =IFERROR(VLOOKUP(ROWS(G$45:G62),Упутство!$B$374:$N$473,7,FALSE),"") ->  | H62: =IFERROR(VLOOKUP(ROWS(H$45:H62),Упутство!$B$374:$N$473,8,FALSE),"") ->  | I62: =IFERROR(VLOOKUP(ROWS(I$45:I62),Упутство!$B$374:$N$473,9,FALSE),"") ->  | J62: =IFERROR(VLOOKUP(ROWS(J$45:J62),Упутство!$B$374:$N$473,10,FALSE),"") ->  | K62: =IFERROR(VLOOKUP(ROWS(K$45:K62),Упутство!$B$374:$N$473,11,FALSE),"") ->  | L62: =IFERROR(VLOOKUP(ROWS(L$45:L62),Упутство!$B$374:$N$473,12,FALSE),"") ->  | M62: =IFERROR(VLOOKUP(ROWS(M$45:M62),Упутство!$B$374:$N$473,13,FALSE),"") ->  | N62: 0 | O62: 0
A63: 19 | B63: =IFERROR(VLOOKUP(ROWS($B$45:B63),Упутство!$B$374:$D$473,3,FALSE),"") ->  | D63: =IFERROR(VLOOKUP(ROWS(D$45:D63),Упутство!$B$374:$N$473,4,FALSE),"") ->  | E63: =IFERROR(VLOOKUP(ROWS(E$45:E63),Упутство!$B$374:$N$473,5,FALSE),"") ->  | F63: =IFERROR(VLOOKUP(ROWS(F$45:F63),Упутство!$B$374:$N$473,6,FALSE),"") ->  | G63: =IFERROR(VLOOKUP(ROWS(G$45:G63),Упутство!$B$374:$N$473,7,FALSE),"") ->  | H63: =IFERROR(VLOOKUP(ROWS(H$45:H63),Упутство!$B$374:$N$473,8,FALSE),"") ->  | I63: =IFERROR(VLOOKUP(ROWS(I$45:I63),Упутство!$B$374:$N$473,9,FALSE),"") ->  | J63: =IFERROR(VLOOKUP(ROWS(J$45:J63),Упутство!$B$374:$N$473,10,FALSE),"") ->  | K63: =IFERROR(VLOOKUP(ROWS(K$45:K63),Упутство!$B$374:$N$473,11,FALSE),"") ->  | L63: =IFERROR(VLOOKUP(ROWS(L$45:L63),Упутство!$B$374:$N$473,12,FALSE),"") ->  | M63: =IFERROR(VLOOKUP(ROWS(M$45:M63),Упутство!$B$374:$N$473,13,FALSE),"") ->  | N63: 0 | O63: 0
A64: 20 | B64: =IFERROR(VLOOKUP(ROWS($B$45:B64),Упутство!$B$374:$D$473,3,FALSE),"") ->  | D64: =IFERROR(VLOOKUP(ROWS(D$45:D64),Упутство!$B$374:$N$473,4,FALSE),"") ->  | E64: =IFERROR(VLOOKUP(ROWS(E$45:E64),Упутство!$B$374:$N$473,5,FALSE),"") ->  | F64: =IFERROR(VLOOKUP(ROWS(F$45:F64),Упутство!$B$374:$N$473,6,FALSE),"") ->  | G64: =IFERROR(VLOOKUP(ROWS(G$45:G64),Упутство!$B$374:$N$473,7,FALSE),"") ->  | H64: =IFERROR(VLOOKUP(ROWS(H$45:H64),Упутство!$B$374:$N$473,8,FALSE),"") ->  | I64: =IFERROR(VLOOKUP(ROWS(I$45:I64),Упутство!$B$374:$N$473,9,FALSE),"") ->  | J64: =IFERROR(VLOOKUP(ROWS(J$45:J64),Упутство!$B$374:$N$473,10,FALSE),"") ->  | K64: =IFERROR(VLOOKUP(ROWS(K$45:K64),Упутство!$B$374:$N$473,11,FALSE),"") ->  | L64: =IFERROR(VLOOKUP(ROWS(L$45:L64),Упутство!$B$374:$N$473,12,FALSE),"") ->  | M64: =IFERROR(VLOOKUP(ROWS(M$45:M64),Упутство!$B$374:$N$473,13,FALSE),"") ->  | N64: 0 | O64: 0
A65: 21 | B65: =IFERROR(VLOOKUP(ROWS($B$45:B65),Упутство!$B$374:$D$473,3,FALSE),"") ->  | D65: =IFERROR(VLOOKUP(ROWS(D$45:D65),Упутство!$B$374:$N$473,4,FALSE),"") ->  | E65: =IFERROR(VLOOKUP(ROWS(E$45:E65),Упутство!$B$374:$N$473,5,FALSE),"") ->  | F65: =IFERROR(VLOOKUP(ROWS(F$45:F65),Упутство!$B$374:$N$473,6,FALSE),"") ->  | G65: =IFERROR(VLOOKUP(ROWS(G$45:G65),Упутство!$B$374:$N$473,7,FALSE),"") ->  | H65: =IFERROR(VLOOKUP(ROWS(H$45:H65),Упутство!$B$374:$N$473,8,FALSE),"") ->  | I65: =IFERROR(VLOOKUP(ROWS(I$45:I65),Упутство!$B$374:$N$473,9,FALSE),"") ->  | J65: =IFERROR(VLOOKUP(ROWS(J$45:J65),Упутство!$B$374:$N$473,10,FALSE),"") ->  | K65: =IFERROR(VLOOKUP(ROWS(K$45:K65),Упутство!$B$374:$N$473,11,FALSE),"") ->  | L65: =IFERROR(VLOOKUP(ROWS(L$45:L65),Упутство!$B$374:$N$473,12,FALSE),"") ->  | M65: =IFERROR(VLOOKUP(ROWS(M$45:M65),Упутство!$B$374:$N$473,13,FALSE),"") ->  | N65: 0 | O65: 0
A66: 22 | B66: =IFERROR(VLOOKUP(ROWS($B$45:B66),Упутство!$B$374:$D$473,3,FALSE),"") ->  | D66: =IFERROR(VLOOKUP(ROWS(D$45:D66),Упутство!$B$374:$N$473,4,FALSE),"") ->  | E66: =IFERROR(VLOOKUP(ROWS(E$45:E66),Упутство!$B$374:$N$473,5,FALSE),"") ->  | F66: =IFERROR(VLOOKUP(ROWS(F$45:F66),Упутство!$B$374:$N$473,6,FALSE),"") ->  | G66: =IFERROR(VLOOKUP(ROWS(G$45:G66),Упутство!$B$374:$N$473,7,FALSE),"") ->  | H66: =IFERROR(VLOOKUP(ROWS(H$45:H66),Упутство!$B$374:$N$473,8,FALSE),"") ->  | I66: =IFERROR(VLOOKUP(ROWS(I$45:I66),Упутство!$B$374:$N$473,9,FALSE),"") ->  | J66: =IFERROR(VLOOKUP(ROWS(J$45:J66),Упутство!$B$374:$N$473,10,FALSE),"") ->  | K66: =IFERROR(VLOOKUP(ROWS(K$45:K66),Упутство!$B$374:$N$473,11,FALSE),"") ->  | L66: =IFERROR(VLOOKUP(ROWS(L$45:L66),Упутство!$B$374:$N$473,12,FALSE),"") ->  | M66: =IFERROR(VLOOKUP(ROWS(M$45:M66),Упутство!$B$374:$N$473,13,FALSE),"") ->  | N66: 0 | O66: 0
A67: 23 | B67: =IFERROR(VLOOKUP(ROWS($B$45:B67),Упутство!$B$374:$D$473,3,FALSE),"") ->  | D67: =IFERROR(VLOOKUP(ROWS(D$45:D67),Упутство!$B$374:$N$473,4,FALSE),"") ->  | E67: =IFERROR(VLOOKUP(ROWS(E$45:E67),Упутство!$B$374:$N$473,5,FALSE),"") ->  | F67: =IFERROR(VLOOKUP(ROWS(F$45:F67),Упутство!$B$374:$N$473,6,FALSE),"") ->  | G67: =IFERROR(VLOOKUP(ROWS(G$45:G67),Упутство!$B$374:$N$473,7,FALSE),"") ->  | H67: =IFERROR(VLOOKUP(ROWS(H$45:H67),Упутство!$B$374:$N$473,8,FALSE),"") ->  | I67: =IFERROR(VLOOKUP(ROWS(I$45:I67),Упутство!$B$374:$N$473,9,FALSE),"") ->  | J67: =IFERROR(VLOOKUP(ROWS(J$45:J67),Упутство!$B$374:$N$473,10,FALSE),"") ->  | K67: =IFERROR(VLOOKUP(ROWS(K$45:K67),Упутство!$B$374:$N$473,11,FALSE),"") ->  | L67: =IFERROR(VLOOKUP(ROWS(L$45:L67),Упутство!$B$374:$N$473,12,FALSE),"") ->  | M67: =IFERROR(VLOOKUP(ROWS(M$45:M67),Упутство!$B$374:$N$473,13,FALSE),"") ->  | N67: 0 | O67: 0
A68: 24 | B68: =IFERROR(VLOOKUP(ROWS($B$45:B68),Упутство!$B$374:$D$473,3,FALSE),"") ->  | D68: =IFERROR(VLOOKUP(ROWS(D$45:D68),Упутство!$B$374:$N$473,4,FALSE),"") ->  | E68: =IFERROR(VLOOKUP(ROWS(E$45:E68),Упутство!$B$374:$N$473,5,FALSE),"") ->  | F68: =IFERROR(VLOOKUP(ROWS(F$45:F68),Упутство!$B$374:$N$473,6,FALSE),"") ->  | G68: =IFERROR(VLOOKUP(ROWS(G$45:G68),Упутство!$B$374:$N$473,7,FALSE),"") ->  | H68: =IFERROR(VLOOKUP(ROWS(H$45:H68),Упутство!$B$374:$N$473,8,FALSE),"") ->  | I68: =IFERROR(VLOOKUP(ROWS(I$45:I68),Упутство!$B$374:$N$473,9,FALSE),"") ->  | J68: =IFERROR(VLOOKUP(ROWS(J$45:J68),Упутство!$B$374:$N$473,10,FALSE),"") ->  | K68: =IFERROR(VLOOKUP(ROWS(K$45:K68),Упутство!$B$374:$N$473,11,FALSE),"") ->  | L68: =IFERROR(VLOOKUP(ROWS(L$45:L68),Упутство!$B$374:$N$473,12,FALSE),"") ->  | M68: =IFERROR(VLOOKUP(ROWS(M$45:M68),Упутство!$B$374:$N$473,13,FALSE),"") ->  | N68: 0 | O68: 0
A69: 25 | B69: =IFERROR(VLOOKUP(ROWS($B$45:B69),Упутство!$B$374:$D$473,3,FALSE),"") ->  | D69: =IFERROR(VLOOKUP(ROWS(D$45:D69),Упутство!$B$374:$N$473,4,FALSE),"") ->  | E69: =IFERROR(VLOOKUP(ROWS(E$45:E69),Упутство!$B$374:$N$473,5,FALSE),"") ->  | F69: =IFERROR(VLOOKUP(ROWS(F$45:F69),Упутство!$B$374:$N$473,6,FALSE),"") ->  | G69: =IFERROR(VLOOKUP(ROWS(G$45:G69),Упутство!$B$374:$N$473,7,FALSE),"") ->  | H69: =IFERROR(VLOOKUP(ROWS(H$45:H69),Упутство!$B$374:$N$473,8,FALSE),"") ->  | I69: =IFERROR(VLOOKUP(ROWS(I$45:I69),Упутство!$B$374:$N$473,9,FALSE),"") ->  | J69: =IFERROR(VLOOKUP(ROWS(J$45:J69),Упутство!$B$374:$N$473,10,FALSE),"") ->  | K69: =IFERROR(VLOOKUP(ROWS(K$45:K69),Упутство!$B$374:$N$473,11,FALSE),"") ->  | L69: =IFERROR(VLOOKUP(ROWS(L$45:L69),Упутство!$B$374:$N$473,12,FALSE),"") ->  | M69: =IFERROR(VLOOKUP(ROWS(M$45:M69),Упутство!$B$374:$N$473,13,FALSE),"") ->  | N69: 0 | O69: 0
A70: 26 | B70: =IFERROR(VLOOKUP(ROWS($B$45:B70),Упутство!$B$374:$D$473,3,FALSE),"") ->  | D70: =IFERROR(VLOOKUP(ROWS(D$45:D70),Упутство!$B$374:$N$473,4,FALSE),"") ->  | E70: =IFERROR(VLOOKUP(ROWS(E$45:E70),Упутство!$B$374:$N$473,5,FALSE),"") ->  | F70: =IFERROR(VLOOKUP(ROWS(F$45:F70),Упутство!$B$374:$N$473,6,FALSE),"") ->  | G70: =IFERROR(VLOOKUP(ROWS(G$45:G70),Упутство!$B$374:$N$473,7,FALSE),"") ->  | H70: =IFERROR(VLOOKUP(ROWS(H$45:H70),Упутство!$B$374:$N$473,8,FALSE),"") ->  | I70: =IFERROR(VLOOKUP(ROWS(I$45:I70),Упутство!$B$374:$N$473,9,FALSE),"") ->  | J70: =IFERROR(VLOOKUP(ROWS(J$45:J70),Упутство!$B$374:$N$473,10,FALSE),"") ->  | K70: =IFERROR(VLOOKUP(ROWS(K$45:K70),Упутство!$B$374:$N$473,11,FALSE),"") ->  | L70: =IFERROR(VLOOKUP(ROWS(L$45:L70),Упутство!$B$374:$N$473,12,FALSE),"") ->  | M70: =IFERROR(VLOOKUP(ROWS(M$45:M70),Упутство!$B$374:$N$473,13,FALSE),"") ->  | N70: 0 | O70: 0
A71: 27 | B71: =IFERROR(VLOOKUP(ROWS($B$45:B71),Упутство!$B$374:$D$473,3,FALSE),"") ->  | D71: =IFERROR(VLOOKUP(ROWS(D$45:D71),Упутство!$B$374:$N$473,4,FALSE),"") ->  | E71: =IFERROR(VLOOKUP(ROWS(E$45:E71),Упутство!$B$374:$N$473,5,FALSE),"") ->  | F71: =IFERROR(VLOOKUP(ROWS(F$45:F71),Упутство!$B$374:$N$473,6,FALSE),"") ->  | G71: =IFERROR(VLOOKUP(ROWS(G$45:G71),Упутство!$B$374:$N$473,7,FALSE),"") ->  | H71: =IFERROR(VLOOKUP(ROWS(H$45:H71),Упутство!$B$374:$N$473,8,FALSE),"") ->  | I71: =IFERROR(VLOOKUP(ROWS(I$45:I71),Упутство!$B$374:$N$473,9,FALSE),"") ->  | J71: =IFERROR(VLOOKUP(ROWS(J$45:J71),Упутство!$B$374:$N$473,10,FALSE),"") ->  | K71: =IFERROR(VLOOKUP(ROWS(K$45:K71),Упутство!$B$374:$N$473,11,FALSE),"") ->  | L71: =IFERROR(VLOOKUP(ROWS(L$45:L71),Упутство!$B$374:$N$473,12,FALSE),"") ->  | M71: =IFERROR(VLOOKUP(ROWS(M$45:M71),Упутство!$B$374:$N$473,13,FALSE),"") ->  | N71: 0 | O71: 0
A72: 28 | B72: =IFERROR(VLOOKUP(ROWS($B$45:B72),Упутство!$B$374:$D$473,3,FALSE),"") ->  | D72: =IFERROR(VLOOKUP(ROWS(D$45:D72),Упутство!$B$374:$N$473,4,FALSE),"") ->  | E72: =IFERROR(VLOOKUP(ROWS(E$45:E72),Упутство!$B$374:$N$473,5,FALSE),"") ->  | F72: =IFERROR(VLOOKUP(ROWS(F$45:F72),Упутство!$B$374:$N$473,6,FALSE),"") ->  | G72: =IFERROR(VLOOKUP(ROWS(G$45:G72),Упутство!$B$374:$N$473,7,FALSE),"") ->  | H72: =IFERROR(VLOOKUP(ROWS(H$45:H72),Упутство!$B$374:$N$473,8,FALSE),"") ->  | I72: =IFERROR(VLOOKUP(ROWS(I$45:I72),Упутство!$B$374:$N$473,9,FALSE),"") ->  | J72: =IFERROR(VLOOKUP(ROWS(J$45:J72),Упутство!$B$374:$N$473,10,FALSE),"") ->  | K72: =IFERROR(VLOOKUP(ROWS(K$45:K72),Упутство!$B$374:$N$473,11,FALSE),"") ->  | L72: =IFERROR(VLOOKUP(ROWS(L$45:L72),Упутство!$B$374:$N$473,12,FALSE),"") ->  | M72: =IFERROR(VLOOKUP(ROWS(M$45:M72),Упутство!$B$374:$N$473,13,FALSE),"") ->  | N72: 0 | O72: 0
A73: 29 | B73: =IFERROR(VLOOKUP(ROWS($B$45:B73),Упутство!$B$374:$D$473,3,FALSE),"") ->  | D73: =IFERROR(VLOOKUP(ROWS(D$45:D73),Упутство!$B$374:$N$473,4,FALSE),"") ->  | E73: =IFERROR(VLOOKUP(ROWS(E$45:E73),Упутство!$B$374:$N$473,5,FALSE),"") ->  | F73: =IFERROR(VLOOKUP(ROWS(F$45:F73),Упутство!$B$374:$N$473,6,FALSE),"") ->  | G73: =IFERROR(VLOOKUP(ROWS(G$45:G73),Упутство!$B$374:$N$473,7,FALSE),"") ->  | H73: =IFERROR(VLOOKUP(ROWS(H$45:H73),Упутство!$B$374:$N$473,8,FALSE),"") ->  | I73: =IFERROR(VLOOKUP(ROWS(I$45:I73),Упутство!$B$374:$N$473,9,FALSE),"") ->  | J73: =IFERROR(VLOOKUP(ROWS(J$45:J73),Упутство!$B$374:$N$473,10,FALSE),"") ->  | K73: =IFERROR(VLOOKUP(ROWS(K$45:K73),Упутство!$B$374:$N$473,11,FALSE),"") ->  | L73: =IFERROR(VLOOKUP(ROWS(L$45:L73),Упутство!$B$374:$N$473,12,FALSE),"") ->  | M73: =IFERROR(VLOOKUP(ROWS(M$45:M73),Упутство!$B$374:$N$473,13,FALSE),"") ->  | N73: 0 | O73: 0
A74: 30 | B74: =IFERROR(VLOOKUP(ROWS($B$45:B74),Упутство!$B$374:$D$473,3,FALSE),"") ->  | D74: =IFERROR(VLOOKUP(ROWS(D$45:D74),Упутство!$B$374:$N$473,4,FALSE),"") ->  | E74: =IFERROR(VLOOKUP(ROWS(E$45:E74),Упутство!$B$374:$N$473,5,FALSE),"") ->  | F74: =IFERROR(VLOOKUP(ROWS(F$45:F74),Упутство!$B$374:$N$473,6,FALSE),"") ->  | G74: =IFERROR(VLOOKUP(ROWS(G$45:G74),Упутство!$B$374:$N$473,7,FALSE),"") ->  | H74: =IFERROR(VLOOKUP(ROWS(H$45:H74),Упутство!$B$374:$N$473,8,FALSE),"") ->  | I74: =IFERROR(VLOOKUP(ROWS(I$45:I74),Упутство!$B$374:$N$473,9,FALSE),"") ->  | J74: =IFERROR(VLOOKUP(ROWS(J$45:J74),Упутство!$B$374:$N$473,10,FALSE),"") ->  | K74: =IFERROR(VLOOKUP(ROWS(K$45:K74),Упутство!$B$374:$N$473,11,FALSE),"") ->  | L74: =IFERROR(VLOOKUP(ROWS(L$45:L74),Упутство!$B$374:$N$473,12,FALSE),"") ->  | M74: =IFERROR(VLOOKUP(ROWS(M$45:M74),Упутство!$B$374:$N$473,13,FALSE),"") ->  | N74: 0 | O74: 0
A75: 31 | B75: =IFERROR(VLOOKUP(ROWS($B$45:B75),Упутство!$B$374:$D$473,3,FALSE),"") ->  | D75: =IFERROR(VLOOKUP(ROWS(D$45:D75),Упутство!$B$374:$N$473,4,FALSE),"") ->  | E75: =IFERROR(VLOOKUP(ROWS(E$45:E75),Упутство!$B$374:$N$473,5,FALSE),"") ->  | F75: =IFERROR(VLOOKUP(ROWS(F$45:F75),Упутство!$B$374:$N$473,6,FALSE),"") ->  | G75: =IFERROR(VLOOKUP(ROWS(G$45:G75),Упутство!$B$374:$N$473,7,FALSE),"") ->  | H75: =IFERROR(VLOOKUP(ROWS(H$45:H75),Упутство!$B$374:$N$473,8,FALSE),"") ->  | I75: =IFERROR(VLOOKUP(ROWS(I$45:I75),Упутство!$B$374:$N$473,9,FALSE),"") ->  | J75: =IFERROR(VLOOKUP(ROWS(J$45:J75),Упутство!$B$374:$N$473,10,FALSE),"") ->  | K75: =IFERROR(VLOOKUP(ROWS(K$45:K75),Упутство!$B$374:$N$473,11,FALSE),"") ->  | L75: =IFERROR(VLOOKUP(ROWS(L$45:L75),Упутство!$B$374:$N$473,12,FALSE),"") ->  | M75: =IFERROR(VLOOKUP(ROWS(M$45:M75),Упутство!$B$374:$N$473,13,FALSE),"") ->  | N75: 0 | O75: 0
A76: 32 | B76: =IFERROR(VLOOKUP(ROWS($B$45:B76),Упутство!$B$374:$D$473,3,FALSE),"") ->  | D76: =IFERROR(VLOOKUP(ROWS(D$45:D76),Упутство!$B$374:$N$473,4,FALSE),"") ->  | E76: =IFERROR(VLOOKUP(ROWS(E$45:E76),Упутство!$B$374:$N$473,5,FALSE),"") ->  | F76: =IFERROR(VLOOKUP(ROWS(F$45:F76),Упутство!$B$374:$N$473,6,FALSE),"") ->  | G76: =IFERROR(VLOOKUP(ROWS(G$45:G76),Упутство!$B$374:$N$473,7,FALSE),"") ->  | H76: =IFERROR(VLOOKUP(ROWS(H$45:H76),Упутство!$B$374:$N$473,8,FALSE),"") ->  | I76: =IFERROR(VLOOKUP(ROWS(I$45:I76),Упутство!$B$374:$N$473,9,FALSE),"") ->  | J76: =IFERROR(VLOOKUP(ROWS(J$45:J76),Упутство!$B$374:$N$473,10,FALSE),"") ->  | K76: =IFERROR(VLOOKUP(ROWS(K$45:K76),Упутство!$B$374:$N$473,11,FALSE),"") ->  | L76: =IFERROR(VLOOKUP(ROWS(L$45:L76),Упутство!$B$374:$N$473,12,FALSE),"") ->  | M76: =IFERROR(VLOOKUP(ROWS(M$45:M76),Упутство!$B$374:$N$473,13,FALSE),"") ->  | N76: 0 | O76: 0
A77: 33 | B77: =IFERROR(VLOOKUP(ROWS($B$45:B77),Упутство!$B$374:$D$473,3,FALSE),"") ->  | D77: =IFERROR(VLOOKUP(ROWS(D$45:D77),Упутство!$B$374:$N$473,4,FALSE),"") ->  | E77: =IFERROR(VLOOKUP(ROWS(E$45:E77),Упутство!$B$374:$N$473,5,FALSE),"") ->  | F77: =IFERROR(VLOOKUP(ROWS(F$45:F77),Упутство!$B$374:$N$473,6,FALSE),"") ->  | G77: =IFERROR(VLOOKUP(ROWS(G$45:G77),Упутство!$B$374:$N$473,7,FALSE),"") ->  | H77: =IFERROR(VLOOKUP(ROWS(H$45:H77),Упутство!$B$374:$N$473,8,FALSE),"") ->  | I77: =IFERROR(VLOOKUP(ROWS(I$45:I77),Упутство!$B$374:$N$473,9,FALSE),"") ->  | J77: =IFERROR(VLOOKUP(ROWS(J$45:J77),Упутство!$B$374:$N$473,10,FALSE),"") ->  | K77: =IFERROR(VLOOKUP(ROWS(K$45:K77),Упутство!$B$374:$N$473,11,FALSE),"") ->  | L77: =IFERROR(VLOOKUP(ROWS(L$45:L77),Упутство!$B$374:$N$473,12,FALSE),"") ->  | M77: =IFERROR(VLOOKUP(ROWS(M$45:M77),Упутство!$B$374:$N$473,13,FALSE),"") ->  | N77: 0 | O77: 0
A78: 34 | B78: =IFERROR(VLOOKUP(ROWS($B$45:B78),Упутство!$B$374:$D$473,3,FALSE),"") ->  | D78: =IFERROR(VLOOKUP(ROWS(D$45:D78),Упутство!$B$374:$N$473,4,FALSE),"") ->  | E78: =IFERROR(VLOOKUP(ROWS(E$45:E78),Упутство!$B$374:$N$473,5,FALSE),"") ->  | F78: =IFERROR(VLOOKUP(ROWS(F$45:F78),Упутство!$B$374:$N$473,6,FALSE),"") ->  | G78: =IFERROR(VLOOKUP(ROWS(G$45:G78),Упутство!$B$374:$N$473,7,FALSE),"") ->  | H78: =IFERROR(VLOOKUP(ROWS(H$45:H78),Упутство!$B$374:$N$473,8,FALSE),"") ->  | I78: =IFERROR(VLOOKUP(ROWS(I$45:I78),Упутство!$B$374:$N$473,9,FALSE),"") ->  | J78: =IFERROR(VLOOKUP(ROWS(J$45:J78),Упутство!$B$374:$N$473,10,FALSE),"") ->  | K78: =IFERROR(VLOOKUP(ROWS(K$45:K78),Упутство!$B$374:$N$473,11,FALSE),"") ->  | L78: =IFERROR(VLOOKUP(ROWS(L$45:L78),Упутство!$B$374:$N$473,12,FALSE),"") ->  | M78: =IFERROR(VLOOKUP(ROWS(M$45:M78),Упутство!$B$374:$N$473,13,FALSE),"") ->  | N78: 0 | O78: 0
A79: 35 | B79: =IFERROR(VLOOKUP(ROWS($B$45:B79),Упутство!$B$374:$D$473,3,FALSE),"") ->  | D79: =IFERROR(VLOOKUP(ROWS(D$45:D79),Упутство!$B$374:$N$473,4,FALSE),"") ->  | E79: =IFERROR(VLOOKUP(ROWS(E$45:E79),Упутство!$B$374:$N$473,5,FALSE),"") ->  | F79: =IFERROR(VLOOKUP(ROWS(F$45:F79),Упутство!$B$374:$N$473,6,FALSE),"") ->  | G79: =IFERROR(VLOOKUP(ROWS(G$45:G79),Упутство!$B$374:$N$473,7,FALSE),"") ->  | H79: =IFERROR(VLOOKUP(ROWS(H$45:H79),Упутство!$B$374:$N$473,8,FALSE),"") ->  | I79: =IFERROR(VLOOKUP(ROWS(I$45:I79),Упутство!$B$374:$N$473,9,FALSE),"") ->  | J79: =IFERROR(VLOOKUP(ROWS(J$45:J79),Упутство!$B$374:$N$473,10,FALSE),"") ->  | K79: =IFERROR(VLOOKUP(ROWS(K$45:K79),Упутство!$B$374:$N$473,11,FALSE),"") ->  | L79: =IFERROR(VLOOKUP(ROWS(L$45:L79),Упутство!$B$374:$N$473,12,FALSE),"") ->  | M79: =IFERROR(VLOOKUP(ROWS(M$45:M79),Упутство!$B$374:$N$473,13,FALSE),"") ->  | N79: 0 | O79: 0
A80: 36 | B80: =IFERROR(VLOOKUP(ROWS($B$45:B80),Упутство!$B$374:$D$473,3,FALSE),"") ->  | D80: =IFERROR(VLOOKUP(ROWS(D$45:D80),Упутство!$B$374:$N$473,4,FALSE),"") ->  | E80: =IFERROR(VLOOKUP(ROWS(E$45:E80),Упутство!$B$374:$N$473,5,FALSE),"") ->  | F80: =IFERROR(VLOOKUP(ROWS(F$45:F80),Упутство!$B$374:$N$473,6,FALSE),"") ->  | G80: =IFERROR(VLOOKUP(ROWS(G$45:G80),Упутство!$B$374:$N$473,7,FALSE),"") ->  | H80: =IFERROR(VLOOKUP(ROWS(H$45:H80),Упутство!$B$374:$N$473,8,FALSE),"") ->  | I80: =IFERROR(VLOOKUP(ROWS(I$45:I80),Упутство!$B$374:$N$473,9,FALSE),"") ->  | J80: =IFERROR(VLOOKUP(ROWS(J$45:J80),Упутство!$B$374:$N$473,10,FALSE),"") ->  | K80: =IFERROR(VLOOKUP(ROWS(K$45:K80),Упутство!$B$374:$N$473,11,FALSE),"") ->  | L80: =IFERROR(VLOOKUP(ROWS(L$45:L80),Упутство!$B$374:$N$473,12,FALSE),"") ->  | M80: =IFERROR(VLOOKUP(ROWS(M$45:M80),Упутство!$B$374:$N$473,13,FALSE),"") ->  | N80: 0 | O80: 0
A81: 37 | B81: =IFERROR(VLOOKUP(ROWS($B$45:B81),Упутство!$B$374:$D$473,3,FALSE),"") ->  | D81: =IFERROR(VLOOKUP(ROWS(D$45:D81),Упутство!$B$374:$N$473,4,FALSE),"") ->  | E81: =IFERROR(VLOOKUP(ROWS(E$45:E81),Упутство!$B$374:$N$473,5,FALSE),"") ->  | F81: =IFERROR(VLOOKUP(ROWS(F$45:F81),Упутство!$B$374:$N$473,6,FALSE),"") ->  | G81: =IFERROR(VLOOKUP(ROWS(G$45:G81),Упутство!$B$374:$N$473,7,FALSE),"") ->  | H81: =IFERROR(VLOOKUP(ROWS(H$45:H81),Упутство!$B$374:$N$473,8,FALSE),"") ->  | I81: =IFERROR(VLOOKUP(ROWS(I$45:I81),Упутство!$B$374:$N$473,9,FALSE),"") ->  | J81: =IFERROR(VLOOKUP(ROWS(J$45:J81),Упутство!$B$374:$N$473,10,FALSE),"") ->  | K81: =IFERROR(VLOOKUP(ROWS(K$45:K81),Упутство!$B$374:$N$473,11,FALSE),"") ->  | L81: =IFERROR(VLOOKUP(ROWS(L$45:L81),Упутство!$B$374:$N$473,12,FALSE),"") ->  | M81: =IFERROR(VLOOKUP(ROWS(M$45:M81),Упутство!$B$374:$N$473,13,FALSE),"") ->  | N81: 0 | O81: 0
A82: 38 | B82: =IFERROR(VLOOKUP(ROWS($B$45:B82),Упутство!$B$374:$D$473,3,FALSE),"") ->  | D82: =IFERROR(VLOOKUP(ROWS(D$45:D82),Упутство!$B$374:$N$473,4,FALSE),"") ->  | E82: =IFERROR(VLOOKUP(ROWS(E$45:E82),Упутство!$B$374:$N$473,5,FALSE),"") ->  | F82: =IFERROR(VLOOKUP(ROWS(F$45:F82),Упутство!$B$374:$N$473,6,FALSE),"") ->  | G82: =IFERROR(VLOOKUP(ROWS(G$45:G82),Упутство!$B$374:$N$473,7,FALSE),"") ->  | H82: =IFERROR(VLOOKUP(ROWS(H$45:H82),Упутство!$B$374:$N$473,8,FALSE),"") ->  | I82: =IFERROR(VLOOKUP(ROWS(I$45:I82),Упутство!$B$374:$N$473,9,FALSE),"") ->  | J82: =IFERROR(VLOOKUP(ROWS(J$45:J82),Упутство!$B$374:$N$473,10,FALSE),"") ->  | K82: =IFERROR(VLOOKUP(ROWS(K$45:K82),Упутство!$B$374:$N$473,11,FALSE),"") ->  | L82: =IFERROR(VLOOKUP(ROWS(L$45:L82),Упутство!$B$374:$N$473,12,FALSE),"") ->  | M82: =IFERROR(VLOOKUP(ROWS(M$45:M82),Упутство!$B$374:$N$473,13,FALSE),"") ->  | N82: 0 | O82: 0
A83: 39 | B83: =IFERROR(VLOOKUP(ROWS($B$45:B83),Упутство!$B$374:$D$473,3,FALSE),"") ->  | D83: =IFERROR(VLOOKUP(ROWS(D$45:D83),Упутство!$B$374:$N$473,4,FALSE),"") ->  | E83: =IFERROR(VLOOKUP(ROWS(E$45:E83),Упутство!$B$374:$N$473,5,FALSE),"") ->  | F83: =IFERROR(VLOOKUP(ROWS(F$45:F83),Упутство!$B$374:$N$473,6,FALSE),"") ->  | G83: =IFERROR(VLOOKUP(ROWS(G$45:G83),Упутство!$B$374:$N$473,7,FALSE),"") ->  | H83: =IFERROR(VLOOKUP(ROWS(H$45:H83),Упутство!$B$374:$N$473,8,FALSE),"") ->  | I83: =IFERROR(VLOOKUP(ROWS(I$45:I83),Упутство!$B$374:$N$473,9,FALSE),"") ->  | J83: =IFERROR(VLOOKUP(ROWS(J$45:J83),Упутство!$B$374:$N$473,10,FALSE),"") ->  | K83: =IFERROR(VLOOKUP(ROWS(K$45:K83),Упутство!$B$374:$N$473,11,FALSE),"") ->  | L83: =IFERROR(VLOOKUP(ROWS(L$45:L83),Упутство!$B$374:$N$473,12,FALSE),"") ->  | M83: =IFERROR(VLOOKUP(ROWS(M$45:M83),Упутство!$B$374:$N$473,13,FALSE),"") ->  | N83: 0 | O83: 0
A84: 40 | B84: =IFERROR(VLOOKUP(ROWS($B$45:B84),Упутство!$B$374:$D$473,3,FALSE),"") ->  | D84: =IFERROR(VLOOKUP(ROWS(D$45:D84),Упутство!$B$374:$N$473,4,FALSE),"") ->  | E84: =IFERROR(VLOOKUP(ROWS(E$45:E84),Упутство!$B$374:$N$473,5,FALSE),"") ->  | F84: =IFERROR(VLOOKUP(ROWS(F$45:F84),Упутство!$B$374:$N$473,6,FALSE),"") ->  | G84: =IFERROR(VLOOKUP(ROWS(G$45:G84),Упутство!$B$374:$N$473,7,FALSE),"") ->  | H84: =IFERROR(VLOOKUP(ROWS(H$45:H84),Упутство!$B$374:$N$473,8,FALSE),"") ->  | I84: =IFERROR(VLOOKUP(ROWS(I$45:I84),Упутство!$B$374:$N$473,9,FALSE),"") ->  | J84: =IFERROR(VLOOKUP(ROWS(J$45:J84),Упутство!$B$374:$N$473,10,FALSE),"") ->  | K84: =IFERROR(VLOOKUP(ROWS(K$45:K84),Упутство!$B$374:$N$473,11,FALSE),"") ->  | L84: =IFERROR(VLOOKUP(ROWS(L$45:L84),Упутство!$B$374:$N$473,12,FALSE),"") ->  | M84: =IFERROR(VLOOKUP(ROWS(M$45:M84),Упутство!$B$374:$N$473,13,FALSE),"") ->  | N84: 0 | O84: 0
A85: 41 | B85: =IFERROR(VLOOKUP(ROWS($B$45:B85),Упутство!$B$374:$D$473,3,FALSE),"") ->  | D85: =IFERROR(VLOOKUP(ROWS(D$45:D85),Упутство!$B$374:$N$473,4,FALSE),"") ->  | E85: =IFERROR(VLOOKUP(ROWS(E$45:E85),Упутство!$B$374:$N$473,5,FALSE),"") ->  | F85: =IFERROR(VLOOKUP(ROWS(F$45:F85),Упутство!$B$374:$N$473,6,FALSE),"") ->  | G85: =IFERROR(VLOOKUP(ROWS(G$45:G85),Упутство!$B$374:$N$473,7,FALSE),"") ->  | H85: =IFERROR(VLOOKUP(ROWS(H$45:H85),Упутство!$B$374:$N$473,8,FALSE),"") ->  | I85: =IFERROR(VLOOKUP(ROWS(I$45:I85),Упутство!$B$374:$N$473,9,FALSE),"") ->  | J85: =IFERROR(VLOOKUP(ROWS(J$45:J85),Упутство!$B$374:$N$473,10,FALSE),"") ->  | K85: =IFERROR(VLOOKUP(ROWS(K$45:K85),Упутство!$B$374:$N$473,11,FALSE),"") ->  | L85: =IFERROR(VLOOKUP(ROWS(L$45:L85),Упутство!$B$374:$N$473,12,FALSE),"") ->  | M85: =IFERROR(VLOOKUP(ROWS(M$45:M85),Упутство!$B$374:$N$473,13,FALSE),"") ->  | N85: 0 | O85: 0
A86: 42 | B86: =IFERROR(VLOOKUP(ROWS($B$45:B86),Упутство!$B$374:$D$473,3,FALSE),"") ->  | D86: =IFERROR(VLOOKUP(ROWS(D$45:D86),Упутство!$B$374:$N$473,4,FALSE),"") ->  | E86: =IFERROR(VLOOKUP(ROWS(E$45:E86),Упутство!$B$374:$N$473,5,FALSE),"") ->  | F86: =IFERROR(VLOOKUP(ROWS(F$45:F86),Упутство!$B$374:$N$473,6,FALSE),"") ->  | G86: =IFERROR(VLOOKUP(ROWS(G$45:G86),Упутство!$B$374:$N$473,7,FALSE),"") ->  | H86: =IFERROR(VLOOKUP(ROWS(H$45:H86),Упутство!$B$374:$N$473,8,FALSE),"") ->  | I86: =IFERROR(VLOOKUP(ROWS(I$45:I86),Упутство!$B$374:$N$473,9,FALSE),"") ->  | J86: =IFERROR(VLOOKUP(ROWS(J$45:J86),Упутство!$B$374:$N$473,10,FALSE),"") ->  | K86: =IFERROR(VLOOKUP(ROWS(K$45:K86),Упутство!$B$374:$N$473,11,FALSE),"") ->  | L86: =IFERROR(VLOOKUP(ROWS(L$45:L86),Упутство!$B$374:$N$473,12,FALSE),"") ->  | M86: =IFERROR(VLOOKUP(ROWS(M$45:M86),Упутство!$B$374:$N$473,13,FALSE),"") ->  | N86: 0 | O86: 0
A87: 43 | B87: =IFERROR(VLOOKUP(ROWS($B$45:B87),Упутство!$B$374:$D$473,3,FALSE),"") ->  | D87: =IFERROR(VLOOKUP(ROWS(D$45:D87),Упутство!$B$374:$N$473,4,FALSE),"") ->  | E87: =IFERROR(VLOOKUP(ROWS(E$45:E87),Упутство!$B$374:$N$473,5,FALSE),"") ->  | F87: =IFERROR(VLOOKUP(ROWS(F$45:F87),Упутство!$B$374:$N$473,6,FALSE),"") ->  | G87: =IFERROR(VLOOKUP(ROWS(G$45:G87),Упутство!$B$374:$N$473,7,FALSE),"") ->  | H87: =IFERROR(VLOOKUP(ROWS(H$45:H87),Упутство!$B$374:$N$473,8,FALSE),"") ->  | I87: =IFERROR(VLOOKUP(ROWS(I$45:I87),Упутство!$B$374:$N$473,9,FALSE),"") ->  | J87: =IFERROR(VLOOKUP(ROWS(J$45:J87),Упутство!$B$374:$N$473,10,FALSE),"") ->  | K87: =IFERROR(VLOOKUP(ROWS(K$45:K87),Упутство!$B$374:$N$473,11,FALSE),"") ->  | L87: =IFERROR(VLOOKUP(ROWS(L$45:L87),Упутство!$B$374:$N$473,12,FALSE),"") ->  | M87: =IFERROR(VLOOKUP(ROWS(M$45:M87),Упутство!$B$374:$N$473,13,FALSE),"") ->  | N87: 0 | O87: 0
A88: 44 | B88: =IFERROR(VLOOKUP(ROWS($B$45:B88),Упутство!$B$374:$D$473,3,FALSE),"") ->  | D88: =IFERROR(VLOOKUP(ROWS(D$45:D88),Упутство!$B$374:$N$473,4,FALSE),"") ->  | E88: =IFERROR(VLOOKUP(ROWS(E$45:E88),Упутство!$B$374:$N$473,5,FALSE),"") ->  | F88: =IFERROR(VLOOKUP(ROWS(F$45:F88),Упутство!$B$374:$N$473,6,FALSE),"") ->  | G88: =IFERROR(VLOOKUP(ROWS(G$45:G88),Упутство!$B$374:$N$473,7,FALSE),"") ->  | H88: =IFERROR(VLOOKUP(ROWS(H$45:H88),Упутство!$B$374:$N$473,8,FALSE),"") ->  | I88: =IFERROR(VLOOKUP(ROWS(I$45:I88),Упутство!$B$374:$N$473,9,FALSE),"") ->  | J88: =IFERROR(VLOOKUP(ROWS(J$45:J88),Упутство!$B$374:$N$473,10,FALSE),"") ->  | K88: =IFERROR(VLOOKUP(ROWS(K$45:K88),Упутство!$B$374:$N$473,11,FALSE),"") ->  | L88: =IFERROR(VLOOKUP(ROWS(L$45:L88),Упутство!$B$374:$N$473,12,FALSE),"") ->  | M88: =IFERROR(VLOOKUP(ROWS(M$45:M88),Упутство!$B$374:$N$473,13,FALSE),"") ->  | N88: 0 | O88: 0
A89: 45 | B89: =IFERROR(VLOOKUP(ROWS($B$45:B89),Упутство!$B$374:$D$473,3,FALSE),"") ->  | D89: =IFERROR(VLOOKUP(ROWS(D$45:D89),Упутство!$B$374:$N$473,4,FALSE),"") ->  | E89: =IFERROR(VLOOKUP(ROWS(E$45:E89),Упутство!$B$374:$N$473,5,FALSE),"") ->  | F89: =IFERROR(VLOOKUP(ROWS(F$45:F89),Упутство!$B$374:$N$473,6,FALSE),"") ->  | G89: =IFERROR(VLOOKUP(ROWS(G$45:G89),Упутство!$B$374:$N$473,7,FALSE),"") ->  | H89: =IFERROR(VLOOKUP(ROWS(H$45:H89),Упутство!$B$374:$N$473,8,FALSE),"") ->  | I89: =IFERROR(VLOOKUP(ROWS(I$45:I89),Упутство!$B$374:$N$473,9,FALSE),"") ->  | J89: =IFERROR(VLOOKUP(ROWS(J$45:J89),Упутство!$B$374:$N$473,10,FALSE),"") ->  | K89: =IFERROR(VLOOKUP(ROWS(K$45:K89),Упутство!$B$374:$N$473,11,FALSE),"") ->  | L89: =IFERROR(VLOOKUP(ROWS(L$45:L89),Упутство!$B$374:$N$473,12,FALSE),"") ->  | M89: =IFERROR(VLOOKUP(ROWS(M$45:M89),Упутство!$B$374:$N$473,13,FALSE),"") ->  | N89: 0 | O89: 0
A90: 46 | B90: =IFERROR(VLOOKUP(ROWS($B$45:B90),Упутство!$B$374:$D$473,3,FALSE),"") ->  | D90: =IFERROR(VLOOKUP(ROWS(D$45:D90),Упутство!$B$374:$N$473,4,FALSE),"") ->  | E90: =IFERROR(VLOOKUP(ROWS(E$45:E90),Упутство!$B$374:$N$473,5,FALSE),"") ->  | F90: =IFERROR(VLOOKUP(ROWS(F$45:F90),Упутство!$B$374:$N$473,6,FALSE),"") ->  | G90: =IFERROR(VLOOKUP(ROWS(G$45:G90),Упутство!$B$374:$N$473,7,FALSE),"") ->  | H90: =IFERROR(VLOOKUP(ROWS(H$45:H90),Упутство!$B$374:$N$473,8,FALSE),"") ->  | I90: =IFERROR(VLOOKUP(ROWS(I$45:I90),Упутство!$B$374:$N$473,9,FALSE),"") ->  | J90: =IFERROR(VLOOKUP(ROWS(J$45:J90),Упутство!$B$374:$N$473,10,FALSE),"") ->  | K90: =IFERROR(VLOOKUP(ROWS(K$45:K90),Упутство!$B$374:$N$473,11,FALSE),"") ->  | L90: =IFERROR(VLOOKUP(ROWS(L$45:L90),Упутство!$B$374:$N$473,12,FALSE),"") ->  | M90: =IFERROR(VLOOKUP(ROWS(M$45:M90),Упутство!$B$374:$N$473,13,FALSE),"") ->  | N90: 0 | O90: 0
A91: 47 | B91: =IFERROR(VLOOKUP(ROWS($B$45:B91),Упутство!$B$374:$D$473,3,FALSE),"") ->  | D91: =IFERROR(VLOOKUP(ROWS(D$45:D91),Упутство!$B$374:$N$473,4,FALSE),"") ->  | E91: =IFERROR(VLOOKUP(ROWS(E$45:E91),Упутство!$B$374:$N$473,5,FALSE),"") ->  | F91: =IFERROR(VLOOKUP(ROWS(F$45:F91),Упутство!$B$374:$N$473,6,FALSE),"") ->  | G91: =IFERROR(VLOOKUP(ROWS(G$45:G91),Упутство!$B$374:$N$473,7,FALSE),"") ->  | H91: =IFERROR(VLOOKUP(ROWS(H$45:H91),Упутство!$B$374:$N$473,8,FALSE),"") ->  | I91: =IFERROR(VLOOKUP(ROWS(I$45:I91),Упутство!$B$374:$N$473,9,FALSE),"") ->  | J91: =IFERROR(VLOOKUP(ROWS(J$45:J91),Упутство!$B$374:$N$473,10,FALSE),"") ->  | K91: =IFERROR(VLOOKUP(ROWS(K$45:K91),Упутство!$B$374:$N$473,11,FALSE),"") ->  | L91: =IFERROR(VLOOKUP(ROWS(L$45:L91),Упутство!$B$374:$N$473,12,FALSE),"") ->  | M91: =IFERROR(VLOOKUP(ROWS(M$45:M91),Упутство!$B$374:$N$473,13,FALSE),"") ->  | N91: 0 | O91: 0
A92: 48 | B92: =IFERROR(VLOOKUP(ROWS($B$45:B92),Упутство!$B$374:$D$473,3,FALSE),"") ->  | D92: =IFERROR(VLOOKUP(ROWS(D$45:D92),Упутство!$B$374:$N$473,4,FALSE),"") ->  | E92: =IFERROR(VLOOKUP(ROWS(E$45:E92),Упутство!$B$374:$N$473,5,FALSE),"") ->  | F92: =IFERROR(VLOOKUP(ROWS(F$45:F92),Упутство!$B$374:$N$473,6,FALSE),"") ->  | G92: =IFERROR(VLOOKUP(ROWS(G$45:G92),Упутство!$B$374:$N$473,7,FALSE),"") ->  | H92: =IFERROR(VLOOKUP(ROWS(H$45:H92),Упутство!$B$374:$N$473,8,FALSE),"") ->  | I92: =IFERROR(VLOOKUP(ROWS(I$45:I92),Упутство!$B$374:$N$473,9,FALSE),"") ->  | J92: =IFERROR(VLOOKUP(ROWS(J$45:J92),Упутство!$B$374:$N$473,10,FALSE),"") ->  | K92: =IFERROR(VLOOKUP(ROWS(K$45:K92),Упутство!$B$374:$N$473,11,FALSE),"") ->  | L92: =IFERROR(VLOOKUP(ROWS(L$45:L92),Упутство!$B$374:$N$473,12,FALSE),"") ->  | M92: =IFERROR(VLOOKUP(ROWS(M$45:M92),Упутство!$B$374:$N$473,13,FALSE),"") ->  | N92: 0 | O92: 0
A93: 49 | B93: =IFERROR(VLOOKUP(ROWS($B$45:B93),Упутство!$B$374:$D$473,3,FALSE),"") ->  | D93: =IFERROR(VLOOKUP(ROWS(D$45:D93),Упутство!$B$374:$N$473,4,FALSE),"") ->  | E93: =IFERROR(VLOOKUP(ROWS(E$45:E93),Упутство!$B$374:$N$473,5,FALSE),"") ->  | F93: =IFERROR(VLOOKUP(ROWS(F$45:F93),Упутство!$B$374:$N$473,6,FALSE),"") ->  | G93: =IFERROR(VLOOKUP(ROWS(G$45:G93),Упутство!$B$374:$N$473,7,FALSE),"") ->  | H93: =IFERROR(VLOOKUP(ROWS(H$45:H93),Упутство!$B$374:$N$473,8,FALSE),"") ->  | I93: =IFERROR(VLOOKUP(ROWS(I$45:I93),Упутство!$B$374:$N$473,9,FALSE),"") ->  | J93: =IFERROR(VLOOKUP(ROWS(J$45:J93),Упутство!$B$374:$N$473,10,FALSE),"") ->  | K93: =IFERROR(VLOOKUP(ROWS(K$45:K93),Упутство!$B$374:$N$473,11,FALSE),"") ->  | L93: =IFERROR(VLOOKUP(ROWS(L$45:L93),Упутство!$B$374:$N$473,12,FALSE),"") ->  | M93: =IFERROR(VLOOKUP(ROWS(M$45:M93),Упутство!$B$374:$N$473,13,FALSE),"") ->  | N93: 0 | O93: 0
A94: 50 | B94: =IFERROR(VLOOKUP(ROWS($B$45:B94),Упутство!$B$374:$D$473,3,FALSE),"") ->  | D94: =IFERROR(VLOOKUP(ROWS(D$45:D94),Упутство!$B$374:$N$473,4,FALSE),"") ->  | E94: =IFERROR(VLOOKUP(ROWS(E$45:E94),Упутство!$B$374:$N$473,5,FALSE),"") ->  | F94: =IFERROR(VLOOKUP(ROWS(F$45:F94),Упутство!$B$374:$N$473,6,FALSE),"") ->  | G94: =IFERROR(VLOOKUP(ROWS(G$45:G94),Упутство!$B$374:$N$473,7,FALSE),"") ->  | H94: =IFERROR(VLOOKUP(ROWS(H$45:H94),Упутство!$B$374:$N$473,8,FALSE),"") ->  | I94: =IFERROR(VLOOKUP(ROWS(I$45:I94),Упутство!$B$374:$N$473,9,FALSE),"") ->  | J94: =IFERROR(VLOOKUP(ROWS(J$45:J94),Упутство!$B$374:$N$473,10,FALSE),"") ->  | K94: =IFERROR(VLOOKUP(ROWS(K$45:K94),Упутство!$B$374:$N$473,11,FALSE),"") ->  | L94: =IFERROR(VLOOKUP(ROWS(L$45:L94),Упутство!$B$374:$N$473,12,FALSE),"") ->  | M94: =IFERROR(VLOOKUP(ROWS(M$45:M94),Упутство!$B$374:$N$473,13,FALSE),"") ->  | N94: 0 | O94: 0
A95: 51 | B95: =IFERROR(VLOOKUP(ROWS($B$45:B95),Упутство!$B$374:$D$473,3,FALSE),"") ->  | D95: =IFERROR(VLOOKUP(ROWS(D$45:D95),Упутство!$B$374:$N$473,4,FALSE),"") ->  | E95: =IFERROR(VLOOKUP(ROWS(E$45:E95),Упутство!$B$374:$N$473,5,FALSE),"") ->  | F95: =IFERROR(VLOOKUP(ROWS(F$45:F95),Упутство!$B$374:$N$473,6,FALSE),"") ->  | G95: =IFERROR(VLOOKUP(ROWS(G$45:G95),Упутство!$B$374:$N$473,7,FALSE),"") ->  | H95: =IFERROR(VLOOKUP(ROWS(H$45:H95),Упутство!$B$374:$N$473,8,FALSE),"") ->  | I95: =IFERROR(VLOOKUP(ROWS(I$45:I95),Упутство!$B$374:$N$473,9,FALSE),"") ->  | J95: =IFERROR(VLOOKUP(ROWS(J$45:J95),Упутство!$B$374:$N$473,10,FALSE),"") ->  | K95: =IFERROR(VLOOKUP(ROWS(K$45:K95),Упутство!$B$374:$N$473,11,FALSE),"") ->  | L95: =IFERROR(VLOOKUP(ROWS(L$45:L95),Упутство!$B$374:$N$473,12,FALSE),"") ->  | M95: =IFERROR(VLOOKUP(ROWS(M$45:M95),Упутство!$B$374:$N$473,13,FALSE),"") ->  | N95: 0 | O95: 0
A96: 52 | B96: =IFERROR(VLOOKUP(ROWS($B$45:B96),Упутство!$B$374:$D$473,3,FALSE),"") ->  | D96: =IFERROR(VLOOKUP(ROWS(D$45:D96),Упутство!$B$374:$N$473,4,FALSE),"") ->  | E96: =IFERROR(VLOOKUP(ROWS(E$45:E96),Упутство!$B$374:$N$473,5,FALSE),"") ->  | F96: =IFERROR(VLOOKUP(ROWS(F$45:F96),Упутство!$B$374:$N$473,6,FALSE),"") ->  | G96: =IFERROR(VLOOKUP(ROWS(G$45:G96),Упутство!$B$374:$N$473,7,FALSE),"") ->  | H96: =IFERROR(VLOOKUP(ROWS(H$45:H96),Упутство!$B$374:$N$473,8,FALSE),"") ->  | I96: =IFERROR(VLOOKUP(ROWS(I$45:I96),Упутство!$B$374:$N$473,9,FALSE),"") ->  | J96: =IFERROR(VLOOKUP(ROWS(J$45:J96),Упутство!$B$374:$N$473,10,FALSE),"") ->  | K96: =IFERROR(VLOOKUP(ROWS(K$45:K96),Упутство!$B$374:$N$473,11,FALSE),"") ->  | L96: =IFERROR(VLOOKUP(ROWS(L$45:L96),Упутство!$B$374:$N$473,12,FALSE),"") ->  | M96: =IFERROR(VLOOKUP(ROWS(M$45:M96),Упутство!$B$374:$N$473,13,FALSE),"") ->  | N96: 0 | O96: 0
A97: УКУПНО ЗА: | C97: =$D$4 -> Програм 15. Опште услуге локалне самоуправе | D97: =SUM(D45:D96) -> 3,750,000 | E97: 1,748,000 | F97: 1,502,000 | G97: 2,507,500 | H97: 1,760,000 | I97: 1,510,000 | J97: 1,500,000 | K97: 0 | L97: 1,500,000 | M97: 0 | N97: 4,760,000 | O97: 1,510,000
A99: Рбр. | B99: Извори финансирања програма | D99: Вредност у базној години (2015) | F99: Очекивана вредност у 2016. години | H99: Вредност у 2017. години | J99: Вредност у 2018. години | L99: Вредност у 2019. години | N99: Укупно (2017-2019)
A100: 1 | B100: =IFERROR(VLOOKUP(ROWS($B$100:B100),Упутство!$FQ$1789:$FX$1805,2,FALSE),"") -> 01 - Приходи из буџета | D100: =IFERROR(VLOOKUP(ROWS($D$100:D100),Упутство!$FQ$1789:$FY$1805,5,FALSE),"") -> 3,750,000 | F100: =IFERROR(VLOOKUP(ROWS($F$100:F100),Упутство!$FQ$1789:$FY$1805,6,FALSE),"") -> 1,502,000 | H100: =IFERROR(VLOOKUP(ROWS($H$100:H100),Упутство!$FQ$1789:$FY$1805,7,FALSE),"") -> 1,760,000 | J100: =IFERROR(VLOOKUP(ROWS($J$100:J100),Упутство!$FQ$1789:$FY$1805,8,FALSE),"") -> 1,500,000 | L100: =IFERROR(VLOOKUP(ROWS($L$100:L100),Упутство!$FQ$1789:$FY$1805,9,FALSE),"") -> 1,500,000 | N100: =SUM(H100,J100,L100) -> 4,760,000
A101: 2 | B101: =IFERROR(VLOOKUP(ROWS($B$100:B101),Упутство!$FQ$1789:$FX$1805,2,FALSE),"") -> 13 - Нераспоређени вишак прихода из ранијих година | D101: =IFERROR(VLOOKUP(ROWS($D$100:D101),Упутство!$FQ$1789:$FY$1805,5,FALSE),"") -> 1,748,000 | F101: =IFERROR(VLOOKUP(ROWS($F$100:F101),Упутство!$FQ$1789:$FY$1805,6,FALSE),"") -> 2,507,500 | H101: =IFERROR(VLOOKUP(ROWS($H$100:H101),Упутство!$FQ$1789:$FY$1805,7,FALSE),"") -> 1,510,000 | J101: =IFERROR(VLOOKUP(ROWS($J$100:J101),Упутство!$FQ$1789:$FY$1805,8,FALSE),"") -> 0 | L101: =IFERROR(VLOOKUP(ROWS($L$100:L101),Упутство!$FQ$1789:$FY$1805,9,FALSE),"") -> 0 | N101: =SUM(H101,J101,L101) -> 1,510,000
A102: 3 | B102: =IFERROR(VLOOKUP(ROWS($B$100:B102),Упутство!$FQ$1789:$FX$1805,2,FALSE),"") ->  | D102: =IFERROR(VLOOKUP(ROWS($D$100:D102),Упутство!$FQ$1789:$FY$1805,5,FALSE),"") ->  | F102: =IFERROR(VLOOKUP(ROWS($F$100:F102),Упутство!$FQ$1789:$FY$1805,6,FALSE),"") ->  | H102: =IFERROR(VLOOKUP(ROWS($H$100:H102),Упутство!$FQ$1789:$FY$1805,7,FALSE),"") ->  | J102: =IFERROR(VLOOKUP(ROWS($J$100:J102),Упутство!$FQ$1789:$FY$1805,8,FALSE),"") ->  | L102: =IFERROR(VLOOKUP(ROWS($L$100:L102),Упутство!$FQ$1789:$FY$1805,9,FALSE),"") ->  | N102: 0
A103: 4 | B103: =IFERROR(VLOOKUP(ROWS($B$100:B103),Упутство!$FQ$1789:$FX$1805,2,FALSE),"") ->  | D103: =IFERROR(VLOOKUP(ROWS($D$100:D103),Упутство!$FQ$1789:$FY$1805,5,FALSE),"") ->  | F103: =IFERROR(VLOOKUP(ROWS($F$100:F103),Упутство!$FQ$1789:$FY$1805,6,FALSE),"") ->  | H103: =IFERROR(VLOOKUP(ROWS($H$100:H103),Упутство!$FQ$1789:$FY$1805,7,FALSE),"") ->  | J103: =IFERROR(VLOOKUP(ROWS($J$100:J103),Упутство!$FQ$1789:$FY$1805,8,FALSE),"") ->  | L103: =IFERROR(VLOOKUP(ROWS($L$100:L103),Упутство!$FQ$1789:$FY$1805,9,FALSE),"") ->  | N103: 0
A104: 5 | B104: =IFERROR(VLOOKUP(ROWS($B$100:B104),Упутство!$FQ$1789:$FX$1805,2,FALSE),"") ->  | D104: =IFERROR(VLOOKUP(ROWS($D$100:D104),Упутство!$FQ$1789:$FY$1805,5,FALSE),"") ->  | F104: =IFERROR(VLOOKUP(ROWS($F$100:F104),Упутство!$FQ$1789:$FY$1805,6,FALSE),"") ->  | H104: =IFERROR(VLOOKUP(ROWS($H$100:H104),Упутство!$FQ$1789:$FY$1805,7,FALSE),"") ->  | J104: =IFERROR(VLOOKUP(ROWS($J$100:J104),Упутство!$FQ$1789:$FY$1805,8,FALSE),"") ->  | L104: =IFERROR(VLOOKUP(ROWS($L$100:L104),Упутство!$FQ$1789:$FY$1805,9,FALSE),"") ->  | N104: 0
A105: 6 | B105: =IFERROR(VLOOKUP(ROWS($B$100:B105),Упутство!$FQ$1789:$FX$1805,2,FALSE),"") ->  | D105: =IFERROR(VLOOKUP(ROWS($D$100:D105),Упутство!$FQ$1789:$FY$1805,5,FALSE),"") ->  | F105: =IFERROR(VLOOKUP(ROWS($F$100:F105),Упутство!$FQ$1789:$FY$1805,6,FALSE),"") ->  | H105: =IFERROR(VLOOKUP(ROWS($H$100:H105),Упутство!$FQ$1789:$FY$1805,7,FALSE),"") ->  | J105: =IFERROR(VLOOKUP(ROWS($J$100:J105),Упутство!$FQ$1789:$FY$1805,8,FALSE),"") ->  | L105: =IFERROR(VLOOKUP(ROWS($L$100:L105),Упутство!$FQ$1789:$FY$1805,9,FALSE),"") ->  | N105: 0
A106: 7 | B106: =IFERROR(VLOOKUP(ROWS($B$100:B106),Упутство!$FQ$1789:$FX$1805,2,FALSE),"") ->  | D106: =IFERROR(VLOOKUP(ROWS($D$100:D106),Упутство!$FQ$1789:$FY$1805,5,FALSE),"") ->  | F106: =IFERROR(VLOOKUP(ROWS($F$100:F106),Упутство!$FQ$1789:$FY$1805,6,FALSE),"") ->  | H106: =IFERROR(VLOOKUP(ROWS($H$100:H106),Упутство!$FQ$1789:$FY$1805,7,FALSE),"") ->  | J106: =IFERROR(VLOOKUP(ROWS($J$100:J106),Упутство!$FQ$1789:$FY$1805,8,FALSE),"") ->  | L106: =IFERROR(VLOOKUP(ROWS($L$100:L106),Упутство!$FQ$1789:$FY$1805,9,FALSE),"") ->  | N106: 0
A107: 8 | B107: =IFERROR(VLOOKUP(ROWS($B$100:B107),Упутство!$FQ$1789:$FX$1805,2,FALSE),"") ->  | D107: =IFERROR(VLOOKUP(ROWS($D$100:D107),Упутство!$FQ$1789:$FY$1805,5,FALSE),"") ->  | F107: =IFERROR(VLOOKUP(ROWS($F$100:F107),Упутство!$FQ$1789:$FY$1805,6,FALSE),"") ->  | H107: =IFERROR(VLOOKUP(ROWS($H$100:H107),Упутство!$FQ$1789:$FY$1805,7,FALSE),"") ->  | J107: =IFERROR(VLOOKUP(ROWS($J$100:J107),Упутство!$FQ$1789:$FY$1805,8,FALSE),"") ->  | L107: =IFERROR(VLOOKUP(ROWS($L$100:L107),Упутство!$FQ$1789:$FY$1805,9,FALSE),"") ->  | N107: 0
A108: 9 | B108: =IFERROR(VLOOKUP(ROWS($B$100:B108),Упутство!$FQ$1789:$FX$1805,2,FALSE),"") ->  | D108: =IFERROR(VLOOKUP(ROWS($D$100:D108),Упутство!$FQ$1789:$FY$1805,5,FALSE),"") ->  | F108: =IFERROR(VLOOKUP(ROWS($F$100:F108),Упутство!$FQ$1789:$FY$1805,6,FALSE),"") ->  | H108: =IFERROR(VLOOKUP(ROWS($H$100:H108),Упутство!$FQ$1789:$FY$1805,7,FALSE),"") ->  | J108: =IFERROR(VLOOKUP(ROWS($J$100:J108),Упутство!$FQ$1789:$FY$1805,8,FALSE),"") ->  | L108: =IFERROR(VLOOKUP(ROWS($L$100:L108),Упутство!$FQ$1789:$FY$1805,9,FALSE),"") ->  | N108: 0
A109: 10 | B109: =IFERROR(VLOOKUP(ROWS($B$100:B109),Упутство!$FQ$1789:$FX$1805,2,FALSE),"") ->  | D109: =IFERROR(VLOOKUP(ROWS($D$100:D109),Упутство!$FQ$1789:$FY$1805,5,FALSE),"") ->  | F109: =IFERROR(VLOOKUP(ROWS($F$100:F109),Упутство!$FQ$1789:$FY$1805,6,FALSE),"") ->  | H109: =IFERROR(VLOOKUP(ROWS($H$100:H109),Упутство!$FQ$1789:$FY$1805,7,FALSE),"") ->  | J109: =IFERROR(VLOOKUP(ROWS($J$100:J109),Упутство!$FQ$1789:$FY$1805,8,FALSE),"") ->  | L109: =IFERROR(VLOOKUP(ROWS($L$100:L109),Упутство!$FQ$1789:$FY$1805,9,FALSE),"") ->  | N109: 0
A110: 11 | B110: =IFERROR(VLOOKUP(ROWS($B$100:B110),Упутство!$FQ$1789:$FX$1805,2,FALSE),"") ->  | D110: =IFERROR(VLOOKUP(ROWS($D$100:D110),Упутство!$FQ$1789:$FY$1805,5,FALSE),"") ->  | F110: =IFERROR(VLOOKUP(ROWS($F$100:F110),Упутство!$FQ$1789:$FY$1805,6,FALSE),"") ->  | H110: =IFERROR(VLOOKUP(ROWS($H$100:H110),Упутство!$FQ$1789:$FY$1805,7,FALSE),"") ->  | J110: =IFERROR(VLOOKUP(ROWS($J$100:J110),Упутство!$FQ$1789:$FY$1805,8,FALSE),"") ->  | L110: =IFERROR(VLOOKUP(ROWS($L$100:L110),Упутство!$FQ$1789:$FY$1805,9,FALSE),"") ->  | N110: 0
A111: 12 | B111: =IFERROR(VLOOKUP(ROWS($B$100:B111),Упутство!$FQ$1789:$FX$1805,2,FALSE),"") ->  | D111: =IFERROR(VLOOKUP(ROWS($D$100:D111),Упутство!$FQ$1789:$FY$1805,5,FALSE),"") ->  | F111: =IFERROR(VLOOKUP(ROWS($F$100:F111),Упутство!$FQ$1789:$FY$1805,6,FALSE),"") ->  | H111: =IFERROR(VLOOKUP(ROWS($H$100:H111),Упутство!$FQ$1789:$FY$1805,7,FALSE),"") ->  | J111: =IFERROR(VLOOKUP(ROWS($J$100:J111),Упутство!$FQ$1789:$FY$1805,8,FALSE),"") ->  | L111: =IFERROR(VLOOKUP(ROWS($L$100:L111),Упутство!$FQ$1789:$FY$1805,9,FALSE),"") ->  | N111: 0
A112: 13 | B112: =IFERROR(VLOOKUP(ROWS($B$100:B112),Упутство!$FQ$1789:$FX$1805,2,FALSE),"") ->  | D112: =IFERROR(VLOOKUP(ROWS($D$100:D112),Упутство!$FQ$1789:$FY$1805,5,FALSE),"") ->  | F112: =IFERROR(VLOOKUP(ROWS($F$100:F112),Упутство!$FQ$1789:$FY$1805,6,FALSE),"") ->  | H112: =IFERROR(VLOOKUP(ROWS($H$100:H112),Упутство!$FQ$1789:$FY$1805,7,FALSE),"") ->  | J112: =IFERROR(VLOOKUP(ROWS($J$100:J112),Упутство!$FQ$1789:$FY$1805,8,FALSE),"") ->  | L112: =IFERROR(VLOOKUP(ROWS($L$100:L112),Упутство!$FQ$1789:$FY$1805,9,FALSE),"") ->  | N112: 0
A113: 14 | B113: =IFERROR(VLOOKUP(ROWS($B$100:B113),Упутство!$FQ$1789:$FX$1805,2,FALSE),"") ->  | D113: =IFERROR(VLOOKUP(ROWS($D$100:D113),Упутство!$FQ$1789:$FY$1805,5,FALSE),"") ->  | F113: =IFERROR(VLOOKUP(ROWS($F$100:F113),Упутство!$FQ$1789:$FY$1805,6,FALSE),"") ->  | H113: =IFERROR(VLOOKUP(ROWS($H$100:H113),Упутство!$FQ$1789:$FY$1805,7,FALSE),"") ->  | J113: =IFERROR(VLOOKUP(ROWS($J$100:J113),Упутство!$FQ$1789:$FY$1805,8,FALSE),"") ->  | L113: =IFERROR(VLOOKUP(ROWS($L$100:L113),Упутство!$FQ$1789:$FY$1805,9,FALSE),"") ->  | N113: 0
A114: 15 | B114: =IFERROR(VLOOKUP(ROWS($B$100:B114),Упутство!$FQ$1789:$FX$1805,2,FALSE),"") ->  | D114: =IFERROR(VLOOKUP(ROWS($D$100:D114),Упутство!$FQ$1789:$FY$1805,5,FALSE),"") ->  | F114: =IFERROR(VLOOKUP(ROWS($F$100:F114),Упутство!$FQ$1789:$FY$1805,6,FALSE),"") ->  | H114: =IFERROR(VLOOKUP(ROWS($H$100:H114),Упутство!$FQ$1789:$FY$1805,7,FALSE),"") ->  | J114: =IFERROR(VLOOKUP(ROWS($J$100:J114),Упутство!$FQ$1789:$FY$1805,8,FALSE),"") ->  | L114: =IFERROR(VLOOKUP(ROWS($L$100:L114),Упутство!$FQ$1789:$FY$1805,9,FALSE),"") ->  | N114: 0
A115: 16 | B115: =IFERROR(VLOOKUP(ROWS($B$100:B115),Упутство!$FQ$1789:$FX$1805,2,FALSE),"") ->  | D115: =IFERROR(VLOOKUP(ROWS($D$100:D115),Упутство!$FQ$1789:$FY$1805,5,FALSE),"") ->  | F115: =IFERROR(VLOOKUP(ROWS($F$100:F115),Упутство!$FQ$1789:$FY$1805,6,FALSE),"") ->  | H115: =IFERROR(VLOOKUP(ROWS($H$100:H115),Упутство!$FQ$1789:$FY$1805,7,FALSE),"") ->  | J115: =IFERROR(VLOOKUP(ROWS($J$100:J115),Упутство!$FQ$1789:$FY$1805,8,FALSE),"") ->  | L115: =IFERROR(VLOOKUP(ROWS($L$100:L115),Упутство!$FQ$1789:$FY$1805,9,FALSE),"") ->  | N115: 0
A116: 17 | B116: =IFERROR(VLOOKUP(ROWS($B$100:B116),Упутство!$FQ$1789:$FX$1805,2,FALSE),"") ->  | D116: =IFERROR(VLOOKUP(ROWS($D$100:D116),Упутство!$FQ$1789:$FY$1805,5,FALSE),"") ->  | F116: =IFERROR(VLOOKUP(ROWS($F$100:F116),Упутство!$FQ$1789:$FY$1805,6,FALSE),"") ->  | H116: =IFERROR(VLOOKUP(ROWS($H$100:H116),Упутство!$FQ$1789:$FY$1805,7,FALSE),"") ->  | J116: =IFERROR(VLOOKUP(ROWS($J$100:J116),Упутство!$FQ$1789:$FY$1805,8,FALSE),"") ->  | L116: =IFERROR(VLOOKUP(ROWS($L$100:L116),Упутство!$FQ$1789:$FY$1805,9,FALSE),"") ->  | N116: 0
A117: УКУПНО ЗА: | C117: =$D$4 -> Програм 15. Опште услуге локалне самоуправе | D117: =SUM(D100:E116) -> 5,498,000 | F117: =SUM(F100:G116) -> 4,009,500 | H117: =SUM(H100:I116) -> 3,270,000 | J117: =SUM(J100:K116) -> 1,500,000 | L117: =SUM(L100:M116) -> 1,500,000 | N117: =SUM(H117:M117) -> 6,270,000
A119: * | B119: 1-5 циља за сваки програм
A120: ** | B120: 1-3 индикатора за сваки циљ
M123: Одговорно лице
B125: Датум: | C125: 04.09.2017.

Sheet ПА-0002
A1: Обрасци за припрему програмског буџета | Z1: 2015 | AB1: 2016 | AD1: 2017 | AF1: 2018 | AH1: 2019 | AJ1: 2. ПРОГРАМСКА АКТИВНОСТ | AM1: =IF(A2=AJ1,""," - захтев за додатна средства") -> 
A2: 2. ПРОГРАМСКА АКТИВНОСТ | V2: =VLOOKUP($D$4,Упутство!$B$38:$C$54,2,FALSE) ->  | X2: suma | Y2: =$C$323&AM1&" ("&$D$7&")" -> 0 (Месна заједница Остојићево) | Z2: =$D$323 -> 3,750,000 | AA2: =$E$323 -> 1,748,000 | AB2: =$F$323 -> 1,502,000 | AC2: =$G$323 -> 2,507,500 | AD2: =$H$323 -> 1,760,000 | AE2: =$I$323 -> 1,510,000 | AF2: =$J$323 -> 1,500,000 | AG2: =$K$323 -> 0 | AH2: =$L$323 -> 1,500,000 | AI2: =$M$323 -> 0 | AJ2: 2. ПРОГРАМСКА АКТИВНОСТ - ЗАХТЕВ ЗА ДОДАТНА СРЕДСТВА
V3: =VLOOKUP($D$5,Упутство!$A$134:$B$205,2,FALSE) ->  | X3: izvori | Y3: =$B$326 -> 01 - Приходи из буџета | Z3: =$D$326 -> 3,750,000 | AB3: =$F$326 -> 1,502,000 | AD3: =$H$326 -> 1,760,000 | AF3: =$J$326 -> 1,500,000 | AH3: =$L$326 -> 1,500,000
A4: Програм коме припада: | D4: Програм 15 Локална самоуправа | V4: =VLOOKUP($B$16,Упутство!$A$218:$B$314,2,FALSE) ->  | Y4: =$B$327 -> 13 - Нераспоређени вишак прихода из ранијих година | Z4: =$D$327 -> 1,748,000 | AB4: =$F$327 -> 2,507,500 | AD4: =$H$327 -> 1,510,000 | AF4: =$J$327 -> 0 | AH4: =$L$327 -> 0
A5: Шифра и назив: | V5: =VLOOKUP($B$22,Упутство!$A$218:$B$314,2,FALSE) ->  | Y5: =$B$328 -> 0 | Z5: =$D$328 -> 0 | AB5: =$F$328 -> 0 | AD5: =$H$328 -> 0 | AF5: =$J$328 -> 0 | AH5: =$L$328 -> 0
A6: Функција: | D6: 160 - Опште јавне услуге некласификоване на другом месту | V6: =VLOOKUP($B$28,Упутство!$A$218:$B$314,2,FALSE) ->  | Y6: =$B$329 -> 0 | Z6: =$D$329 -> 0 | AB6: =$F$329 -> 0 | AD6: =$H$329 -> 0 | AF6: =$J$329 -> 0 | AH6: =$L$329 -> 0
A7: Назив организационе јединице/Буџетски корисник: | D7: Месна заједница Остојићево | V7: =VLOOKUP($B$34,Упутство!$A$218:$B$314,2,FALSE) ->  | Y7: =$B$330 -> 0 | Z7: =$D$330 -> 0 | AB7: =$F$330 -> 0 | AD7: =$H$330 -> 0 | AF7: =$J$330 -> 0 | AH7: =$L$330 -> 0
A8: Сврхa: | D8: Обезбеђење услова за остварење права грађана на лакши и бржи начин у ЈЛС | V8: =VLOOKUP($B$40,Упутство!$A$218:$B$314,2,FALSE) ->  | Y8: =$B$331 -> 0 | Z8: =$D$331 -> 0 | AB8: =$F$331 -> 0 | AD8: =$H$331 -> 0 | AF8: =$J$331 -> 0 | AH8: =$L$331 -> 0
A9: Основ: | D9: Закон о локалној самоуправи, Статут Месне заједнице | Y9: =$B$332 -> 0 | Z9: =$D$332 -> 0 | AB9: =$F$332 -> 0 | AD9: =$H$332 -> 0 | AF9: =$J$332 -> 0 | AH9: =$L$332 -> 0
A10: Опис: | D10: Задоволљење потреба и интереса локалног становништва, кроз очуванје и унапређенје квалитета живота у делу надлежности Месне заједнице | Y10: =$B$333 -> 0 | Z10: =$D$333 -> 0 | AB10: =$F$333 -> 0 | AD10: =$H$333 -> 0 | AF10: =$J$333 -> 0 | AH10: =$L$333 -> 0
A11: Мере и поглавље преговора о приступању ЕУ: | D11: (Анекс 3 Упутства за израду програмског буџета) релевантно само за Републику Србију) | Y11: =$B$334 -> 0 | Z11: =$D$334 -> 0 | AB11: =$F$334 -> 0 | AD11: =$H$334 -> 0 | AF11: =$J$334 -> 0 | AH11: =$L$334 -> 0
A12: Одговорно лице за спровођење прог. aктивности: | D12: Јосип Чешљар, председник Савета Месне заједнице Остојићево | Y12: =$B$335 -> 0 | Z12: =$D$335 -> 0 | AB12: =$F$335 -> 0 | AD12: =$H$335 -> 0 | AF12: =$J$335 -> 0 | AH12: =$L$335 -> 0
Y13: =$B$336 -> 0 | Z13: =$D$336 -> 0 | AB13: =$F$336 -> 0 | AD13: =$H$336 -> 0 | AF13: =$J$336 -> 0 | AH13: =$L$336 -> 0
B14: Циљ* | D14: Индикатори** | Y14: =$B$337 -> 0 | Z14: =$D$337 -> 0 | AB14: =$F$337 -> 0 | AD14: =$H$337 -> 0 | AF14: =$J$337 -> 0 | AH14: =$L$337 -> 0
D15: Назив индикатора | G15: Вредност у базној години (2015) | H15: Очекивана вредност у 2016. години | I15: Циљана вредност у 2017. години | J15: Циљана вредност у 2018. години | K15: Циљана вредност у 2019. години | L15: Извор верификације | Y15: =$B$338 -> 0 | Z15: =$D$338 -> 0 | AB15: =$F$338 -> 0 | AD15: =$H$338 -> 0 | AF15: =$J$338 -> 0 | AH15: =$L$338 -> 0
A16: 1 | B16: Обезбеђење задовољавање потреба и интереса локалног становништва деловањем месних заједница | D16: Степен остварења финансијских планова месних заједница | G16: 70% | H16: 87% | I16: 87% | J16: 87% | K16: 87% | L16: Kњиговодствена евиденција Месне заједнице | Y16: =$B$339 -> 0 | Z16: =$D$339 -> 0 | AB16: =$F$339 -> 0 | AD16: =$H$339 -> 0 | AF16: =$J$339 -> 0 | AH16: =$L$339 -> 0
Y17: =$B$340 -> 0 | Z17: =$D$340 -> 0 | AB17: =$F$340 -> 0 | AD17: =$H$340 -> 0 | AF17: =$J$340 -> 0 | AH17: =$L$340 -> 0
Y18: =$B$341 -> 0 | Z18: =$D$341 -> 0 | AB18: =$F$341 -> 0 | AD18: =$H$341 -> 0 | AF18: =$J$341 -> 0 | AH18: =$L$341 -> 0
Y19: =$B$342 -> 0 | Z19: =$D$342 -> 0 | AB19: =$F$342 -> 0 | AD19: =$H$342 -> 0 | AF19: =$J$342 -> 0 | AH19: =$L$342 -> 0
B20: Циљ | D20: Индикатори
D21: Назив индикатора | G21: Вредност у базној години (2015.) | H21: Очекивана вредност у 2016. години | I21: Циљана вредност у 2017. години | J21: Циљана вредност у 2018. години | K21: Циљана вредност у 2019. години | L21: Извор верификације
A22: 2
B26: Циљ | D26: Индикатори
D27: Назив индикатора | G27: Вредност у базној години (2015.) | H27: Очекивана вредност у 2016. години | I27: Циљана вредност у 2017. години | J27: Циљана вредност у 2018. години | K27: Циљана вредност у 2019. години | L27: Извор верификације
A28: 3
Q30: Између 31. и 43. реда се налазе још 2 циља уколико је потребно . Активирају се маркирањем целог 31. и 43. реда > десни клик> опција "Unhide". Графичку илустрацију поступка видети у Упутству
B32: Циљ | D32: Индикатори
D33: Назив индикатора | G33: Вредност у базној години (2015.) | H33: Очекивана вредност у 2016. години | I33: Циљана вредност у 2017. години | J33: Циљана вредност у 2018. години | K33: Циљана вредност у 2019. години | L33: Извор верификације
A34: 4
B38: Циљ | D38: Индикатори
D39: Назив индикатора | G39: Вредност у базној години (2015.) | H39: Очекивана вредност у 2016. години | I39: Циљана вредност у 2017. години | J39: Циљана вредност у 2018. години | K39: Циљана вредност у 2019. години | L39: Извор верификације
A40: 5
A44: Рбр. | B44: Конто | C44: Расходи и издаци програмске активности | D44: Вредност у базној години (2015) | F44: Очекивана вредност у 2016. години | H44: Вредност у 2017. години | J44: Вредност у 2018. години | L44: Вредност у 2019. години | N44: Укупно (2017-2019) | Q44: Уколико желите користити опцију "Σ " (AutoSum) за измену међузбирова у складу са својим потребама, потребно је уклонити заштиту са документа кликом на Review > Unprotect sheet.
D45: Буџетска средства | E45: Средства из осталих извора | F45: Буџетска средства | G45: Средства из осталих извора | H45: Буџетска средства | I45: Средства из осталих извора | J45: Буџетска средства | K45: Средства из осталих извора | L45: Буџетска средства | M45: Средства из осталих извора | N45: Буџетска средства | O45: Средства из осталих извора
A46: 1 | B46: 411000 | C46: =IF(B46="","",VLOOKUP(B46,Упутство!$A$1912:$B$6831,2,FALSE)) -> ПЛАТЕ, ДОДАЦИ И НАКНАДЕ ЗАПОСЛЕНИХ (ЗАРАДЕ) | D46: =SUM(D47:D53) -> 484,000 | E46: =SUM(E47:E53) -> 0 | F46: =SUM(F47:F53) -> 514,000 | G46: =SUM(G47:G53) -> 0 | H46: 460,000 | I46: 0 | J46: 450,000 | K46: 0 | L46: 450,000 | M46: 0 | N46: =SUM(H46,J46,L46) -> 1,360,000 | O46: =SUM(I46,K46,M46) -> 0
A47: 2 | B47: 411100 | C47: =IF(B47="","",VLOOKUP(B47,Упутство!$A$1912:$B$6831,2,FALSE)) -> Плате, додаци и накнаде запослених | D47: 484,000 | F47: 514,000 | H47: 460,000 | J47: 450,000 | L47: 450,000 | N47: =SUM(H47,J47,L47) -> 1,360,000 | O47: =SUM(I47,K47,M47) -> 0
A48: 3 | C48: =IF(B48="","",VLOOKUP(B48,Упутство!$A$1912:$B$6831,2,FALSE)) ->  | N48: =SUM(H48,J48,L48) -> 0 | O48: =SUM(I48,K48,M48) -> 0
A49: 4 | C49: =IF(B49="","",VLOOKUP(B49,Упутство!$A$1912:$B$6831,2,FALSE)) ->  | N49: 0 | O49: 0
A50: 5 | C50: =IF(B50="","",VLOOKUP(B50,Упутство!$A$1912:$B$6831,2,FALSE)) ->  | N50: 0 | O50: 0
A51: 6 | C51: =IF(B51="","",VLOOKUP(B51,Упутство!$A$1912:$B$6831,2,FALSE)) ->  | N51: 0 | O51: 0
A52: 7 | C52: =IF(B52="","",VLOOKUP(B52,Упутство!$A$1912:$B$6831,2,FALSE)) ->  | N52: 0 | O52: 0
A53: 8 | C53: =IF(B53="","",VLOOKUP(B53,Упутство!$A$1912:$B$6831,2,FALSE)) ->  | N53: 0 | O53: 0
A54: 9 | B54: 412000 | C54: =IF(B54="","",VLOOKUP(B54,Упутство!$A$1912:$B$6831,2,FALSE)) -> СОЦИЈАЛНИ ДОПРИНОСИ НА ТЕРЕТ ПОСЛОДАВЦА | D54: =SUM(D55:D58) -> 87,000 | E54: =SUM(E55:E58) -> 0 | F54: =SUM(F55:F58) -> 93,000 | G54: =SUM(G55:G58) -> 0 | H54: 84,000 | I54: 0 | J54: 84,000 | K54: 0 | L54: =SUM(L55:L58) -> 84,000 | M54: 0 | N54: 252,000 | O54: 0
A55: 10 | B55: 412100 | C55: =IF(B55="","",VLOOKUP(B55,Упутство!$A$1912:$B$6831,2,FALSE)) -> Допринос за пензијско и инвалидско осигурање | D55: 51,000 | F55: 55,000 | H55: 54,000 | J55: 54,000 | L55: 54,000 | N55: 162,000 | O55: 0
A56: 11 | B56: 412200 | C56: =IF(B56="","",VLOOKUP(B56,Упутство!$A$1912:$B$6831,2,FALSE)) -> Допринос за здравствено осигурање | D56: 28,000 | F56: 29,000 | H56: 24,000 | J56: 24,000 | L56: 24,000 | N56: 72,000 | O56: 0
A57: 12 | B57: 412300 | C57: =IF(B57="","",VLOOKUP(B57,Упутство!$A$1912:$B$6831,2,FALSE)) -> Допринос за незапосленост | D57: 8,000 | F57: 9,000 | H57: 6,000 | J57: 6,000 | L57: 6,000 | N57: 18,000 | O57: 0
A58: 13 | C58: =IF(B58="","",VLOOKUP(B58,Упутство!$A$1912:$B$6831,2,FALSE)) ->  | N58: 0 | O58: 0
A59: 13 | B59: 413000 | C59: =IF(B59="","",VLOOKUP(B59,Упутство!$A$1912:$B$6831,2,FALSE)) -> НАКНАДЕ У НАТУРИ | D59: =SUM(D60:D64) -> 0 | E59: =SUM(E60:E64) -> 0 | F59: =SUM(F60:F64) -> 0 | G59: =SUM(G60:G64) -> 0 | H59: 0 | I59: 0 | J59: 0 | K59: 0 | L59: =SUM(L60:L64) -> 0 | M59: 0 | N59: 0 | O59: 0
A60: 14 | B60: 413100 | C60: =IF(B60="","",VLOOKUP(B60,Упутство!$A$1912:$B$6831,2,FALSE)) -> Накнаде у натури | N60: 0 | O60: 0
A61: 15 | C61: =IF(B61="","",VLOOKUP(B61,Упутство!$A$1912:$B$6831,2,FALSE)) ->  | N61: 0 | O61: 0
A62: 16 | C62: =IF(B62="","",VLOOKUP(B62,Упутство!$A$1912:$B$6831,2,FALSE)) ->  | N62: 0 | O62: 0
A63: 17 | C63: =IF(B63="","",VLOOKUP(B63,Упутство!$A$1912:$B$6831,2,FALSE)) ->  | N63: 0 | O63: 0
A64: 18 | C64: =IF(B64="","",VLOOKUP(B64,Упутство!$A$1912:$B$6831,2,FALSE)) ->  | N64: 0 | O64: 0
A65: 19 | B65: 414000 | C65: =IF(B65="","",VLOOKUP(B65,Упутство!$A$1912:$B$6831,2,FALSE)) -> СОЦИЈАЛНА ДАВАЊА ЗАПОСЛЕНИМА | D65: =SUM(D66:D72) -> 15,000 | E65: =SUM(E66:E72) -> 0 | F65: =SUM(F66:F72) -> 1,000 | G65: =SUM(G66:G72) -> 0 | H65: 0 | I65: 0 | J65: 0 | K65: 0 | L65: =SUM(L66:L72) -> 0 | M65: 0 | N65: 0 | O65: 0
A66: 20 | B66: 414100 | C66: =IF(B66="","",VLOOKUP(B66,Упутство!$A$1912:$B$6831,2,FALSE)) -> Исплата накнада за време одсуствовања с посла на терет фондова | N66: 0 | O66: 0
A67: 21 | B67: 414200 | C67: =IF(B67="","",VLOOKUP(B67,Упутство!$A$1912:$B$6831,2,FALSE)) -> Расходи за образовање деце запослених | N67: 0 | O67: 0
A68: 22 | B68: 414300 | C68: =IF(B68="","",VLOOKUP(B68,Упутство!$A$1912:$B$6831,2,FALSE)) -> Отпремнине и помоћи | D68: 15,000 | F68: 1,000 | N68: 0 | O68: 0
A69: 23 | B69: 414400 | C69: =IF(B69="","",VLOOKUP(B69,Упутство!$A$1912:$B$6831,2,FALSE)) -> Помоћ у медицинском лечењу запосленог или чланова уже породице и друге помоћи запосленом | N69: 0 | O69: 0
A70: 24 | C70: =IF(B70="","",VLOOKUP(B70,Упутство!$A$1912:$B$6831,2,FALSE)) ->  | N70: 0 | O70: 0
A71: 25 | C71: =IF(B71="","",VLOOKUP(B71,Упутство!$A$1912:$B$6831,2,FALSE)) ->  | N71: 0 | O71: 0
A72: 26 | C72: =IF(B72="","",VLOOKUP(B72,Упутство!$A$1912:$B$6831,2,FALSE)) ->  | N72: 0 | O72: 0
A73: 27 | B73: 415000 | C73: =IF(B73="","",VLOOKUP(B73,Упутство!$A$1912:$B$6831,2,FALSE)) -> НАКНАДЕ ТРОШКОВА ЗА ЗАПОСЛЕНЕ | D73: =SUM(D74:D77) -> 0 | E73: =SUM(E74:E77) -> 0 | F73: =SUM(F74:F77) -> 0 | G73: =SUM(G74:G77) -> 0 | H73: 0 | I73: 0 | J73: 0 | K73: 0 | L73: =SUM(L74:L77) -> 0 | M73: 0 | N73: 0 | O73: 0
A74: 28 | B74: 415100 | C74: =IF(B74="","",VLOOKUP(B74,Упутство!$A$1912:$B$6831,2,FALSE)) -> Накнаде трошкова за запослене | N74: 0 | O74: 0
A75: 29 | C75: =IF(B75="","",VLOOKUP(B75,Упутство!$A$1912:$B$6831,2,FALSE)) ->  | N75: 0 | O75: 0
A76: 30 | C76: =IF(B76="","",VLOOKUP(B76,Упутство!$A$1912:$B$6831,2,FALSE)) ->  | N76: 0 | O76: 0
A77: 31 | C77: =IF(B77="","",VLOOKUP(B77,Упутство!$A$1912:$B$6831,2,FALSE)) ->  | N77: 0 | O77: 0
A78: 32 | B78: 416000 | C78: =IF(B78="","",VLOOKUP(B78,Упутство!$A$1912:$B$6831,2,FALSE)) -> НАГРАДЕ ЗАПОСЛЕНИМА И ОСТАЛИ ПОСЕБНИ РАСХОДИ | D78: =SUM(D79:D82) -> 0 | E78: =SUM(E79:E82) -> 0 | F78: =SUM(F79:F82) -> 0 | G78: =SUM(G79:G82) -> 0 | H78: 0 | I78: 0 | J78: 0 | K78: 0 | L78: =SUM(L79:L82) -> 0 | M78: 0 | N78: 0 | O78: 0
A79: 33 | B79: 416100 | C79: =IF(B79="","",VLOOKUP(B79,Упутство!$A$1912:$B$6831,2,FALSE)) -> Награде запосленима и остали посебни расходи | N79: 0 | O79: 0
A80: 34 | C80: =IF(B80="","",VLOOKUP(B80,Упутство!$A$1912:$B$6831,2,FALSE)) ->  | N80: 0 | O80: 0
A81: 35 | C81: =IF(B81="","",VLOOKUP(B81,Упутство!$A$1912:$B$6831,2,FALSE)) ->  | N81: 0 | O81: 0
A82: 36 | C82: =IF(B82="","",VLOOKUP(B82,Упутство!$A$1912:$B$6831,2,FALSE)) ->  | N82: 0 | O82: 0
A83: 37 | B83: 421000 | C83: =IF(B83="","",VLOOKUP(B83,Упутство!$A$1912:$B$6831,2,FALSE)) -> СТАЛНИ ТРОШКОВИ | D83: =SUM(D84:D113) -> 149,000 | E83: =SUM(E84:E113) -> 225,000 | F83: =SUM(F84:F113) -> 136,000 | G83: =SUM(G84:G113) -> 150,000 | H83: 240,000 | I83: 0 | J83: 243,000 | K83: 0 | L83: =SUM(L84:L113) -> 243,000 | M83: 0 | N83: 726,000 | O83: 0
A84: 38 | B84: 421100 | C84: =IF(B84="","",VLOOKUP(B84,Упутство!$A$1912:$B$6831,2,FALSE)) -> Трошкови платног промета и банкарских услуга | D84: 9,000 | E84: 5,000 | F84: 10,000 | G84: 2,000 | H84: 10,000 | J84: 10,000 | L84: 10,000 | N84: 30,000 | O84: 0
A85: 39 | B85: 421200 | C85: =IF(B85="","",VLOOKUP(B85,Упутство!$A$1912:$B$6831,2,FALSE)) -> Енергетске услуге | D85: 80,000 | E85: 80,000 | F85: 95,000 | G85: 94,000 | H85: 150,000 | J85: 158,000 | L85: 158,000 | N85: 466,000 | O85: 0
A86: 40 | B86: 421300 | C86: =IF(B86="","",VLOOKUP(B86,Упутство!$A$1912:$B$6831,2,FALSE)) -> Комуналне услуге | D86: 20,000 | E86: 30,000 | H86: 5,000 | J86: 20,000 | L86: 20,000 | N86: 45,000 | O86: 0
A87: 41 | B87: 421400 | C87: =IF(B87="","",VLOOKUP(B87,Упутство!$A$1912:$B$6831,2,FALSE)) -> Услуге комуникација | D87: 30,000 | E87: 20,000 | F87: 30,000 | G87: 21,000 | H87: 40,000 | J87: 50,000 | L87: 50,000 | N87: 140,000 | O87: 0
A88: 42 | B88: 421500 | C88: =IF(B88="","",VLOOKUP(B88,Упутство!$A$1912:$B$6831,2,FALSE)) -> Трошкови осигурања | D88: 5,000 | E88: 30,000 | F88: 1,000 | G88: 33,000 | H88: 35,000 | J88: 5,000 | L88: 5,000 | N88: 45,000 | O88: 0
A89: 43 | B89: 421600 | C89: =IF(B89="","",VLOOKUP(B89,Упутство!$A$1912:$B$6831,2,FALSE)) -> Закуп имовине и опреме | E89: 25,000 | N89: 0 | O89: 0
A90: 44 | B90: 421900 | C90: =IF(B90="","",VLOOKUP(B90,Упутство!$A$1912:$B$6831,2,FALSE)) -> Остали трошкови | D90: 5,000 | E90: 35,000 | N90: 0 | O90: 0
A91: 45 | C91: =IF(B91="","",VLOOKUP(B91,Упутство!$A$1912:$B$6831,2,FALSE)) ->  | N91: 0 | O91: 0
A92: 46 | C92: =IF(B92="","",VLOOKUP(B92,Упутство!$A$1912:$B$6831,2,FALSE)) ->  | N92: 0 | O92: 0
A93: 47 | C93: =IF(B93="","",VLOOKUP(B93,Упутство!$A$1912:$B$6831,2,FALSE)) ->  | N93: 0 | O93: 0
A94: 48 | C94: =IF(B94="","",VLOOKUP(B94,Упутство!$A$1912:$B$6831,2,FALSE)) ->  | N94: 0 | O94: 0
A95: 49 | C95: =IF(B95="","",VLOOKUP(B95,Упутство!$A$1912:$B$6831,2,FALSE)) ->  | N95: 0 | O95: 0
A96: 50 | C96: =IF(B96="","",VLOOKUP(B96,Упутство!$A$1912:$B$6831,2,FALSE)) ->  | N96: 0 | O96: 0
A97: 51 | C97: =IF(B97="","",VLOOKUP(B97,Упутство!$A$1912:$B$6831,2,FALSE)) ->  | N97: 0 | O97: 0
A98: 52 | C98: =IF(B98="","",VLOOKUP(B98,Упутство!$A$1912:$B$6831,2,FALSE)) ->  | N98: 0 | O98: 0
A99: 53 | C99: =IF(B99="","",VLOOKUP(B99,Упутство!$A$1912:$B$6831,2,FALSE)) ->  | N99: 0 | O99: 0
A100: 54 | C100: =IF(B100="","",VLOOKUP(B100,Упутство!$A$1912:$B$6831,2,FALSE)) ->  | N100: 0 | O100: 0
A101: 55 | C101: =IF(B101="","",VLOOKUP(B101,Упутство!$A$1912:$B$6831,2,FALSE)) ->  | N101: 0 | O101: 0
A102: 56 | C102: =IF(B102="","",VLOOKUP(B102,Упутство!$A$1912:$B$6831,2,FALSE)) ->  | N102: 0 | O102: 0
A103: 57 | C103: =IF(B103="","",VLOOKUP(B103,Упутство!$A$1912:$B$6831,2,FALSE)) ->  | N103: 0 | O103: 0
A104: 58 | C104: =IF(B104="","",VLOOKUP(B104,Упутство!$A$1912:$B$6831,2,FALSE)) ->  | N104: 0 | O104: 0
A105: 59 | C105: =IF(B105="","",VLOOKUP(B105,Упутство!$A$1912:$B$6831,2,FALSE)) ->  | N105: 0 | O105: 0
A106: 60 | C106: =IF(B106="","",VLOOKUP(B106,Упутство!$A$1912:$B$6831,2,FALSE)) ->  | N106: 0 | O106: 0
A107: 61 | C107: =IF(B107="","",VLOOKUP(B107,Упутство!$A$1912:$B$6831,2,FALSE)) ->  | N107: 0 | O107: 0
A108: 62 | C108: =IF(B108="","",VLOOKUP(B108,Упутство!$A$1912:$B$6831,2,FALSE)) ->  | N108: 0 | O108: 0
A109: 63 | C109: =IF(B109="","",VLOOKUP(B109,Упутство!$A$1912:$B$6831,2,FALSE)) ->  | N109: 0 | O109: 0
A110: 64 | C110: =IF(B110="","",VLOOKUP(B110,Упутство!$A$1912:$B$6831,2,FALSE)) ->  | N110: 0 | O110: 0
A111: 65 | C111: =IF(B111="","",VLOOKUP(B111,Упутство!$A$1912:$B$6831,2,FALSE)) ->  | N111: 0 | O111: 0
A112: 66 | C112: =IF(B112="","",VLOOKUP(B112,Упутство!$A$1912:$B$6831,2,FALSE)) ->  | N112: =SUM(H112,J112,L112) -> 0 | O112: =SUM(I112,K112,M112) -> 0
A113: 67 | C113: =IF(B113="","",VLOOKUP(B113,Упутство!$A$1912:$B$6831,2,FALSE)) ->  | N113: 0 | O113: 0
A114: 68 | B114: 422000 | C114: =IF(B114="","",VLOOKUP(B114,Упутство!$A$1912:$B$6831,2,FALSE)) -> ТРОШКОВИ ПУТОВАЊА | D114: =SUM(D115:D125) -> 50,000 | E114: =SUM(E115:E125) -> 50,000 | F114: =SUM(F115:F125) -> 1,000 | G114: =SUM(G115:G125) -> 0 | H114: 0 | I114: 0 | J114: 0 | K114: 0 | L114: =SUM(L115:L125) -> 0 | M114: 0 | N114: 0 | O114: 0
A115: 69 | B115: 422100 | C115: =IF(B115="","",VLOOKUP(B115,Упутство!$A$1912:$B$6831,2,FALSE)) -> Трошкови службених путовања у земљи | D115: 20,000 | E115: 50,000 | N115: 0 | O115: 0
A116: 70 | B116: 422200 | C116: =IF(B116="","",VLOOKUP(B116,Упутство!$A$1912:$B$6831,2,FALSE)) -> Трошкови службених путовања у иностранство | N116: 0 | O116: 0
A117: 71 | B117: 422300 | C117: =IF(B117="","",VLOOKUP(B117,Упутство!$A$1912:$B$6831,2,FALSE)) -> Трошкови путовања у оквиру редовног рада | N117: 0 | O117: 0
A118: 72 | B118: 422400 | C118: =IF(B118="","",VLOOKUP(B118,Упутство!$A$1912:$B$6831,2,FALSE)) -> Трошкови путовања ученика | N118: 0 | O118: 0
A119: 73 | B119: 422900 | C119: =IF(B119="","",VLOOKUP(B119,Упутство!$A$1912:$B$6831,2,FALSE)) -> Остали трошкови транспорта | D119: 30,000 | F119: 1,000 | N119: 0 | O119: 0
A120: 74 | C120: =IF(B120="","",VLOOKUP(B120,Упутство!$A$1912:$B$6831,2,FALSE)) ->  | N120: 0 | O120: 0
A121: 75 | C121: =IF(B121="","",VLOOKUP(B121,Упутство!$A$1912:$B$6831,2,FALSE)) ->  | N121: 0 | O121: 0
A122: 76 | C122: =IF(B122="","",VLOOKUP(B122,Упутство!$A$1912:$B$6831,2,FALSE)) ->  | N122: 0 | O122: 0
A123: 77 | C123: =IF(B123="","",VLOOKUP(B123,Упутство!$A$1912:$B$6831,2,FALSE)) ->  | N123: 0 | O123: 0
A124: 78 | C124: =IF(B124="","",VLOOKUP(B124,Упутство!$A$1912:$B$6831,2,FALSE)) ->  | N124: 0 | O124: 0
A125: 79 | C125: =IF(B125="","",VLOOKUP(B125,Упутство!$A$1912:$B$6831,2,FALSE)) ->  | N125: 0 | O125: 0
A126: 80 | B126: 423000 | C126: =IF(B126="","",VLOOKUP(B126,Упутство!$A$1912:$B$6831,2,FALSE)) -> УСЛУГЕ ПО УГОВОРУ | D126: =SUM(D127:D156) -> 350,000 | E126: =SUM(E127:E156) -> 323,000 | F126: =SUM(F127:F156) -> 311,000 | G126: =SUM(G127:G156) -> 117,000 | H126: 438,000 | I126: 0 | J126: 73,000 | K126: 0 | L126: =SUM(L127:L156) -> 73,000 | M126: 0 | N126: 584,000 | O126: 0
A127: 81 | B127: 423100 | C127: =IF(B127="","",VLOOKUP(B127,Упутство!$A$1912:$B$6831,2,FALSE)) -> Административне услуге | D127: 60,000 | E127: 100,000 | F127: 60,000 | H127: 28,000 | J127: 30,000 | L127: 30,000 | N127: 88,000 | O127: 0
A128: 82 | B128: 423200 | C128: =IF(B128="","",VLOOKUP(B128,Упутство!$A$1912:$B$6831,2,FALSE)) -> Компјутерске услуге | E128: 10,000 | H128: 5,000 | N128: 5,000 | O128: 0
A129: 83 | B129: 423300 | C129: =IF(B129="","",VLOOKUP(B129,Упутство!$A$1912:$B$6831,2,FALSE)) -> Услуге образовања и усавршавања запослених | E129: 10,000 | N129: 0 | O129: 0
A130: 84 | B130: 423400 | C130: =IF(B130="","",VLOOKUP(B130,Упутство!$A$1912:$B$6831,2,FALSE)) -> Услуге информисања | D130: 165,000 | E130: 90,000 | F130: 187,000 | G130: 2,000 | H130: 15,000 | J130: 10,000 | L130: 10,000 | N130: 35,000 | O130: 0
A131: 85 | B131: 423500 | C131: =IF(B131="","",VLOOKUP(B131,Упутство!$A$1912:$B$6831,2,FALSE)) -> Стручне услуге | D131: 20,000 | E131: 10,000 | F131: 59,000 | H131: 240,000 | J131: 33,000 | L131: 33,000 | N131: 306,000 | O131: 0
A132: 86 | B132: 423600 | C132: =IF(B132="","",VLOOKUP(B132,Упутство!$A$1912:$B$6831,2,FALSE)) -> Услуге за домаћинство и угоститељство | E132: 10,000 | N132: 0 | O132: 0
A133: 87 | B133: 423700 | C133: =IF(B133="","",VLOOKUP(B133,Упутство!$A$1912:$B$6831,2,FALSE)) -> Репрезентација | D133: 80,000 | E133: 83,000 | G133: 100,000 | H133: 150,000 | N133: 150,000 | O133: 0
A134: 88 | B134: 423900 | C134: =IF(B134="","",VLOOKUP(B134,Упутство!$A$1912:$B$6831,2,FALSE)) -> Остале опште услуге | D134: 25,000 | E134: 10,000 | F134: 5,000 | G134: 15,000 | N134: 0 | O134: 0
A135: 89 | C135: =IF(B135="","",VLOOKUP(B135,Упутство!$A$1912:$B$6831,2,FALSE)) ->  | N135: 0 | O135: 0
A136: 90 | C136: =IF(B136="","",VLOOKUP(B136,Упутство!$A$1912:$B$6831,2,FALSE)) ->  | N136: 0 | O136: 0
A137: 91 | C137: =IF(B137="","",VLOOKUP(B137,Упутство!$A$1912:$B$6831,2,FALSE)) ->  | N137: 0 | O137: 0
A138: 92 | C138: =IF(B138="","",VLOOKUP(B138,Упутство!$A$1912:$B$6831,2,FALSE)) ->  | N138: 0 | O138: 0
A139: 93 | C139: =IF(B139="","",VLOOKUP(B139,Упутство!$A$1912:$B$6831,2,FALSE)) ->  | N139: 0 | O139: 0
A140: 94 | C140: =IF(B140="","",VLOOKUP(B140,Упутство!$A$1912:$B$6831,2,FALSE)) ->  | N140: 0 | O140: 0
A141: 95 | C141: =IF(B141="","",VLOOKUP(B141,Упутство!$A$1912:$B$6831,2,FALSE)) ->  | N141: 0 | O141: 0
A142: 96 | C142: =IF(B142="","",VLOOKUP(B142,Упутство!$A$1912:$B$6831,2,FALSE)) ->  | N142: 0 | O142: 0
A143: 97 | C143: =IF(B143="","",VLOOKUP(B143,Упутство!$A$1912:$B$6831,2,FALSE)) ->  | N143: 0 | O143: 0
A144: 98 | C144: =IF(B144="","",VLOOKUP(B144,Упутство!$A$1912:$B$6831,2,FALSE)) ->  | N144: 0 | O144: 0
A145: 99 | C145: =IF(B145="","",VLOOKUP(B145,Упутство!$A$1912:$B$6831,2,FALSE)) ->  | N145: 0 | O145: 0
A146: 100 | C146: =IF(B146="","",VLOOKUP(B146,Упутство!$A$1912:$B$6831,2,FALSE)) ->  | N146: 0 | O146: 0
A147: 101 | C147: =IF(B147="","",VLOOKUP(B147,Упутство!$A$1912:$B$6831,2,FALSE)) ->  | N147: 0 | O147: 0
A148: 102 | C148: =IF(B148="","",VLOOKUP(B148,Упутство!$A$1912:$B$6831,2,FALSE)) ->  | N148: 0 | O148: 0
A149: 103 | C149: =IF(B149="","",VLOOKUP(B149,Упутство!$A$1912:$B$6831,2,FALSE)) ->  | N149: 0 | O149: 0
A150: 104 | C150: =IF(B150="","",VLOOKUP(B150,Упутство!$A$1912:$B$6831,2,FALSE)) ->  | N150: 0 | O150: 0
A151: 105 | C151: =IF(B151="","",VLOOKUP(B151,Упутство!$A$1912:$B$6831,2,FALSE)) ->  | N151: 0 | O151: 0
A152: 106 | C152: =IF(B152="","",VLOOKUP(B152,Упутство!$A$1912:$B$6831,2,FALSE)) ->  | N152: 0 | O152: 0
A153: 107 | C153: =IF(B153="","",VLOOKUP(B153,Упутство!$A$1912:$B$6831,2,FALSE)) ->  | N153: 0 | O153: 0
A154: 108 | C154: =IF(B154="","",VLOOKUP(B154,Упутство!$A$1912:$B$6831,2,FALSE)) ->  | N154: 0 | O154: 0
A155: 109 | C155: =IF(B155="","",VLOOKUP(B155,Упутство!$A$1912:$B$6831,2,FALSE)) ->  | N155: 0 | O155: 0
A156: 110 | C156: =IF(B156="","",VLOOKUP(B156,Упутство!$A$1912:$B$6831,2,FALSE)) ->  | N156: 0 | O156: 0
A157: 111 | B157: 424000 | C157: =IF(B157="","",VLOOKUP(B157,Упутство!$A$1912:$B$6831,2,FALSE)) -> СПЕЦИЈАЛИЗОВАНЕ УСЛУГЕ | D157: =SUM(D158:D166) -> 350,000 | E157: =SUM(E158:E166) -> 150,000 | F157: =SUM(F158:F166) -> 0 | G157: =SUM(G158:G166) -> 288,000 | H157: 78,000 | I157: 155,000 | J157: 60,000 | K157: 0 | L157: =SUM(L158:L166) -> 60,000 | M157: 0 | N157: 198,000 | O157: 155,000
A158: 112 | B158: 424100 | C158: =IF(B158="","",VLOOKUP(B158,Упутство!$A$1912:$B$6831,2,FALSE)) -> Пољопривредне услуге | N158: 0 | O158: 0
A159: 113 | B159: 424200 | C159: =IF(B159="","",VLOOKUP(B159,Упутство!$A$1912:$B$6831,2,FALSE)) -> Услуге образовања, културе и спорта | N159: 0 | O159: 0
A160: 114 | B160: 424300 | C160: =IF(B160="","",VLOOKUP(B160,Упутство!$A$1912:$B$6831,2,FALSE)) -> Медицинске услуге | N160: 0 | O160: 0
A161: 115 | B161: 424400 | C161: =IF(B161="","",VLOOKUP(B161,Упутство!$A$1912:$B$6831,2,FALSE)) -> Услуге одржавања аутопутева | N161: 0 | O161: 0
A162: 116 | B162: 424500 | C162: =IF(B162="","",VLOOKUP(B162,Упутство!$A$1912:$B$6831,2,FALSE)) -> Услуге одржавања националних паркова и природних површина | N162: 0 | O162: 0
A163: 117 | B163: 424600 | C163: =IF(B163="","",VLOOKUP(B163,Упутство!$A$1912:$B$6831,2,FALSE)) -> Услуге очувања животне средине, науке и геодетске услуге | D163: 250,000 | E163: 100,000 | G163: 288,000 | H163: 28,000 | N163: 28,000 | O163: 0
A164: 118 | B164: 424900 | C164: =IF(B164="","",VLOOKUP(B164,Упутство!$A$1912:$B$6831,2,FALSE)) -> Остале специјализоване услуге | D164: 100,000 | E164: 50,000 | H164: 50,000 | I164: 155,000 | J164: 60,000 | L164: 60,000 | N164: 170,000 | O164: 155,000
A165: 119 | C165: =IF(B165="","",VLOOKUP(B165,Упутство!$A$1912:$B$6831,2,FALSE)) ->  | N165: 0 | O165: 0
A166: 120 | C166: =IF(B166="","",VLOOKUP(B166,Упутство!$A$1912:$B$6831,2,FALSE)) ->  | N166: 0 | O166: 0
A167: 121 | B167: 425000 | C167: =IF(B167="","",VLOOKUP(B167,Упутство!$A$1912:$B$6831,2,FALSE)) -> ТЕКУЋЕ ПОПРАВКЕ И ОДРЖАВАЊЕ | D167: =SUM(D168:D187) -> 400,000 | E167: =SUM(E168:E187) -> 600,000 | F167: =SUM(F168:F187) -> 55,000 | G167: =SUM(G168:G187) -> 471,000 | H167: 110,000 | I167: 1,350,000 | J167: 110,000 | K167: 0 | L167: =SUM(L168:L187) -> 110,000 | M167: 0 | N167: 330,000 | O167: 1,350,000
A168: 122 | B168: 425100 | C168: =IF(B168="","",VLOOKUP(B168,Упутство!$A$1912:$B$6831,2,FALSE)) -> Текуће поправке и одржавање зграда и објеката | D168: 300,000 | E168: 600,000 | F168: 34,000 | G168: 471,000 | H168: 90,000 | I168: 1,350,000 | J168: 90,000 | L168: 90,000 | N168: 270,000 | O168: 1,350,000
A169: 123 | B169: 425200 | C169: =IF(B169="","",VLOOKUP(B169,Упутство!$A$1912:$B$6831,2,FALSE)) -> Текуће поправке и одржавање опреме | D169: 100,000 | F169: 21,000 | H169: 20,000 | J169: 20,000 | L169: 20,000 | N169: 60,000 | O169: 0
A170: 124 | C170: =IF(B170="","",VLOOKUP(B170,Упутство!$A$1912:$B$6831,2,FALSE)) ->  | N170: 0 | O170: 0
A171: 125 | C171: =IF(B171="","",VLOOKUP(B171,Упутство!$A$1912:$B$6831,2,FALSE)) ->  | N171: 0 | O171: 0
A172: 126 | C172: =IF(B172="","",VLOOKUP(B172,Упутство!$A$1912:$B$6831,2,FALSE)) ->  | N172: 0 | O172: 0
A173: 127 | C173: =IF(B173="","",VLOOKUP(B173,Упутство!$A$1912:$B$6831,2,FALSE)) ->  | N173: 0 | O173: 0
A174: 128 | C174: =IF(B174="","",VLOOKUP(B174,Упутство!$A$1912:$B$6831,2,FALSE)) ->  | N174: 0 | O174: 0
A175: 129 | C175: =IF(B175="","",VLOOKUP(B175,Упутство!$A$1912:$B$6831,2,FALSE)) ->  | N175: 0 | O175: 0
A176: 130 | C176: =IF(B176="","",VLOOKUP(B176,Упутство!$A$1912:$B$6831,2,FALSE)) ->  | N176: =SUM(H176,J176,L176) -> 0 | O176: =SUM(I176,K176,M176) -> 0
A177: 131 | C177: =IF(B177="","",VLOOKUP(B177,Упутство!$A$1912:$B$6831,2,FALSE)) ->  | N177: 0 | O177: 0
A178: 132 | C178: =IF(B178="","",VLOOKUP(B178,Упутство!$A$1912:$B$6831,2,FALSE)) ->  | N178: 0 | O178: 0
A179: 133 | C179: =IF(B179="","",VLOOKUP(B179,Упутство!$A$1912:$B$6831,2,FALSE)) ->  | N179: 0 | O179: 0
A180: 134 | C180: =IF(B180="","",VLOOKUP(B180,Упутство!$A$1912:$B$6831,2,FALSE)) ->  | N180: 0 | O180: 0
A181: 135 | C181: =IF(B181="","",VLOOKUP(B181,Упутство!$A$1912:$B$6831,2,FALSE)) ->  | N181: 0 | O181: 0
A182: 136 | C182: =IF(B182="","",VLOOKUP(B182,Упутство!$A$1912:$B$6831,2,FALSE)) ->  | N182: 0 | O182: 0
A183: 137 | C183: =IF(B183="","",VLOOKUP(B183,Упутство!$A$1912:$B$6831,2,FALSE)) ->  | N183: 0 | O183: 0
A184: 138 | C184: =IF(B184="","",VLOOKUP(B184,Упутство!$A$1912:$B$6831,2,FALSE)) ->  | N184: 0 | O184: 0
A185: 139 | C185: =IF(B185="","",VLOOKUP(B185,Упутство!$A$1912:$B$6831,2,FALSE)) ->  | N185: 0 | O185: 0
A186: 140 | C186: =IF(B186="","",VLOOKUP(B186,Упутство!$A$1912:$B$6831,2,FALSE)) ->  | N186: 0 | O186: 0
A187: 141 | C187: =IF(B187="","",VLOOKUP(B187,Упутство!$A$1912:$B$6831,2,FALSE)) ->  | N187: 0 | O187: 0
A188: 142 | B188: 426000 | C188: =IF(B188="","",VLOOKUP(B188,Упутство!$A$1912:$B$6831,2,FALSE)) -> МАТЕРИЈАЛ | D188: =SUM(D189:D213) -> 400,000 | E188: =SUM(E189:E213) -> 200,000 | F188: =SUM(F189:F213) -> 8,000 | G188: =SUM(G189:G213) -> 630,500 | H188: 280,000 | I188: 0 | J188: 224,000 | K188: 0 | L188: =SUM(L189:L213) -> 224,000 | M188: 0 | N188: 728,000 | O188: 0
A189: 143 | B189: 426100 | C189: =IF(B189="","",VLOOKUP(B189,Упутство!$A$1912:$B$6831,2,FALSE)) -> Административни материјал | D189: 90,000 | E189: 40,000 | F189: 5,000 | G189: 10,000 | H189: 20,000 | J189: 25,000 | L189: 25,000 | N189: 70,000 | O189: 0
A190: 144 | B190: 426200 | C190: =IF(B190="","",VLOOKUP(B190,Упутство!$A$1912:$B$6831,2,FALSE)) -> Материјали за пољопривреду | J190: 70,000 | L190: 70,000 | N190: 140,000 | O190: 0
A191: 145 | B191: 426300 | C191: =IF(B191="","",VLOOKUP(B191,Упутство!$A$1912:$B$6831,2,FALSE)) -> Материјали за образовање и усавршавање запослених | D191: 20,000 | E191: 50,000 | G191: 70,000 | H191: 70,000 | N191: 70,000 | O191: 0
A192: 146 | B192: 426400 | C192: =IF(B192="","",VLOOKUP(B192,Упутство!$A$1912:$B$6831,2,FALSE)) -> Материјали за саобраћај | E192: 10,000 | G192: 9,500 | N192: 0 | O192: 0
A193: 147 | B193: 426500 | C193: =IF(B193="","",VLOOKUP(B193,Упутство!$A$1912:$B$6831,2,FALSE)) -> Материјали за очување животне средине и науку | D193: 150,000 | H193: 10,000 | J193: 10,000 | L193: 10,000 | N193: 30,000 | O193: 0
A194: 148 | B194: 426700 | C194: =IF(B194="","",VLOOKUP(B194,Упутство!$A$1912:$B$6831,2,FALSE)) -> Медицински и лабораторијски материјали | N194: 0 | O194: 0
A195: 149 | B195: 426800 | C195: =IF(B195="","",VLOOKUP(B195,Упутство!$A$1912:$B$6831,2,FALSE)) -> Материјали за одржавање хигијене и угоститељство | D195: 90,000 | E195: 50,000 | G195: 375,000 | H195: 140,000 | J195: 100,000 | L195: 100,000 | N195: 340,000 | O195: 0
A196: 150 | B196: 426900 | C196: =IF(B196="","",VLOOKUP(B196,Упутство!$A$1912:$B$6831,2,FALSE)) -> Материјали за посебне намене | D196: 50,000 | E196: 50,000 | F196: 3,000 | G196: 166,000 | H196: 40,000 | J196: 19,000 | L196: 19,000 | N196: 78,000 | O196: 0
A197: 151 | C197: =IF(B197="","",VLOOKUP(B197,Упутство!$A$1912:$B$6831,2,FALSE)) ->  | N197: 0 | O197: 0
A198: 152 | C198: =IF(B198="","",VLOOKUP(B198,Упутство!$A$1912:$B$6831,2,FALSE)) ->  | N198: 0 | O198: 0
A199: 153 | C199: =IF(B199="","",VLOOKUP(B199,Упутство!$A$1912:$B$6831,2,FALSE)) ->  | N199: 0 | O199: 0
A200: 154 | C200: =IF(B200="","",VLOOKUP(B200,Упутство!$A$1912:$B$6831,2,FALSE)) ->  | N200: 0 | O200: 0
A201: 155 | C201: =IF(B201="","",VLOOKUP(B201,Упутство!$A$1912:$B$6831,2,FALSE)) ->  | N201: 0 | O201: 0
A202: 156 | C202: =IF(B202="","",VLOOKUP(B202,Упутство!$A$1912:$B$6831,2,FALSE)) ->  | N202: 0 | O202: 0
A203: 157 | C203: =IF(B203="","",VLOOKUP(B203,Упутство!$A$1912:$B$6831,2,FALSE)) ->  | N203: 0 | O203: 0
A204: 158 | C204: =IF(B204="","",VLOOKUP(B204,Упутство!$A$1912:$B$6831,2,FALSE)) ->  | N204: 0 | O204: 0
A205: 159 | C205: =IF(B205="","",VLOOKUP(B205,Упутство!$A$1912:$B$6831,2,FALSE)) ->  | N205: 0 | O205: 0
A206: 160 | C206: =IF(B206="","",VLOOKUP(B206,Упутство!$A$1912:$B$6831,2,FALSE)) ->  | N206: 0 | O206: 0
A207: 161 | C207: =IF(B207="","",VLOOKUP(B207,Упутство!$A$1912:$B$6831,2,FALSE)) ->  | N207: 0 | O207: 0
A208: 162 | C208: =IF(B208="","",VLOOKUP(B208,Упутство!$A$1912:$B$6831,2,FALSE)) ->  | N208: 0 | O208: 0
A209: 163 | C209: =IF(B209="","",VLOOKUP(B209,Упутство!$A$1912:$B$6831,2,FALSE)) ->  | N209: 0 | O209: 0
A210: 164 | C210: =IF(B210="","",VLOOKUP(B210,Упутство!$A$1912:$B$6831,2,FALSE)) ->  | N210: 0 | O210: 0
A211: 165 | C211: =IF(B211="","",VLOOKUP(B211,Упутство!$A$1912:$B$6831,2,FALSE)) ->  | N211: 0 | O211: 0
... 135 more rows

Sheet Пројекат (hidden)
A1: Обрасци за припрему програмског буџета | Z1: 2015 | AB1: 2016 | AD1: 2017 | AF1: 2018 | AH1: 2019
A2: 3. ПРОЈЕКАТ | X2: suma | Y2: =C117&AM2&" ("&$D$8&")" -> 0602- () | Z2: =$D$117 -> 0 | AA2: =$E$117 -> 0 | AB2: =$F$117 -> 0 | AC2: =$G$117 -> 0 | AD2: =$H$117 -> 0 | AE2: =$I$117 -> 0 | AF2: =$J$117 -> 0 | AG2: =$K$117 -> 0 | AH2: =$L$117 -> 0 | AI2: =$M$117 -> 0 | AJ2: 3. ПРОЈЕКАТ | AM2: =IF(A2=AJ2,""," - захтев за додатна средства") -> 
X3: izvori | Y3: =$B$120 -> 0 | Z3: =$D$120 -> 0 | AB3: =$F$120 -> 0 | AD3: =$H$120 -> 0 | AF3: =$J$120 -> 0 | AH3: =$L$120 -> 0 | AJ3: 3. ПРОЈЕКАТ - ЗАХТЕВ ЗА ДОДАТНА СРЕДСТВА
A4: Програм коме припада: | D4: =IF(Програм!$D$4="","",Програм!$D$4) -> Програм 15. Опште услуге локалне самоуправе | Y4: =$B$121 -> 0 | Z4: =$D$121 -> 0 | AB4: =$F$121 -> 0 | AD4: =$H$121 -> 0 | AF4: =$J$121 -> 0 | AH4: =$L$121 -> 0
A5: Шифра пројекта: | D5: =Програм!$D$5 -> 0602 | Y5: =$B$122 -> 0 | Z5: =$D$122 -> 0 | AB5: =$F$122 -> 0 | AD5: =$H$122 -> 0 | AF5: =$J$122 -> 0 | AH5: =$L$122 -> 0
A6: Назив пројекта: | Y6: =$B$123 -> 0 | Z6: =$D$123 -> 0 | AB6: =$F$123 -> 0 | AD6: =$H$123 -> 0 | AF6: =$J$123 -> 0 | AH6: =$L$123 -> 0
A7: Функција: | Y7: =$B$124 -> 0 | Z7: =$D$124 -> 0 | AB7: =$F$124 -> 0 | AD7: =$H$124 -> 0 | AF7: =$J$124 -> 0 | AH7: =$L$124 -> 0
A8: Назив организационе јединице/Буџетски корисник: | Y8: =$B$125 -> 0 | Z8: =$D$125 -> 0 | AB8: =$F$125 -> 0 | AD8: =$H$125 -> 0 | AF8: =$J$125 -> 0 | AH8: =$L$125 -> 0
A9: Сврха: | Y9: =$B$126 -> 0 | Z9: =$D$126 -> 0 | AB9: =$F$126 -> 0 | AD9: =$H$126 -> 0 | AF9: =$J$126 -> 0 | AH9: =$L$126 -> 0
A10: Основ: | Y10: =$B$127 -> 0 | Z10: =$D$127 -> 0 | AB10: =$F$127 -> 0 | AD10: =$H$127 -> 0 | AF10: =$J$127 -> 0 | AH10: =$L$127 -> 0
A11: Опис: | Y11: =$B$128 -> 0 | Z11: =$D$128 -> 0 | AB11: =$F$128 -> 0 | AD11: =$H$128 -> 0 | AF11: =$J$128 -> 0 | AH11: =$L$128 -> 0
A12: Трајање пројекта: | Y12: =$B$129 -> 0 | Z12: =$D$129 -> 0 | AB12: =$F$129 -> 0 | AD12: =$H$129 -> 0 | AF12: =$J$129 -> 0 | AH12: =$L$129 -> 0
A13: Ознака за капитални пројекат: | D13: (статус пројектно техничке документације, постоји или не постоји, статус имовинско правних односа, решени или нерешени) | Y13: =$B$130 -> 0 | Z13: =$D$130 -> 0 | AB13: =$F$130 -> 0 | AD13: =$H$130 -> 0 | AF13: =$J$130 -> 0 | AH13: =$L$130 -> 0
A14: Ознака да ли је ИПА пројекат: | D14: (бира се ИПА година финансирања и ИПА програм/мере из предефинисане листе коју у базу уноси Министарство финансија | Y14: =$B$131 -> 0 | Z14: =$D$131 -> 0 | AB14: =$F$131 -> 0 | AD14: =$H$131 -> 0 | AF14: =$J$131 -> 0 | AH14: =$L$131 -> 0
A15: Мере и поглавље преговора о приступању ЕУ: | D15: (Анекс 3 Упутства за израду програмског буџета- релевантно само за Републику Србију) | Y15: =$B$132 -> 0 | Z15: =$D$132 -> 0 | AB15: =$F$132 -> 0 | AD15: =$H$132 -> 0 | AF15: =$J$132 -> 0 | AH15: =$L$132 -> 0
A16: Одговорно лице за спровођење пројекта: | D16: Јосип Чешљар, председник Савета Месне заједнице Остојићево | Y16: =$B$133 -> 0 | Z16: =$D$133 -> 0 | AB16: =$F$133 -> 0 | AD16: =$H$133 -> 0 | AF16: =$J$133 -> 0 | AH16: =$L$133 -> 0
Y17: =$B$134 -> 0 | Z17: =$D$134 -> 0 | AB17: =$F$134 -> 0 | AD17: =$H$134 -> 0 | AF17: =$J$134 -> 0 | AH17: =$L$134 -> 0
B18: Циљ* | D18: Индикатори** | Y18: =$B$135 -> 0 | Z18: =$D$135 -> 0 | AB18: =$F$135 -> 0 | AD18: =$H$135 -> 0 | AF18: =$J$135 -> 0 | AH18: =$L$135 -> 0
D19: Назив индикатора | G19: Вредност у базној години (2015) | H19: Очекивана вредност у 2016. години | I19: Циљана вредност у 2017. години | J19: Циљана вредност у 2018. години | K19: Циљана вредност у 2019. години | L19: Извор верификације | Y19: =$B$136 -> 0 | Z19: =$D$136 -> 0 | AB19: =$F$136 -> 0 | AD19: =$H$136 -> 0 | AF19: =$J$136 -> 0 | AH19: =$L$136 -> 0
A20: 1
B24: Циљ | D24: Индикатори
D25: Назив индикатора | G25: Вредност у базној години (2015.) | H25: Очекивана вредност у 2016. години | I25: Циљана вредност у 2017. години | J25: Циљана вредност у 2018. години | K25: Циљана вредност у 2019. години | L25: Извор верификације
A26: 2
B30: Циљ | D30: Индикатори
D31: Назив индикатора | G31: Вредност у базној години (2015.) | H31: Очекивана вредност у 2016. години | I31: Циљана вредност у 2017. години | J31: Циљана вредност у 2018. години | K31: Циљана вредност у 2019. години | L31: Извор верификације
A32: 3
A37: Рбр. | B37: Конто | C37: Расходи и издаци пројекта | D37: Вредност у базној години (2015) | F37: Очекивана вредност у 2016. години | H37: Вредност у 2017. години | J37: Вредност у 2018. години | L37: Вредност у 2019. години | N37: Укупно (2017-2019) | Q37: Уколико желите користити опцију "Σ " (AutoSum) за измену међузбирова у складу са својим потребама, потребно је уклонити заштиту са документа кликом на Review > Unprotect sheet.
D38: Буџетска средства | E38: Средства из осталих извора | F38: Буџетска средства | G38: Средства из осталих извора | H38: Буџетска средства | I38: Средства из осталих извора | J38: Буџетска средства | K38: Средства из осталих извора | L38: Буџетска средства | M38: Средства из осталих извора | N38: Буџетска средства | O38: Средства из осталих извора
A39: 1 | B39: 421000 | C39: =IF(B39="","",VLOOKUP(B39,Упутство!$A$1912:$B$6831,2,FALSE)) -> СТАЛНИ ТРОШКОВИ | D39: =SUM(D40:D42) -> 0 | E39: =SUM(E40:E42) -> 0 | F39: 0 | G39: =SUM(G40:G42) -> 0 | H39: 0 | I39: 0 | J39: 0 | K39: 0 | L39: 0 | M39: 0 | N39: =SUM(H39,J39,L39) -> 0 | O39: =SUM(I39,K39,M39) -> 0
A40: 2 | C40: =IF(B40="","",VLOOKUP(B40,Упутство!$A$1912:$B$6831,2,FALSE)) ->  | N40: =SUM(H40,J40,L40) -> 0 | O40: =SUM(I40,K40,M40) -> 0
A41: 3 | C41: =IF(B41="","",VLOOKUP(B41,Упутство!$A$1912:$B$6831,2,FALSE)) ->  | N41: 0 | O41: 0
A42: 4 | C42: =IF(B42="","",VLOOKUP(B42,Упутство!$A$1912:$B$6831,2,FALSE)) ->  | N42: 0 | O42: 0
A43: 5 | B43: 422000 | C43: =IF(B43="","",VLOOKUP(B43,Упутство!$A$1912:$B$6831,2,FALSE)) -> ТРОШКОВИ ПУТОВАЊА | D43: =SUM(D44:D46) -> 0 | E43: =SUM(E44:E46) -> 0 | F43: 0 | G43: =SUM(G44:G46) -> 0 | H43: 0 | I43: 0 | J43: 0 | K43: 0 | L43: 0 | M43: 0 | N43: 0 | O43: 0
A44: 6 | C44: =IF(B44="","",VLOOKUP(B44,Упутство!$A$1912:$B$6831,2,FALSE)) ->  | N44: 0 | O44: 0
A45: 7 | C45: =IF(B45="","",VLOOKUP(B45,Упутство!$A$1912:$B$6831,2,FALSE)) ->  | N45: 0 | O45: 0
A46: 8 | C46: =IF(B46="","",VLOOKUP(B46,Упутство!$A$1912:$B$6831,2,FALSE)) ->  | N46: 0 | O46: 0
A47: 9 | B47: 423000 | C47: =IF(B47="","",VLOOKUP(B47,Упутство!$A$1912:$B$6831,2,FALSE)) -> УСЛУГЕ ПО УГОВОРУ | D47: =SUM(D48:D55) -> 0 | E47: =SUM(E48:E55) -> 0 | F47: 0 | G47: =SUM(G48:G55) -> 0 | H47: 0 | I47: 0 | J47: 0 | K47: 0 | L47: 0 | M47: 0 | N47: 0 | O47: 0
A48: 10 | C48: =IF(B48="","",VLOOKUP(B48,Упутство!$A$1912:$B$6831,2,FALSE)) ->  | N48: 0 | O48: 0
A49: 11 | C49: =IF(B49="","",VLOOKUP(B49,Упутство!$A$1912:$B$6831,2,FALSE)) ->  | N49: 0 | O49: 0
A50: 12 | C50: =IF(B50="","",VLOOKUP(B50,Упутство!$A$1912:$B$6831,2,FALSE)) ->  | N50: 0 | O50: 0
A51: 13 | C51: =IF(B51="","",VLOOKUP(B51,Упутство!$A$1912:$B$6831,2,FALSE)) ->  | N51: 0 | O51: 0
A52: 14 | C52: =IF(B52="","",VLOOKUP(B52,Упутство!$A$1912:$B$6831,2,FALSE)) ->  | N52: 0 | O52: 0
A53: 15 | C53: =IF(B53="","",VLOOKUP(B53,Упутство!$A$1912:$B$6831,2,FALSE)) ->  | N53: 0 | O53: 0
A54: 16 | C54: =IF(B54="","",VLOOKUP(B54,Упутство!$A$1912:$B$6831,2,FALSE)) ->  | N54: 0 | O54: 0
A55: 17 | C55: =IF(B55="","",VLOOKUP(B55,Упутство!$A$1912:$B$6831,2,FALSE)) ->  | N55: 0 | O55: 0
A56: 18 | B56: 424000 | C56: =IF(B56="","",VLOOKUP(B56,Упутство!$A$1912:$B$6831,2,FALSE)) -> СПЕЦИЈАЛИЗОВАНЕ УСЛУГЕ | D56: =SUM(D57:D59) -> 0 | E56: =SUM(E57:E59) -> 0 | F56: 0 | G56: =SUM(G57:G59) -> 0 | H56: 0 | I56: 0 | J56: 0 | K56: 0 | L56: 0 | M56: 0 | N56: 0 | O56: 0
A57: 19 | C57: =IF(B57="","",VLOOKUP(B57,Упутство!$A$1912:$B$6831,2,FALSE)) ->  | N57: 0 | O57: 0
A58: 20 | C58: =IF(B58="","",VLOOKUP(B58,Упутство!$A$1912:$B$6831,2,FALSE)) ->  | N58: 0 | O58: 0
A59: 21 | C59: =IF(B59="","",VLOOKUP(B59,Упутство!$A$1912:$B$6831,2,FALSE)) ->  | N59: 0 | O59: 0
A60: 22 | B60: 425000 | C60: =IF(B60="","",VLOOKUP(B60,Упутство!$A$1912:$B$6831,2,FALSE)) -> ТЕКУЋЕ ПОПРАВКЕ И ОДРЖАВАЊЕ | D60: =SUM(D61:D63) -> 0 | E60: =SUM(E61:E63) -> 0 | F60: 0 | G60: =SUM(G61:G63) -> 0 | H60: 0 | I60: 0 | J60: 0 | K60: 0 | L60: 0 | M60: 0 | N60: 0 | O60: 0
A61: 23 | C61: =IF(B61="","",VLOOKUP(B61,Упутство!$A$1912:$B$6831,2,FALSE)) ->  | N61: 0 | O61: 0
A62: 24 | C62: =IF(B62="","",VLOOKUP(B62,Упутство!$A$1912:$B$6831,2,FALSE)) ->  | N62: 0 | O62: 0
A63: 25 | C63: =IF(B63="","",VLOOKUP(B63,Упутство!$A$1912:$B$6831,2,FALSE)) ->  | N63: 0 | O63: 0
A64: 26 | B64: 426000 | C64: =IF(B64="","",VLOOKUP(B64,Упутство!$A$1912:$B$6831,2,FALSE)) -> МАТЕРИЈАЛ | D64: =SUM(D65:D70) -> 0 | E64: =SUM(E65:E70) -> 0 | F64: 0 | G64: =SUM(G65:G70) -> 0 | H64: 0 | I64: 0 | J64: 0 | K64: 0 | L64: 0 | M64: 0 | N64: 0 | O64: 0
A65: 27 | C65: =IF(B65="","",VLOOKUP(B65,Упутство!$A$1912:$B$6831,2,FALSE)) ->  | N65: 0 | O65: 0
A66: 28 | C66: =IF(B66="","",VLOOKUP(B66,Упутство!$A$1912:$B$6831,2,FALSE)) ->  | N66: 0 | O66: 0
A67: 29 | C67: =IF(B67="","",VLOOKUP(B67,Упутство!$A$1912:$B$6831,2,FALSE)) ->  | N67: 0 | O67: 0
A68: 30 | C68: =IF(B68="","",VLOOKUP(B68,Упутство!$A$1912:$B$6831,2,FALSE)) ->  | N68: 0 | O68: 0
A69: 31 | C69: =IF(B69="","",VLOOKUP(B69,Упутство!$A$1912:$B$6831,2,FALSE)) ->  | N69: 0 | O69: 0
A70: 32 | C70: =IF(B70="","",VLOOKUP(B70,Упутство!$A$1912:$B$6831,2,FALSE)) ->  | N70: 0 | O70: 0
A71: 33 | B71: 451000 | C71: =IF(B71="","",VLOOKUP(B71,Упутство!$A$1912:$B$6831,2,FALSE)) -> СУБВЕНЦИЈЕ ЈАВНИМ НЕФИНАНСИЈСКИМ ПРЕДУЗЕЋИМА И ОРГАНИЗАЦИЈАМА | D71: =SUM(D72:D73) -> 0 | E71: =SUM(E72:E73) -> 0 | F71: 0 | G71: =SUM(G72:G73) -> 0 | H71: 0 | I71: 0 | J71: 0 | K71: 0 | L71: 0 | M71: 0 | N71: 0 | O71: 0
A72: 34 | C72: =IF(B72="","",VLOOKUP(B72,Упутство!$A$1912:$B$6831,2,FALSE)) ->  | N72: 0 | O72: 0
A73: 35 | C73: =IF(B73="","",VLOOKUP(B73,Упутство!$A$1912:$B$6831,2,FALSE)) ->  | N73: 0 | O73: 0
A74: 36 | B74: 454000 | C74: =IF(B74="","",VLOOKUP(B74,Упутство!$A$1912:$B$6831,2,FALSE)) -> СУБВЕНЦИЈЕ ПРИВАТНИМ ПРЕДУЗЕЋИМА | D74: =SUM(D75:D76) -> 0 | E74: =SUM(E75:E76) -> 0 | F74: 0 | G74: =SUM(G75:G76) -> 0 | H74: 0 | I74: 0 | J74: 0 | K74: 0 | L74: 0 | M74: 0 | N74: 0 | O74: 0
A75: 37 | C75: =IF(B75="","",VLOOKUP(B75,Упутство!$A$1912:$B$6831,2,FALSE)) ->  | N75: 0 | O75: 0
A76: 38 | C76: =IF(B76="","",VLOOKUP(B76,Упутство!$A$1912:$B$6831,2,FALSE)) ->  | N76: 0 | O76: 0
A77: 39 | B77: 463000 | C77: =IF(B77="","",VLOOKUP(B77,Упутство!$A$1912:$B$6831,2,FALSE)) -> ТРАНСФЕРИ ОСТАЛИМ НИВОИМА ВЛАСТИ | D77: =SUM(D78:D79) -> 0 | E77: =SUM(E78:E79) -> 0 | F77: 0 | G77: =SUM(G78:G79) -> 0 | H77: 0 | I77: =SUM(I78:I79) -> 0 | J77: 0 | K77: 0 | L77: 0 | M77: 0 | N77: 0 | O77: 0
A78: 40 | C78: =IF(B78="","",VLOOKUP(B78,Упутство!$A$1912:$B$6831,2,FALSE)) ->  | N78: 0 | O78: 0
A79: 41 | C79: =IF(B79="","",VLOOKUP(B79,Упутство!$A$1912:$B$6831,2,FALSE)) ->  | N79: 0 | O79: 0
A80: 42 | B80: 472000 | C80: =IF(B80="","",VLOOKUP(B80,Упутство!$A$1912:$B$6831,2,FALSE)) -> НАКНАДЕ ЗА СОЦИЈАЛНУ ЗАШТИТУ ИЗ БУЏЕТА | D80: =SUM(D81:D85) -> 0 | E80: =SUM(E81:E85) -> 0 | F80: 0 | G80: =SUM(G81:G85) -> 0 | H80: 0 | I80: 0 | J80: 0 | K80: 0 | L80: 0 | M80: 0 | N80: 0 | O80: 0
A81: 43 | C81: =IF(B81="","",VLOOKUP(B81,Упутство!$A$1912:$B$6831,2,FALSE)) ->  | N81: 0 | O81: 0
A82: 44 | C82: =IF(B82="","",VLOOKUP(B82,Упутство!$A$1912:$B$6831,2,FALSE)) ->  | N82: 0 | O82: 0
A83: 45 | C83: =IF(B83="","",VLOOKUP(B83,Упутство!$A$1912:$B$6831,2,FALSE)) ->  | N83: 0 | O83: 0
A84: 46 | C84: =IF(B84="","",VLOOKUP(B84,Упутство!$A$1912:$B$6831,2,FALSE)) ->  | N84: 0 | O84: 0
A85: 47 | C85: =IF(B85="","",VLOOKUP(B85,Упутство!$A$1912:$B$6831,2,FALSE)) ->  | N85: 0 | O85: 0
A86: 48 | B86: 481000 | C86: =IF(B86="","",VLOOKUP(B86,Упутство!$A$1912:$B$6831,2,FALSE)) -> ДОТАЦИЈЕ НЕВЛАДИНИМ ОРГАНИЗАЦИЈАМА | D86: =SUM(D87:D93) -> 0 | E86: =SUM(E87:E93) -> 0 | F86: 0 | G86: =SUM(G87:G93) -> 0 | H86: 0 | I86: 0 | J86: 0 | K86: 0 | L86: 0 | M86: 0 | N86: 0 | O86: 0
A87: 49 | C87: =IF(B87="","",VLOOKUP(B87,Упутство!$A$1912:$B$6831,2,FALSE)) ->  | N87: 0 | O87: 0
A88: 50 | C88: =IF(B88="","",VLOOKUP(B88,Упутство!$A$1912:$B$6831,2,FALSE)) ->  | N88: 0 | O88: 0
A89: 51 | C89: =IF(B89="","",VLOOKUP(B89,Упутство!$A$1912:$B$6831,2,FALSE)) ->  | N89: 0 | O89: 0
A90: 52 | C90: =IF(B90="","",VLOOKUP(B90,Упутство!$A$1912:$B$6831,2,FALSE)) ->  | N90: 0 | O90: 0
A91: 53 | C91: =IF(B91="","",VLOOKUP(B91,Упутство!$A$1912:$B$6831,2,FALSE)) ->  | N91: 0 | O91: 0
A92: 54 | C92: =IF(B92="","",VLOOKUP(B92,Упутство!$A$1912:$B$6831,2,FALSE)) ->  | N92: 0 | O92: 0
A93: 55 | C93: =IF(B93="","",VLOOKUP(B93,Упутство!$A$1912:$B$6831,2,FALSE)) ->  | N93: 0 | O93: 0
A94: 56 | B94: 482000 | C94: =IF(B94="","",VLOOKUP(B94,Упутство!$A$1912:$B$6831,2,FALSE)) -> ПОРЕЗИ, ОБАВЕЗНЕ ТАКСЕ, КАЗНЕ И ПЕНАЛИ | D94: =SUM(D95:D96) -> 0 | E94: =SUM(E95:E96) -> 0 | F94: 0 | G94: =SUM(G95:G96) -> 0 | H94: 0 | I94: 0 | J94: 0 | K94: 0 | L94: 0 | M94: 0 | N94: 0 | O94: 0
A95: 57 | C95: =IF(B95="","",VLOOKUP(B95,Упутство!$A$1912:$B$6831,2,FALSE)) ->  | N95: 0 | O95: 0
A96: 58 | C96: =IF(B96="","",VLOOKUP(B96,Упутство!$A$1912:$B$6831,2,FALSE)) ->  | N96: 0 | O96: 0
A97: 59 | B97: 512000 | C97: =IF(B97="","",VLOOKUP(B97,Упутство!$A$1912:$B$6831,2,FALSE)) -> МАШИНЕ И ОПРЕМА | D97: =SUM(D98:D100) -> 0 | E97: =SUM(E98:E100) -> 0 | F97: 0 | G97: =SUM(G98:G100) -> 0 | H97: 0 | I97: 0 | J97: 0 | K97: 0 | L97: 0 | M97: 0 | N97: 0 | O97: 0
A98: 60 | C98: =IF(B98="","",VLOOKUP(B98,Упутство!$A$1912:$B$6831,2,FALSE)) ->  | N98: 0 | O98: 0
A99: 61 | C99: =IF(B99="","",VLOOKUP(B99,Упутство!$A$1912:$B$6831,2,FALSE)) ->  | N99: 0 | O99: 0
A100: 62 | C100: =IF(B100="","",VLOOKUP(B100,Упутство!$A$1912:$B$6831,2,FALSE)) ->  | N100: 0 | O100: 0
A101: 63 | B101: 513000 | C101: =IF(B101="","",VLOOKUP(B101,Упутство!$A$1912:$B$6831,2,FALSE)) -> ОСТАЛЕ НЕКРЕТНИНЕ И ОПРЕМА | D101: =SUM(D102) -> 0 | E101: =SUM(E102) -> 0 | F101: 0 | G101: =SUM(G102) -> 0 | H101: 0 | I101: 0 | J101: 0 | K101: 0 | L101: 0 | M101: 0 | N101: 0 | O101: 0
A102: 64 | C102: =IF(B102="","",VLOOKUP(B102,Упутство!$A$1912:$B$6831,2,FALSE)) ->  | N102: 0 | O102: 0
A103: 65 | B103: 514000 | C103: =IF(B103="","",VLOOKUP(B103,Упутство!$A$1912:$B$6831,2,FALSE)) -> КУЛТИВИСАНА ИМОВИНА | D103: =SUM(D104:D107) -> 0 | E103: =SUM(E104:E107) -> 0 | F103: 0 | G103: =SUM(G104:G107) -> 0 | H103: 0 | I103: 0 | J103: 0 | K103: 0 | L103: 0 | M103: 0 | N103: 0 | O103: 0
A104: 66 | C104: =IF(B104="","",VLOOKUP(B104,Упутство!$A$1912:$B$6831,2,FALSE)) ->  | N104: =SUM(H104,J104,L104) -> 0 | O104: =SUM(I104,K104,M104) -> 0
A105: 67 | C105: =IF(B105="","",VLOOKUP(B105,Упутство!$A$1912:$B$6831,2,FALSE)) ->  | N105: 0 | O105: 0
A106: 68 | C106: =IF(B106="","",VLOOKUP(B106,Упутство!$A$1912:$B$6831,2,FALSE)) ->  | N106: 0 | O106: 0
A107: 69 | C107: =IF(B107="","",VLOOKUP(B107,Упутство!$A$1912:$B$6831,2,FALSE)) ->  | N107: 0 | O107: 0
A108: 70 | B108: 515000 | C108: =IF(B108="","",VLOOKUP(B108,Упутство!$A$1912:$B$6831,2,FALSE)) -> НЕМАТЕРИЈАЛНА ИМОВИНА | D108: =SUM(D109:D110) -> 0 | E108: =SUM(E109:E110) -> 0 | F108: 0 | G108: =SUM(G109:G110) -> 0 | H108: 0 | I108: 0 | J108: 0 | K108: 0 | L108: 0 | M108: 0 | N108: 0 | O108: 0
A109: 71 | C109: =IF(B109="","",VLOOKUP(B109,Упутство!$A$1912:$B$6831,2,FALSE)) ->  | N109: 0 | O109: 0
A110: 72 | C110: =IF(B110="","",VLOOKUP(B110,Упутство!$A$1912:$B$6831,2,FALSE)) ->  | N110: 0 | O110: 0
A111: 73 | B111: 541000 | C111: =IF(B111="","",VLOOKUP(B111,Упутство!$A$1912:$B$6831,2,FALSE)) -> ЗЕМЉИШТЕ | D111: =SUM(D112:D113) -> 0 | E111: =SUM(E112:E113) -> 0 | F111: 0 | G111: =SUM(G112:G113) -> 0 | H111: 0 | I111: 0 | J111: 0 | K111: 0 | L111: 0 | M111: 0 | N111: 0 | O111: 0
A112: 74 | C112: =IF(B112="","",VLOOKUP(B112,Упутство!$A$1912:$B$6831,2,FALSE)) ->  | N112: 0 | O112: 0
A113: 75 | C113: =IF(B113="","",VLOOKUP(B113,Упутство!$A$1912:$B$6831,2,FALSE)) ->  | N113: 0 | O113: 0
A114: 76 | B114: 543000 | C114: =IF(B114="","",VLOOKUP(B114,Упутство!$A$1912:$B$6831,2,FALSE)) -> ШУМЕ И ВОДЕ | D114: =SUM(D115:D116) -> 0 | E114: =SUM(E115:E116) -> 0 | F114: 0 | G114: =SUM(G115:G116) -> 0 | H114: 0 | I114: =SUM(I115:I116) -> 0 | J114: 0 | K114: 0 | L114: 0 | M114: 0 | N114: 0 | O114: 0
A115: 77 | C115: =IF(B115="","",VLOOKUP(B115,Упутство!$A$1912:$B$6831,2,FALSE)) ->  | N115: 0 | O115: 0
A116: 78 | C116: =IF(B116="","",VLOOKUP(B116,Упутство!$A$1912:$B$6831,2,FALSE)) ->  | N116: 0 | O116: 0
A117: УКУПНО ЗА: | C117: =$D$5&"-"&$E$5&" "&$D$6 -> 0602- | D117: =SUM(D39:D116)/2 -> 0 | E117: 0 | F117: 0 | G117: 0 | H117: 0 | I117: 0 | J117: 0 | K117: 0 | L117: 0 | M117: 0 | N117: 0 | O117: 0
A119: Рбр. | B119: Извори финансирања пројекта | D119: Вредност у базној години (2015) | F119: Очекивана вредност у 2016. години | H119: Вредност у 2017. години | J119: Вредност у 2018. години | L119: Вредност у 2019. години | N119: Укупно (2017-2019)
A120: 1 | N120: =SUM(H120:M120) -> 0
A121: 2 | N121: 0
A122: 3 | N122: 0
A123: 4 | N123: 0
A124: 5 | N124: 0
A125: 6 | N125: 0
A126: 7 | N126: 0
A127: 8 | N127: 0
A128: 9 | N128: 0
A129: 10 | N129: 0
A130: 11 | N130: =SUM(H130:M130) -> 0
A131: 12 | N131: 0
A132: 13 | N132: 0
A133: 14 | N133: 0
A134: 15 | N134: 0
A135: 16 | N135: 0
A136: 17 | N136: 0
A137: УКУПНО ЗА: | C137: =$D$5&"-"&$E$5&" "&$D$6 -> 0602- | D137: =SUM(D120:E136) -> 0 | F137: =SUM(F120:G136) -> 0 | H137: =SUM(H120:I136) -> 0 | J137: =SUM(J120:K136) -> 0 | L137: =SUM(L120:M136) -> 0 | N137: =SUM(H137:M137) -> 0
A139: * | B139: 1-3 циља за сваку програмску активност
A140: ** | B140: 1-3 индикатора исхода/излазног резултата за сваки циљ
M143: Одговорно лице
B145: Датум: | C145: 04.09.2017.

Sheet Упутство (hidden)
A1: Програми | B1: Шифра | C1: Сврха | BR1: ФУНКЦИОНАЛНА КЛАСИФИКАЦИЈА | BU1: КЛАСИФИКАЦИЈА ПО ИЗВОРИМА ФИНАНСИРАЊА | BY1: ЕКОНОМСКА КЛАСИФИКАЦИЈА - 3 nivo | CK1: 000 | CL1: СОЦИЈАЛНА ЗАШТИТА | CO1: =BR2&" - "&BS2 -> 0 - СОЦИЈАЛНА ЗАШТИТА | CT1: КЛАСИФИКАЦИЈА ПО ИЗВОРИМА ФИНАНСИРАЊА
A2: Програм 1. Урбанизам и просторно планирање | B2: 1101 | C2: Планско одређивање праваца развоја локалне средине и ефикасно администрирање захтева за издавање грађевинских дозвола | BR2: 0 | BS2: СОЦИЈАЛНА ЗАШТИТА | BU2: 01 | BV2: Приходи из буџета | BW2: 01 | BY2: 411 | BZ2: Плате, додаци и накнаде запослених (зараде) | CA2: 411 | CK2: 010 | CL2: Болест и инвалидност | CO2: =BR3&" - "&BS3 -> 10 - Болест и инвалидност | CT2: 01 | CU2: Приходи из буџета | CX2: =CT2&" - "&CU2 -> 01 - Приходи из буџета
A3: Програм 2. Комуналне делатности | B3: 1102 | C3: Пружања комуналних услуга од значаја за остварење животних потреба физичких и правних лица уз обезбеђење одговарајућег квалитета, обима, доступности и континуитета; Одрживо снабдевање корисника топлотном енергијом; Редовно, сигурно и одрживо снабдевање водом за пиће становника, уређивање начина коришћења и управљања изворима, јавним бунарима и чесмама | BR3: 10 | BS3: Болест и инвалидност | BU3: 02 | BV3: Трансфери између корисника на истом нивоу | BW3: 02 | BY3: 412 | BZ3: Социјални доприноси на терет послодавца | CA3: 412 | CK3: 020 | CL3: Старост | CO3: 20 - Старост | CT3: 02 | CU3: Трансфери између корисника на истом нивоу | CX3: =CT3&" - "&CU3 -> 02 - Трансфери између корисника на истом нивоу
A4: Програм 3. Локални економски развој | B4: 1501 | C4: Обезбеђивање стимулативног оквира за пословање и адекватног привредног амбијента за привлачење инвестиција | BR4: 20 | BS4: Старост | BU4: 03 | BV4: Социјални доприноси | BW4: 03 | BY4: 413 | BZ4: Накнаде у натури | CA4: 413 | CK4: 030 | CL4: Корисници породичне пензије | CO4: 30 - Корисници породичне пензије | CT4: 03 | CU4: Социјални доприноси | CX4: 03 - Социјални доприноси
A5: Програм 4. Развој туризма | B5: 1502 | C5: Унапређење туристичке понуде у граду/општини | BR5: 30 | BS5: Корисници породичне пензије | BU5: 04 | BV5: Сопствени приходи буџетских корисника | BW5: 04 | BY5: 414 | BZ5: Социјална давања запосленима | CA5: 414 | CK5: 040 | CL5: Породица и деца | CO5: 40 - Породица и деца | CT5: 04 | CU5: Сопствени приходи буџетских корисника | CX5: 04 - Сопствени приходи буџетских корисника
A6: Програм 5. Развој пољопривреде | B6: 0101 | C6: Унапређење пољопривредне производње у граду/општини | BR6: 40 | BS6: Породица и деца | BU6: 05 | BV6: Донације од иностраних земаља | BW6: 05 | BY6: 415 | BZ6: Накнаде трошкова за запослене | CA6: 415 | CK6: 050 | CL6: Незапосленост | CO6: 50 - Незапосленост | CT6: 05 | CU6: Донације од иностраних земаља | CX6: 05 - Донације од иностраних земаља
A7: Програм 6. Заштита животне средине | B7: 0401 | C7: Обезбеђивање услова за одрживи развој локалне заједнице одговорним односом према животној средини; Ефикасно и одрживо управљање отпадним водама; Одрживо управљање отпадом | BR7: 50 | BS7: Незапосленост | BU7: 06 | BV7: Донације од међународних организација | BW7: 06 | BY7: 416 | BZ7: Награде запосленима и остали посебни расходи | CA7: 416 | CK7: 060 | CL7: Становање | CO7: 60 - Становање | CT7: 06 | CU7: Донације од међународних организација | CX7: 06 - Донације од међународних организација
A8: Програм 7. Организација саобраћаја и саобраћајна инфраструктура | B8: 0701 | C8: Унапређење организације саобраћаја и унапређење саобраћајне инфраструктуре у локалној самоуправи | BR8: 60 | BS8: Становање | BU8: 07 | BV8: Донације од осталих нивоа власти | BW8: 07 | BY8: 417 | BZ8: Посланички додатак | CA8: 417 | CK8: 070 | CL8: Социјална помоћ угроженом становништву, некласификована на другом месту | CO8: 70 - Социјална помоћ угроженом становништву, некласификована на другом месту | CT8: 07 | CU8: Трансфери од других нивоа власти | CX8: =CT8&" - "&CU8 -> 07 - Трансфери од других нивоа власти
A9: Програм 8. Предшколско васпитање | B9: 2001 | C9: Омогућавање обухвата предшколске деце у вртићима | BR9: 70 | BS9: Социјална помоћ угроженом становништву, некласификована на другом месту | BU9: 08 | BV9: Донације од невладиних организација и појединаца | BW9: 08 | BY9: 418 | BZ9: Судијски додатак. | CA9: 418 | CK9: 080 | CL9: Социјална заштита - истраживање и развој | CO9: 80 - Социјална заштита - истраживање и развој | CT9: 08 | CU9: Добровољни трансфери од физичких и правних лица | CX9: 08 - Добровољни трансфери од физичких и правних лица | DE9: Поступак за попуњавање образаца
A10: Програм 9. Основно образовање | B10: 2002 | C10: Доступност основног образовања свој деци са територије града/општине у складу са прописаним стандардима | BR10: 80 | BS10: Социјална заштита - истраживање и развој | BU10: 09 | BV10: Примања од продаје нефинансијске имовине | BW10: 09 | BY10: 421 | BZ10: Стални трошкови | CA10: 421 | CK10: 090 | CL10: Социјална заштита некласификована на другом месту | CO10: 90 - Социјална заштита некласификована на другом месту | CT10: 09 | CU10: Примања од продаје нефинансијске имовине | CX10: 09 - Примања од продаје нефинансијске имовине
A11: Програм 10. Средње образовање | B11: 2003 | C11: Доступност средњег образовања у складу са прописаним стандардима и потребама за образовним профилима који одговарају циљевима развоја града/општине и привреде | BR11: 90 | BS11: Социјална заштита некласификована на другом месту | BU11: 10 | BV11: Примања од домаћих задуживања | BW11: 10 | BY11: 422 | BZ11: Трошкови путовања | CA11: 422 | CK11: 100 | CL11: ОПШТЕ ЈАВНЕ УСЛУГЕ | CO11: 100 - ОПШТЕ ЈАВНЕ УСЛУГЕ | CT11: 10 | CU11: Примања од домаћих задуживања | CX11: 10 - Примања од домаћих задуживања
BR12: 100 | BS12: ОПШТЕ ЈАВНЕ УСЛУГЕ | CO12: 110 - Извршни и законодавни органи, финансијски и фискални послови и спољни послови | CX12: =CT13&" - "&CU13 -> 11 - Примања од иностраних задуживања | DE12: I | DF12: ПОДЕШАВАЊЕ ПОЧЕТНИХ ПАРАМЕТАРА:
A13: Програм 11. Социјална и дечја заштита | B13: 0901 | C13: Обезбеђивање свеобухватне социјалне заштите и помоћи најугроженијем становништву града/општине | BR13: 110 | BS13: Извршни и законодавни органи, финансијски и фискални послови и спољни послови | BU13: 11 | BV13: Примања од иностраних задуживања | BW13: 11 | BY13: 423 | BZ13: Услуге по уговору | CA13: 423 | CK13: 110 | CL13: Извршни и законодавни органи, финансијски и фискални послови и спољни послови | CO13: 111 - Извршни и законодавни органи | CT13: 11 | CU13: Примања од иностраних задуживања | CX13: =CT14&" - "&CU14 -> 12 - Примања од отплате датих кредита и продаје финансијске имовине | DF13: Прво што је потребно урадити јесте да омогућите макрое у Вашој верзији Ексела. У зависности од верзије по покретању документа добићете обавештење да су макрои онемогућени и питање да ли желите да омогућите макрое. Кликом на опцију "Еnable this content" или "Enable macros" омогућавају се програмске процедуре које су неопходне за рад документа.
A14: Програм 12. Примарна здравствена заштита | B14: 1801 | C14: Доступност примарне здравствене заштите у складу са националним стандардима и обезбеђивање и спровођење активности у областима деловања јавног здравља | BR14: 111 | BS14: Извршни и законодавни органи | BU14: 12 | BV14: Примања од отплате датих кредита и продаје финансијске имовине | BW14: 12 | BY14: 424 | BZ14: Специјализоване услуге | CA14: 424 | CK14: 111 | CL14: Извршни и законодавни органи | CO14: 112 - Финансијски и фискални послови | CT14: 12 | CU14: Примања од отплате датих кредита и продаје финансијске имовине | CX14: =CT15&" - "&CU15 -> 13 - Нераспоређени вишак прихода из ранијих година | DF14: Након омогућавања макроа у радном листу "Програм", у ћелији "D4" изаберете назив Програма. Овим поступком сте подесили параметре за рад у радним листовима "Програмска активност" и "Пројекат".
A15: Програм 13. Развој културе | B15: 1201 | C15: Очување, унапређење и представљање локалног културног наслеђа, добара и баштине | BR15: 112 | BS15: Финансијски и фискални послови | BU15: 13 | BV15: Нераспоређени вишак прихода из ранијих година | BW15: 13 | BY15: 425 | BZ15: Текуће поправке и одржавање | CA15: 425 | CK15: 112 | CL15: Финансијски и фискални послови | CO15: 113 - Спољни послови | CT15: 13 | CU15: Нераспоређени вишак прихода из ранијих година | CX15: =CT16&" - "&CU16 -> 14 - Неутрошена средства од приватизације из ранијих година
A16: Програм 14. Развој спорта и омладине | B16: 1301 | C16: Обезбеђивање приступа спорту и подршка пројектима у вези са развојем омладине и спорта | BR16: 113 | BS16: Спољни послови | BU16: 14 | BV16: Неутрошена средства од приватизације из претходних година | BW16: 14 | BY16: 426 | BZ16: Материјал | CA16: 426 | CK16: 113 | CL16: Спољни послови | CO16: 120 - Економска помоћ иностранству | CT16: 14 | CU16: Неутрошена средства од приватизације из ранијих година | CX16: =CT18&" - "&CU18 -> 15 - Неутрошена средства донација из ранијих година
BR17: 120 | BS17: Економска помоћ иностранству | CO17: 121 - Економска помоћ земљама у развоју и земљама у транзицији | CX17: =CT19&" - "&CU19 -> 16 - Родитељски динар за ваннаставне активности | DE17: II | DF17: КОПИРАЊЕ ПОТРЕБНОГ БРОЈA SHEET-ОВА ЗА ПРОГРАМСКЕ АКТИВНОСТИ И ПРОЈЕКТЕ
A18: Програм 15. Опште услуге локалне самоуправе | B18: 0602 | C18: Обезбеђивање услова за остварење права грађана на лакши и бржи начин у граду/општини | BR18: 121 | BS18: Економска помоћ земљама у развоју и земљама у транзицији | BU18: 15 | BV18: Неутрошена средства донација из претходних година | BW18: 15 | BY18: 431 | BZ18: Амортизација некретнина и опреме | CA18: 431 | CK18: 120 | CL18: Економска помоћ иностранству | CO18: 122 - Економска помоћ преко међународних организација | CT18: 15 | CU18: Неутрошена средства донација из ранијих година | CX18: =CT20&" - "&CU20 -> 56 - Финансијска помоћ ЕУ | DF18: Сваки програм се састоји из различитог броја програмских активности и пројеката те је неопходно да за онај број програмских активности и пројеката који Вам је потребан ископирате радне листове "Програмска активност" и "Пројекат". Поступак копирања је следећи:
A19: Програм 16. Политички систем локалне самоуправе | B19: 2101 | C19: Обављање основних функција изборних органа локалне самоуправе | BR19: 122 | BS19: Економска помоћ преко међународних организација | BU19: 16 | BV19: Родитељски динар за ваннаставне активности | BW19: 16 | BY19: 432 | BZ19: Амортизација култивисане имовине | CA19: 432 | CK19: 121 | CL19: Економска помоћ земљама у развоју и земљама у транзицији | CO19: 130 - Опште услуге | CT19: 16 | CU19: Родитељски динар за ваннаставне активности | DF19: 1) За нову програмску активност : Кликните десним кликом на радни лист - "Програмска активност" и изаберите опцију "Move or copy". Након тога приказаће Вам се прозор у коме треба у одељку "Before sheet" одабрати позицију новог радног листа ("Sheet"-a) односно Програмске активности. Kликом на један од понуђених радних листова бирате позицију нове програмске активности, и то тако што се нова програмска активност позиционира испред изабраног постојећег радног листа. Након избора позиције обавезно штиклирате опцију "Create a copy" а затим кликните на ОК.
A20: Програм 17. Енергетска ефикасност | B20: 0501 | C20: Одрживи енергетски развој локалне самоуправе кроз постицање унапређења енергетске ефикасности, побољшање енергетске инфраструктуре и ширу употребу обновљивих извора енергије | BR20: 130 | BS20: Опште услуге | BY20: 433 | BZ20: Употреба драгоцености | CA20: 433 | CK20: 122 | CL20: Економска помоћ преко међународних организација | CO20: 131 - Опште кадровске услуге | CT20: 56 | CU20: Финансијска помоћ ЕУ | DF20: Препоручљиво је да приликом избора позиције за нову програмску активност у одељку "Before sheet" изаберете радни лист - "Пројекат" како би се испоштовао редослед у позиционирању (најпре програм, затим све програмске активности у оквиру програма и на крају сви пројекти у оквиру изабраног програма).
BR21: 131 | BS21: Опште кадровске услуге | BY21: 434 | BZ21: Употреба природне имовине | CA21: 434 | CK21: 130 | CL21: Опште услуге | CO21: 132 - Опште услуге планирања и статистике | DF21: 2) За нови пројекат: Кликните десним кликом на радни лист "Пројекат" и изаберите опцију "Move or copy". Након тога приказаће Вам се прозор у коме треба у одељку "Before sheet" одабрати позицију новог радног листа ("Sheet"-a) односно Пројекта. Kликом на један од понуђених радних листова бирате позицију новог пројекта, и то тако што се нови пројекат позиционира испред изабраног постојећег радног листа. Препоручљиво је да у одељку "Before sheet" за нови пројекат изаберете радни лист - "Упутство". Након избора позиције штиклирате опцију "Create a copy" затим кликнете на ОК.
BR22: 132 | BS22: Опште услуге планирања и статистике | BY22: 435 | BZ22: Амортизација нематеријалне имовине | CA22: 435 | CK22: 131 | CL22: Опште кадровске услуге | CO22: 133 - Остале опште услуге
BR23: 133 | BS23: Остале опште услуге | BY23: 441 | BZ23: Отплата домаћих камата | CA23: 441 | CK23: 132 | CL23: Опште услуге планирања и статистике | CO23: 150 - Опште јавне услуге - истраживање и развој | DE23: III | DF23: ЗНАЧЕЊЕ ПОЈЕДИНИХ НАСЛОВА КОД ПРОГРАМА, ПРОГРАМСКИХ АКТИВНОСТИ И ПРОЈЕКАТА И ИНФОРМАЦИЈЕ КОЈЕ СЕ УНОСЕ
BR24: 150 | BS24: Опште јавне услуге - истраживање и развој | BY24: 442 | BZ24: Отплата страних камата | CA24: 442 | CK24: 133 | CL24: Остале опште услуге | CO24: 160 - Опште јавне услуге некласификоване на другом месту | DF24: 1) У табелама у којима се исказују индикатори:
BR25: 160 | BS25: Опште јавне услуге некласификоване на другом месту | BY25: 443 | BZ25: Отплата камата по гаранцијама | CA25: 443 | CK25: 140 | CL25: Основно истраживање | CO25: 170 - Трансакције јавног дуга
BR26: 170 | BS26: Трансакције јавног дуга | BY26: 4511 | BZ26: Текуће субвенције јавним нефинансијским предузећима и организацијама | CA26: 451 | CK26: 160 | CL26: Опште јавне услуге некласификоване на другом месту | CO26: 180 - Трансфери општег карактера између различитих нивоа власти | DF26: - наслов колоне "Вредност у базној години (крај 2015. године)" односи се на иницијалну референтну вредност индикатора у односу на коју настојимо да пратимо промене током времена (кроз наредне буџетске циклусе када ће бити расположиве вредности са краја 2016/2017/итд.). Као иницијалну референтну вредност у ову колону треба унети вредност према расположивим подацима за крај 2015. године тј. из завршног рачуна. Уколико нису познати подаци о вредности индикатора за крај 2015. године, унети вредност индикатора из периода који претходи крају 2015. године и за који су подаци доступни (нпр. средина 2015. године, крај 2014. године и сл.)
BR27: 180 | BS27: Трансфери општег карактера између различитих нивоа власти | BY27: 4512 | BZ27: Капиталне субвенције јавним нефинансијским предузећима и организацијама | CK27: 170 | CL27: Трансакције јавног дуга | CO27: 200 - ОДБРАНА | DF27: - наслов колоне "Очекивана вредност у 2016. години" односи се на вредност индикатора пројектовану за крај 2016. године. Будући да у периоду припреме буџета за 2017. годину нису познате вредности индикатора које ће бити коначно остварене до краја текуће 2016. године, у ову колону уносе се планиране/очекиване вредности индикатора. Уколико се у циклусу припреме буџета за 2017. годину користи исти индикатор који је коришћен и у циклусу за 2016. годину, у ову колону уноси се вредност индикатора која је исказана као пројекција за 2016. годину уколико је она и даље реална, а уколико није реална потребно је унети вредност индикатора за коју се објективно процењује да ће бити остварена до краја 2016. године.
BR28: 200 | BS28: ОДБРАНА | BY28: 452 | BZ28: Субвенције приватним финансијским институцијама | CA28: 452 | CK28: 180 | CL28: Трансфери општег карактера између различитих нивоа власти | CO28: 210 - Војна одбрана | DF28: - у колонама које се односе на циљане вредности за 2017., 2018. и 2019. годину, корисник уноси очекиване вредности индикатора према пројекцијама за крај сваке односне године.
BR29: 210 | BS29: Војна одбрана | BY29: 453 | BZ29: Субвенције јавним финансијским институцијама | CA29: 453 | CK29: 200 | CL29: ОДБРАНА | CO29: 220 - Цивилна одбрана
BR30: 220 | BS30: Цивилна одбрана | BY30: 454 | BZ30: Субвенције приватним предузећима | CA30: 454 | CK30: 210 | CL30: Војна одбрана | CO30: 240 - Одбрана - истраживање и развој
BR31: 240 | BS31: Одбрана - истраживање и развој | BY31: 461 | BZ31: Донације страним владама | CA31: 461 | CK31: 220 | CL31: Цивилна одбрана | CO31: 250 - Одбрана некласификована на другом месту
BR32: 250 | BS32: Одбрана некласификована на другом месту | BY32: 462 | BZ32: Донације и дотације међународним организацијама | CA32: 462 | CK32: 230 | CL32: Војна помоћ иностранству | CO32: 300 - ЈАВНИ РЕД И БЕЗБЕДНОСТ
BR33: 300 | BS33: ЈАВНИ РЕД И БЕЗБЕДНОСТ | CO33: 310 - Услуге полиције | DF33: 2) У табелама у којима се исказују расходи и издаци:
BR34: 310 | BS34: Услуге полиције | BY34: 4632 | BZ34: Капитални трансфери осталим нивоима власти | CA34: 4632 | CK34: 250 | CL34: Одбрана некласификована на другом месту | CO34: 320 - Услуге противпожарне заштите | DF34: - наслов колоне "Вредност у базној години (2015.)" се односи на вредности из завршног рачуна за 2015. годину.
BR35: 320 | BS35: Услуге противпожарне заштите | BY35: 464 | BZ35: Дотације организацијама обавезног социјалног осигурања | CA35: 464 | CK35: 300 | CL35: ЈАВНИ РЕД И БЕЗБЕДНОСТ | CO35: 330 - Судови | DF35: наслов колоне "Расходи и издаци у 2016. години" односи се на расходе и издатке предвиђене Одлуком о буџету за 2016. годину, односно сходно вредностима према последњем ребалансу буџета за 2016. годину (уколико је било ребаланса буџета). У наредним буџетским циклусима, ова колона биће измењена тако да се у њој исказују расходи и издаци остварени у складу са годишњим финансијским извештајем о извршењу буџета.
BR36: 330 | BS36: Судови | BY36: 465 | BZ36: Остале донације, дотације и трансфери | CA36: 465 | CK36: 310 | CL36: Услуге полиције | CO36: 350 - Јавни ред и безбедност - истраживање и развој | DF36: - у колоне које се односе на расходе и издатке за 2017., 2018. и 2019. годину, корисник уноси износе расхода очекиване према пројекцијама за крај сваке односне године.
A37: Врста Активности | B37: Програми | BR37: 350 | BS37: Јавни ред и безбедност - истраживање и развој | BY37: 472 | BZ37: Накнаде за социјалну заштиту из буџета | CA37: 472 | CK37: 320 | CL37: Услуге противпожарне заштите | CO37: 360 - Јавни ред и безбедност некласификован на другом месту
A38: Активност | B38: Програм 1. Урбанизам и просторно планирање | C38: п1 | D38: 1101-0001 Просторно и урбанистичко планирање | E38: 1101-0002 Спровођење урбанистичких и просторних планова | F38: 1101-0003 Управљање грађевинским земљиштем | G38: 1101-0004 Социјално становање | BR38: 360 | BS38: Јавни ред и безбедност некласификован на другом месту | BY38: 481 | BZ38: Дотације невладиним организацијама | CA38: 481 | CK38: 330 | CL38: Судови | CO38: 400 - ЕКОНОМСКИ ПОСЛОВИ | DE38: IV | DF38: ПОПУЊАВАЊЕ ПРОГАМА, ПРОГРАМСКИХ АКТИВНОСТИ И ПРОЈЕКАТА
A39: Пројекат | B39: Програм 2. Комуналне делатности | C39: п2 | D39: 0601-0001 Управљање/одржавање јавним осветљењем | E39: 0601-0002 Одржавање јавних зелених површина | F39: 0601-0003 Одржавање чистоће на површинама јавне намене | G39: 0601-0004 Зоохигијена | H39: 0601-0005 Уређивање, одржавање и коришћење пијаца | I39: 0601-0006 Одржавање гробаља и погребне услуге | J39: 0601-0007 Прозводња и дистрибуције топлотне енергије | K39: 0601-0008 Управљање и снабдевање водом за пиће | L39: 0601-0009 Остале комуналне услуге | BR39: 400 | BS39: ЕКОНОМСКИ ПОСЛОВИ | BY39: 482 | BZ39: Порези, обавезне таксе, казне и пенали | CA39: 482 | CK39: 350 | CL39: Јавни ред и безбедност - истраживање и развој | CO39: 410 - Општи економски и комерцијални послови и послови по питању рада | DF39: 1) За Програм: Након завршеног избора програма , шифра програма, сектор коме припада програм и сврха програма се учитавају аутоматски, тако да почетак попуњавања креће од Основа програма. Унета је заштита за ћелије у којима се налазе функције, како их корисник не би случајно променио или обрисао. У радном листу "Програм" су на располагању кориснику још три циља са индикаторима који се приказују опцијом "+" на ободу леве стране документа.
B40: Програм 3. Локални економски развој | C40: п3 | D40: 1501-0001 Унапређење привредног и инвестиционог амбијента | E40: 1501-0002 Мере активне политике запошљавања | F40: 1501-0003 Подстицаји за развој предузетништва | BR40: 410 | BS40: Општи економски и комерцијални послови и послови по питању рада | BY40: 483 | BZ40: Новчане казне и пенали по решењу судова | CA40: 483 | CK40: 360 | CL40: Јавни ред и безбедност некласификован на другом месту | CO40: 411 - Општи економски и комерцијални послови | DF40: Након попуњених циљева и индикатора корисник не мора да попуњава остатак обрасца јер матрица аутоматски повлачи податке из других радних листова . Уколико је потребно више редова опцијом +", добијате још 30-ак поља за пројекте.
B41: Програм 4. Развој туризма | C41: п4 | D41: 1502-0001 Управљање развојем туризма | E41: 1502-0002 Промоција туристичке понуде | BR41: 411 | BS41: Општи економски и комерцијални послови | BY41: 484 | BZ41: Накнада штете за повреде или штету насталу услед елементарних непогода или других природних узрока | CA41: 484 | CK41: 400 | CL41: ЕКОНОМСКИ ПОСЛОВИ | CO41: 412 - Општи послови по питању рада
B42: Програм 5. Развој пољопривреде | C42: п5 | D42: 0101-0001 Подршка за спровођење пољопривредне политике у локалној заједници | E42: 0101-0002 Мере подршке руралном развоју | BR42: 412 | BS42: Општи послови по питању рада | BY42: 485 | BZ42: Накнада штете за повреде или штету нанету од стране државних органа | CA42: 485 | CK42: 410 | CL42: Општи економски и комерцијални послови и послови по питању рада | CO42: 420 - Пољопривреда, шумарство, лов и риболов | DF42: 2) За програмску активност: Пошто се назив програма аутоматски учитава корисник бира програмску активност из листе програмских активности које потпадају под изабрани програм. Свака појединачна програмска активност се попуњавана у посебном радном листу. У зависности од изабране програмске активности, у делу обрасца који се односи на дефинисање циљева и индикатора, из падајућих листа можете одабрати понуђене циљеве и индикаторе који су дефинисани од стране СКГО-а, али је остављена могућност за сопствено дефинисање.
B43: Програм 6. Заштита животне средине | C43: п6 | D43: 0401-0001 Управљање заштитом животне средине | E43: 0401-0002 Праћење квалитета елемената животне средине | F43: 0401-0003 Заштита природе | G43: 0401-0004 Управљање отпадним водама | H43: 0401-0005 Управљање комуналним отпадом | I43: 0401-0006 Управљање осталим врстама отпада | BR43: 420 | BS43: Пољопривреда, шумарство, лов и риболов | BY43: 489 | BZ43: Расходи који се финансирају из средстава за реализацију националног инвестиционог плана | CA43: 489 | CK43: 411 | CL43: Општи економски и комерцијални послови | CO43: 421 - Пољопривреда | DF43: Након попуњеног описног дела и дела везаног за циљеве и индикаторе, део обрасца који се односи на издатке и изворе финансирања попуњавати тако што се прво у колони "Конто" уносе шифре конта на шестоцифреном нивоу, тиме се аутоматски учитава назив конта из Правилника о стандардном класификационом оквиру и контном плану за буџетски систем(("Службени гласник РС", бр. 103/2011, 10/2012, 18/2012, 95/2012, 99/2012, 22/2013, 48/2013, 61/2013, 63/2013 - испр., 106/2013, 120/2013, 20/2014, 64/2014, 81/2014, 117/2014, 128/2014, 131/2014, 32/2015, 59/2015 и 63/2015).
B44: Програм 7. Организација саобраћаја и саобраћајна инфраструктура | C44: п7 | D44: 0701-0001 Управљање саобраћајем | E44: 0701-0002 Одржавање саобраћајне инфраструктуре | F44: 0701-0003 Управљање јавним паркиралиштима | G44: 0701-0004 Јавни градски и приградски превоз путника | BR44: 421 | BS44: Пољопривреда | BY44: 494 | BZ44: Административни трансфери из буџета - Текући расходи | CA44: 494 | CK44: 412 | CL44: Општи послови по питању рада | CO44: 422 - Шумарство | DF44: У складу са потребама тј комплексношћу финансијског плана буџетског корисниника на уносиоцу података је да одреди на ком нивоу аналитике ће попуњавати финасијски део. Уколико се модификује формула збира потребно је пажљиво проверити жељени обухват формуле.
B45: Програм 8. Предшколско васпитање | C45: п8 | D45: 2001-0001 Функционисање предшколских установа | BR45: 422 | BS45: Шумарство | BY45: 495 | BZ45: Административни трансфери из буџета - Издаци за нефинансијску имовину | CA45: 495 | CK45: 420 | CL45: Пољопривреда, шумарство, лов и риболов | CO45: 423 - Лов и риболов | DF45: Брисање колона није дозвољено. За извор финансирања у падајућем менију изаберите из којих извора се финансира програмска активност. Ради лакшег рада можете мењати називе радних листова.
B46: Програм 9. Основно образовање | C46: п9 | D46: 2002-0001 Функционисање основних школа | BR46: 423 | BS46: Лов и риболов | BY46: 496 | BZ46: Административни трансфери из буџета - Издаци за отплату главнице и набавку финансијске имовине | CA46: 496 | CK46: 421 | CL46: Пољопривреда | CO46: 430 - Гориво и енергија | DF46: 3) За пројекте: у ћелији "Е5" упишите шифру пројекта у формату П1,П2,П3...итд у зависности од редоследа пројеката у оквиру програма. Поступак попуњавања дела који се односи на трошкове и изворе финансирања је идентичан као и код програмске активности.
B47: Програм 10. Средње образовање | C47: п10 | D47: 2003-0001 Функционисање средњих школа | BR47: 430 | BS47: Гориво и енергија | BY47: 499 | BZ47: Административни трансфери из буџета - Средства резерве | CA47: 499 | CK47: 422 | CL47: Шумарство | CO47: 431 - Угаљ и остала чврста минерална горива
B48: Програм 11. Социјална и дечја заштита | C48: п11 | D48: 0901-0001 Социјалне помоћи | E48: 0901-0002 Прихватилишта и друге врсте смештаја | F48: 0901-0003 Подршка социо-хуманитарним организацијама | G48: 0901-0004 Саветодавно-терапијске и социјално-едукативне услуге | H48: 0901-0005 Активности Црвеног крста | I48: 0901-0006 Подршка деци и породицама са децом | J48: 0901-0007 Подршка старијим лицима и/или особома са инвалидитетом | BR48: 431 | BS48: Угаљ и остала чврста минерална горива | BY48: 511 | BZ48: Зграде и грађевински објекти | CA48: 511 | CK48: 423 | CL48: Лов и риболов | CO48: 432 - Нафта и природни гас
B49: Програм 12. Примарна здравствена заштита | C49: п12 | D49: 1801-0001 Функционисање установа примарне здравствене заштите | E49: 1801-0002 Мртвозорство | F49: 1801-0003 Спровођење активности из области друштвене бриге за јавно здравље | BR49: 432 | BS49: Нафта и природни гас | BY49: 512 | BZ49: Машине и опрема | CA49: 512 | CK49: 430 | CL49: Гориво и енергија | CO49: 433 - Нуклеарно гориво | DE49: V | DF49: ПОПУЊАВАЊЕ ЗАХТЕВА ЗА ДОДАТНА СРЕДСТВА
B50: Програм 13. Развој културе | C50: п13 | D50: 1201-0001 Функционисање локалних установа културе | E50: 1201-0002 Јачање културне продукције и уметничког стваралаштва | F50: 1201-0003 Унапређење система очувања и представљања културно-историјског наслеђа | G50: 1201-0004 Остваривање и унапређивање јавног интереса у области јавног информисања | H50: 1201-0005 Унапређење јавног информисања на језицима националних мањина | I50: 1201-0006 Унапређење јавног информисања особа са инвалидитетом | BR50: 433 | BS50: Нуклеарно гориво | BY50: 513 | BZ50: Остале некретнине и опрема | CA50: 513 | CK50: 431 | CL50: Угаљ и остала чврста минерална горива | CO50: 434 - Остала горива | DF50: Уколико одобреним лимитом буџетском кориснику недостају средства за одређене програмске активности односно пројекте, за програмску активност/пројекат за који се траже додатна средства ископирати потребан радни лист (у зависности од тога да ли се ради о програмској активности или пројекту) као што је објашњено у Одељку II - Копирање потребног броја Sheet-ова за програмске активности и пројекте, а затим у ископираном радном листу у наслову обрасца (ред 2.) из падајуће листе изабрати други наслов односно програмска активност/пројекат - Захтев за додатна средства. На овај начин у радном листу "Програм" у списку програмских активности и пројеката биће посебно приказани захтеви за додатним средствима за програмске активности и пројекте за износе преко одобреног лимита.
B51: Програм 14. Развој спорта и омладине | C51: п14 | D51: 1301-0001 Подршка локалним спортским организацијама, удружењима и савезима | E51: 1301-0002 Подршка предшколском и школском спорту | F51: 1301-0003 Одржавање спортске инфраструктуре | G51: 1301-0004 Функционисање локалних спортских установа | H51: 1301-0005 Спровођење омладинске политике | BR51: 434 | BS51: Остала горива | BY51: 514 | BZ51: Култивисана имовина | CA51: 514 | CK51: 432 | CL51: Нафта и природни гас | CO51: 435 - Електрична енергија
B52: Програм 15. Опште услуге локалне самоуправе | C52: п15 | D52: 0602-0001 Функционисање локалне самоуправе и градских општина | E52: 0602-0002 Функционисање месних заједница | F52: 0602-0003 Сервисирање јавног дуга | G52: 0602-0004 Општинско/градско правобранилаштво | H52: 0602-0005 Заштитник грађана | I52: 0602-0006 Инспекцијски послови | J52: 0602-0007 Функционисање националних савета националних мањина | K52: 0602-0008 Правна помоћ | L52: 0602-0009 Текућа буџетска резерва | M52: 0602-0010 Стална буџетска резерва | N52: 0602-0011 Робне резерве | O52: 0602-0012 Комунална полиција | P52: 0602-0013 Администрирање изворних прихода локалне самоуправе | Q52: 0602-0014 Ванредне ситуације | BR52: 435 | BS52: Електрична енергија | BY52: 515 | BZ52: Нематеријална имовина | CA52: 515 | CK52: 433 | CL52: Нуклеарно гориво | CO52: 436 - Остала енергија | DE52: VI | DF52: ЗАШТИТА ФОРМУЛА И ВАЛИДАЦИЈА ПОДАТАКА
B53: Програм 16. Политички систем локалне самоуправе | C53: п16 | D53: 2101-0001 Функционисање скупштине | E53: 2101-0002 Функционисање извршних органа | F53: 2101-0003 Подршка раду извршних органа власти и скупштине | BR53: 436 | BS53: Остала енергија | BY53: 521 | BZ53: Робне резерве | CA53: 521 | CK53: 434 | CL53: Остала горива | CO53: 440 - Рударство, производња и изградња | DF53: Одређени број ћелија у документу је заштићен од измена како би се заштитиле кључне формуле и процедуре документа. Sheet- ове је могуће откључати опцијом "Unprotect Sheet" чиме се могу вршити неограничене измене. "Sheet" "Упутство" се не сме брисати.
B54: Програм 17. Енергетска ефикасност | C54: п17 | D54: 0501-0001 Унапређење и побољшање енергетске ефикасности и употреба обновљивих извора енергије | BR54: 440 | BS54: Рударство, производња и изградња | BY54: 522 | BZ54: Залихе производње | CA54: 522 | CK54: 435 | CL54: Електрична енергија | CO54: 441 - Ископавање минералних ресурса, изузев минералних горива
BR55: 441 | BS55: Ископавање минералних ресурса, изузев минералних горива | BY55: 523 | BZ55: Залихе робе за даљу продају | CA55: 523 | CK55: 436 | CL55: Остала енергија | CO55: 442 - Производња
A56: Сектори | BR56: 442 | BS56: Производња | BY56: 531 | BZ56: Драгоцености | CA56: 531 | CK56: 440 | CL56: Рударство, производња и изградња | CO56: 443 - Изградња
A57: Сектор_1__Пољопривреда_и_рурални_развој | B57: Програм_5__Развој_пољопривреде | BR57: 443 | BS57: Изградња | BY57: 541 | BZ57: Земљиште | CA57: 541 | CK57: 441 | CL57: Ископавање минералних ресурса, изузев минералних горива | CO57: 450 - Саобраћај
A58: Сектор_4__Заштита_животне_средине | B58: Програм_6__Заштита_животне_средине | BR58: 450 | BS58: Саобраћај | BY58: 542 | BZ58: Рудна богатства | CA58: 542 | CK58: 442 | CL58: Производња | CO58: 451 - Друмски саобраћај
A59: Сектор_6__Опште_услуге_јавне_управе | B59: Програм_2__Комунална_делатност | C59: Програм_15__Локална_самоуправа | BR59: 451 | BS59: Друмски саобраћај | BY59: 543 | BZ59: Шуме и воде | CA59: 543 | CK59: 443 | CL59: Изградња | CO59: 452 - Водени саобраћај
A60: Сектор_7__Саобраћај_и_саобраћајна_инфраструктура | B60: Програм_7__Путна_инфраструктура | BR60: 452 | BS60: Водени саобраћај | BY60: 551 | BZ60: Нефинансијска имовина која се финансира из средстава за реализацију националног инвестиционог плана | CA60: 551 | CK60: 450 | CL60: Саобраћај | CO60: 453 - Железнички саобраћај
A61: Сектор_9__Социјална_заштита | B61: Програм_11__Социјална_и_дечја_заштита | BR61: 453 | BS61: Железнички саобраћај | BY61: 611 | BZ61: Отплата главнице домаћим кредиторима | CA61: 611 | CK61: 451 | CL61: Друмски саобраћај | CO61: 454 - Ваздушни саобраћај
A62: Сектор_11__Урбанизам_и_просторно_планирање | B62: Програм_1__Локални_развој_и_просторно_планирање | BR62: 454 | BS62: Ваздушни саобраћај | BY62: 620 | BZ62: Набавка финансијске имовине | CA62: 620 | CK62: 452 | CL62: Водени саобраћај | CO62: 455 - Цевоводи и други облици саобраћаја
A63: Сектор_12__Култура_комуникације_и_медији | B63: Програм_13__Развој_културе | BR63: 455 | BS63: Цевоводи и други облици саобраћаја | CK63: 453 | CL63: Железнички саобраћај | CO63: 460 - Комуникације
A64: Сектор_13__Спорт_и_омладина | B64: Програм_14__Развој_спорта_и_омладине | BR64: 460 | BS64: Комуникације | CK64: 454 | CL64: Ваздушни саобраћај | CO64: 470 - Остале делатности
A65: Сектор_15__Економска_и_развојна_политика | B65: Програм_3__Локални_економски_развој | C65: Програм_4__Развој_туризма | BR65: 470 | BS65: Остале делатности | CK65: 455 | CL65: Цевоводи и други облици саобраћаја | CO65: 471 - Трговина, смештај и складиштење
A66: Сектор_18__Здравство | B66: Програм_12__Примарна_здравствена_заштита | BR66: 471 | BS66: Трговина, смештај и складиштење | CK66: 460 | CL66: Комуникације | CO66: =BR67&" - "&BS67 -> 472 - Хотели и ресторани
A67: Сектор_20__Образовање | B67: Програм_8__Предшколско_васпитање | C67: Програм_9__Основно_образовање | D67: Програм_10_Средње_образовање | BR67: 472 | BS67: Хотели и ресторани | CK67: 470 | CL67: Остале делатности | CO67: 473 - Туризам
BR68: 473 | BS68: Туризам | CK68: 471 | CL68: Трговина, смештај и складиштење | CO68: 474 - Вишенаменски развојни пројекти
BR69: 474 | BS69: Вишенаменски развојни пројекти | CK69: 472 | CL69: Хотели и ресторани | CO69: 480 - Економски послови - истраживање и развој
BR70: 480 | BS70: Економски послови - истраживање и развој | CK70: 473 | CL70: Туризам | CO70: 481 - Истраживање и развој - Општи економски и комерцијални послови и послови по питању рада
BR71: 481 | BS71: Истраживање и развој - Општи економски и комерцијални послови и послови по питању рада | CK71: 474 | CL71: Вишенаменски развојни пројекти | CO71: 482 - Истраживање и развој - Пољопривреда, шумарство, лов и риболов
BR72: 482 | BS72: Истраживање и развој - Пољопривреда, шумарство, лов и риболов | CK72: 480 | CL72: Економски послови - истраживање и развој | CO72: 483 - Истраживање и развој - Гориво и енергија
BR73: 483 | BS73: Истраживање и развој - Гориво и енергија | CK73: 481 | CL73: Истраживање и развој - Општи економски и комерцијални послови и послови по питању рада | CO73: 484 - Истраживање и развој - Рударство, производња и изградња
BR74: 484 | BS74: Истраживање и развој - Рударство, производња и изградња | CK74: 482 | CL74: Истраживање и развој - Пољопривреда, шумарство, лов и риболов | CO74: 485 - Истраживање и развој - Саобраћај
BR75: 485 | BS75: Истраживање и развој - Саобраћај | CK75: 483 | CL75: Истраживање и развој - Гориво и енергија | CO75: 486 - Истраживање и развој - Комуникације
A76: 1101 | B76: ПГ_1 | D76: Просторни развој у складу са плановима | BR76: 486 | BS76: Истраживање и развој - Комуникације | CK76: 484 | CL76: Истраживање и развој - Рударство, производња и изградња | CO76: 487 - Истраживање и развој - Остале делатности
A77: 1102 | B77: ПГ_2 | D77: Повећање покривеност насеља и територије рационалним јавним осветљењем | E77: Повећање покривеност територије комуналним делатностима одржавања јавних зелених површина, одржавања чистоће на површинама јавне намене и зоохигијене | F77: Адекватан квалитет пружених услуга уз рационално спровођење даљинског грејања | G77: Повећање покривености корисника и територије квалитетним услугама водоснабдевања | H77: Рационално снабдевање водом за пиће | BR77: 487 | BS77: Истраживање и развој - Остале делатности | CK77: 485 | CL77: Истраживање и развој - Саобраћај | CO77: 490 - Економски послови некласификовани на другом месту
A78: 1501 | B78: ПГ_3 | D78: Повећање запослености на територији града/општине | E78: Отварање нових предузећа и предузетничких радњи на територији града/општине територији града/општине | BR78: 490 | BS78: Економски послови некласификовани на другом месту | CK78: 486 | CL78: Истраживање и развој - Комуникације | CO78: 500 - ЗАШТИТА ЖИВОТНЕ СРЕДИНЕ
A79: 1502 | B79: ПГ_4 | D79: Повећање прихода од туризма | E79: Повећање смештајних капацитета туристичке понуде | BR79: 500 | BS79: ЗАШТИТА ЖИВОТНЕ СРЕДИНЕ | CK79: 487 | CL79: Истраживање и развој - Остале делатности | CO79: 510 - Управљање отпадом
A80: 0101 | B80: ПГ_5 | D80: Раст производње и стабилност дохотка произвођача | BR80: 510 | BS80: Управљање отпадом | CK80: 490 | CL80: Економски послови некласификовани на другом месту | CO80: 520 - Управљање отпадним водама
A81: 0401 | B81: ПГ_6 | D81: Унапређење заштите природе | E81: Унапређење квалитета елемената животне средине | F81: Унапређење управљања отпадним водама | G81: Унапређење управљања комуналним и осталим отпадом | BR81: 520 | BS81: Управљање отпадним водама | CK81: 500 | CL81: ЗАШТИТА ЖИВОТНЕ СРЕДИНЕ | CO81: 530 - Смањење загађености
A82: 0701 | B82: ПГ_7 | D82: Развијеност инфраструктуре у контексту доприноса социо економском развоју | E82: Повећање безбедности учесника у саобраћају и смањење броја саобраћајних незгода | F82: Повећање одрживости и доступности транспорта | BR82: 530 | BS82: Смањење загађености | CK82: 510 | CL82: Управљање отпадом | CO82: 540 - Заштита биљног и животињског света и крајолика
A83: 2001 | B83: ПГ_8 | D83: Повећање обухвата деце предшколским васпитањем и образовањем | E83: Унапређење доступности предшколског васпитања за децу из осетљивих група | BR83: 540 | BS83: Заштита биљног и животињског света и крајолика | CK83: 520 | CL83: Управљање отпадним водама | CO83: 550 - Заштита животне средине - истраживање и развој
A84: 2002 | B84: ПГ_9 | D84: Потпуни обухват основним образовањем и васпитањем | E84: Унапређење доступности основног образовања деци из осетљивих група | F84: Унапређен квалитет основног образовања | BR84: 550 | BS84: Заштита животне средине - истраживање и развој | CK84: 530 | CL84: Смањење загађености | CO84: 560 - Заштита животне средине некласификована на другом месту
A85: 2003 | B85: ПГ_10 | D85: Повећање обухвата средњошколског образовања | E85: Унапређење доступности средњег образовања | BR85: 560 | BS85: Заштита животне средине некласификована на другом месту | CK85: 540 | CL85: Заштита биљног и животињског света и крајолика | CO85: 600 - ПОСЛОВИ СТАНОВАЊА И ЗАЈЕДНИЦЕ
A86: 0901 | B86: ПГ_11 | D86: Повећање доступности права и услуга социјалне заштите | E86: Унапређење квалитета услуга социјалне заштите | F86: Унапређење ефикасности пружених услуга | G86: Повећање доступности права и механизама социјалне заштите за жене у локлној заједнице | BR86: 600 | BS86: ПОСЛОВИ СТАНОВАЊА И ЗАЈЕДНИЦЕ | CK86: 550 | CL86: Заштита животне средине - истраживање и развој | CO86: 610 - Стамбени развој
A87: 1801 | B87: ПГ_12 | D87: Унапређење здравља становништва | BR87: 610 | BS87: Стамбени развој | CK87: 560 | CL87: Заштита животне средине некласификована на другом месту | CO87: 620 - Развој заједнице
A88: 1201 | B88: ПГ_13 | D88: Подстицање развоја културе | E88: Остваривање јавног интереса из обласи информисања | BR88: 620 | BS88: Развој заједнице | CK88: 600 | CL88: ПОСЛОВИ СТАНОВАЊА И ЗАЈЕДНИЦЕ | CO88: 630 - Водоснабдевање
A89: 1301 | B89: ПГ_14 | D89: Обезбеђење услова за бављење спортом свих грађана и грађанки града/општине | E89: Активно партнерство субјеката омладинске политике у развоју омладинске политике и спровођењу омладинских активности, као и у развоју и спровођењу локалних политика које се тичу младих | BR89: 630 | BS89: Водоснабдевање | CK89: 610 | CL89: Стамбени развој | CO89: 640 - Улична расвета
A90: 0602 | B90: ПГ_15 | D90: Одрживо управно и финансијско функционисање града/општине у складу надлежностима и пословима локалне самоуправе | BR90: 640 | BS90: Улична расвета | CK90: 620 | CL90: Развој заједнице | CO90: 650 - Послови становања и заједнице - истраживање и развој
A91: 2101 | B91: ПГ_16 | D91: Ефикасно и ефективно функционисање органа политичког система локалне самоуправе | BR91: 650 | BS91: Послови становања и заједнице - истраживање и развој | CK91: 630 | CL91: Водоснабдевање | CO91: 660 - Послови становања и заједнице некласификовани на другом месту
A92: 0501 | B92: ПГ_17 | D92: Смањење потрошње енергије | E92: Смањење расхода за енергију | F92: Повећање удела обновљивих извора енергије у укупној потрошњи | BR92: 660 | BS92: Послови становања и заједнице некласификовани на другом месту | CK92: 640 | CL92: Улична расвета | CO92: 700 - ЗДРАВСТВО
A93: Просторни развој у складу са плановима | B93: ПГЦ_1 | C93: Проценат покривености територије урбанистичком планском документацијом | D93: Проценат грађевинског земљишта потпуно опремљеног комуналном инфраструктуром | BR93: 700 | BS93: ЗДРАВСТВО | CK93: 650 | CL93: Послови становања и заједнице - истраживање и развој | CO93: 710 - Медицински производи, помагала и опрема
A94: Повећање покривеност насеља и територије рационалним јавним осветљењем | B94: ПГЦ_2 | C94: Дужина улица и саобраћајница (км) које су покривене јавним осветљењем у односу на укупну дужину улица и саобраћајница | D94: Укупна количина потрошене електричне енергије (годишње) | BR94: 710 | BS94: Медицински производи, помагала и опрема | CK94: 660 | CL94: Послови становања и заједнице некласификовани на другом месту | CO94: 711 - Фармацеутски производи
A95: Повећање покривеност територије комуналним делатностима одржавања јавних зелених површина, одржавања чистоће на површинама јавне намене и зоохигијене | B95: ПГЦ_3 | C95: Број м2 јавних зелених површина на којима се уређује и одржава зеленило у односу на укупан број м2 јавних зелених површина | D95: Број м2 површина јавне намене где се одржава чистоћа у односу на укупан број м2 јавне намене | E95: Број м2 територије покирвен услугом зоохигијене у односу на укупан број м2 територије | BR95: 711 | BS95: Фармацеутски производи | CK95: 700 | CL95: ЗДРАВСТВО | CO95: 712 - Остали медицински производи
A96: Адекватан квалитет пружених услуга уз рационално спровођење даљинског грејања | B96: ПГЦ_4 | C96: Просечна цена грејања по утрошеној топлотној енергији | D96: Однос произведене и испоручене топлотне енергије | E96: Проценат корисника код којих се обрачун врши по утрошеној топлотној енергији | BR96: 712 | BS96: Остали медицински производи | CK96: 710 | CL96: Медицински производи, помагала и опрема | CO96: 713 - Терапеутска помагала и опрема
A97: Повећање покривености корисника и територије квалитетним услугама водоснабдевања | B97: ПГЦ_5 | C97: Проценат домаћинстава обухваћених услугом у односу на укупан број домаћинстава | D97: Број насељeних места обухваћених услугама у односу на укупан број насеља | E97: Број неисправних узорака воде у односу на укупан број анализираних узорака (физичко-хемијских и микробиолошких) | BR97: 713 | BS97: Терапеутска помагала и опрема | CK97: 711 | CL97: Фармацеутски производи | CO97: 720 - Ванболничке услуге
A98: Рационално снабдевање водом за пиће | B98: ПГЦ_6 | C98: Специфична потрошња воде (литар/становник/дан) | D98: Степен физичких губитака у мрежи (%) | BR98: 720 | BS98: Ванболничке услуге | CK98: 712 | CL98: Остали медицински производи | CO98: 721 - Опште медицинске услуге
A99: Повећање запослености на територији града/општине | B99: ПГЦ_7 | C99: Број становника града/општине који су запослени на новим радним местима, а налазили су се на евиденцији НСЗ (разврстаних по полу и старости) | D99: Број евидентираних незапослених лица на евиденцији НСЗ (разврстаних по полу и старости) | BR99: 721 | BS99: Опште медицинске услуге | CK99: 713 | CL99: Терапеутска помагала и опрема | CO99: 722 - Специјализоване медицинске услуге
A100: Отварање нових предузећа и предузетничких радњи на територији града/општине територији града/општине | B100: ПГЦ_8 | C100: Број отворених / број затворених предузећа | D100: Број отворених/затворених предузетничких радњи | E100: Број предузетника/предузетница по становнику у граду/општини у односу на просек РС | F100: Број предузетничких радњи активних након прве две године од оснивања | BR100: 722 | BS100: Специјализоване медицинске услуге | CK100: 720 | CL100: Ванболничке услуге | CO100: 723 - Стоматолошке услуге
A101: Повећање прихода од туризма | B101: ПГЦ_9 | C101: Проценат пораста регистрованих пружалаца услуга ноћења у граду/општини | D101: Проценат повећања укупног броја гостију | E101: Пораст прихода од боравишне таксе | BR101: 723 | BS101: Стоматолошке услуге | CK101: 721 | CL101: Опште медицинске услуге | CO101: 724 - Парамедицинске услуге
A102: Повећање смештајних капацитета туристичке понуде | B102: ПГЦ_10 | C102: Проценат пораста регистрованих пружалаца услуга ноћења у граду/општини | D102: Број новорегистрованих кревета | BR102: 724 | BS102: Парамедицинске услуге | CK102: 722 | CL102: Специјализоване медицинске услуге | CO102: 730 - Болничке услуге
A103: Раст производње и стабилност дохотка произвођача | B103: ПГЦ_11 | C103: Коришћење пољопривредних површина у односу на укупне пољопривредне површине | D103: Број новорегистрованих пољопривредних газдинстава на годишњем нивоу | E103: Број корисника мера усвојене пољопривредне политике / 1000 становника | BR103: 730 | BS103: Болничке услуге | CK103: 723 | CL103: Стоматолошке услуге | CO103: 731 - Опште болничке услуге
A104: Унапређење заштите природе | B104: ПГЦ_12 | C104: Проценат територије под заштитом III категорије | D104: Број подручја која су проглашена заштићеним подручјем III категорије | BR104: 731 | BS104: Опште болничке услуге | CK104: 724 | CL104: Парамедицинске услуге | CO104: 732 - Специјализоване болничке услуге
A105: Унапређење квалитета елемената животне средине | B105: ПГЦ_13 | C105: Број дана у току године с прекорачењем граничних вредности квалитета ваздуха | D105: Вредност укупног индикатора буке | E105: Вредност индикатора ноћне буке | BR105: 732 | BS105: Специјализоване болничке услуге | CK105: 730 | CL105: Болничке услуге | CO105: 733 - Услуге медицинских центара и породилишта
A106: Унапређење управљања отпадним водама | B106: ПГЦ_14 | C106: Број становника прикључен на јавну канализацију у односу на укупан број становника | D106: Проценат становништва прикљученог на постројења за пречишћавање отпадних вода из јавне канализације са примарним, секундарним и терцијарним третманом у односу на укупан број становника на територији града/општине | E106: Удео испуштених непречишћених отпадних вода у површинска водна тела (водопријемнике) у односу на укупну количину испуштених отпадних вода у граду/општини | BR106: 733 | BS106: Услуге медицинских центара и породилишта | CK106: 731 | CL106: Опште болничке услуге | CO106: 734 - Услуге домова за негу и опоравак
A107: Унапређење управљања комуналним и осталим отпадом | B107: ПГЦ_15 | C107: Проценат становништва покривеног услугом прикупљања комуналног отпада | D107: Број „дивљих“ депонија | E107: Проценат рециклираног отпада | BR107: 734 | BS107: Услуге домова за негу и опоравак | CK107: 732 | CL107: Специјализоване болничке услуге | CO107: 740 - Услуге јавног здравства
A108: Развијеност инфраструктуре у контексту доприноса социо економском развоју | B108: ПГЦ_16 | C108: Дужина изграђених саобраћајница које су у надлежности града/општине (у км) | D108: Повећање просечне густине мреже улица и локалних путева (однос површине града/општине и км изграђене саобраћајне мреже) | E108: Број насеља до којих не постоји приступ асфалтним путем | BR108: 740 | BS108: Услуге јавног здравства | CK108: 733 | CL108: Услуге медицинских центара и породилишта | CO108: 750 - Здравство истраживање и развој
A109: Повећање безбедности учесника у саобраћају и смањење броја саобраћајних незгода | B109: ПГЦ_17 | C109: Број саобраћајних незгода/инцидената | D109: Број смртних исхода | E109: Број повређених људи | BR109: 750 | BS109: Здравство истраживање и развој | CK109: 734 | CL109: Услуге домова за негу и опоравак | CO109: 760 - Здравство некласификовано на другом месту
A110: Повећање одрживости и доступности транспорта | B110: ПГЦ_18 | C110: Удео улагања у инфраструктуру намењену пешацима у односу на сва улагања у саобраћај | D110: Удео улагања у бициклистичку инфраструктуру у односу на сва улагања у саобраћај | E110: Удео улагања у јавни транспорт у односу на сва улагања у саобраћај | BR110: 760 | BS110: Здравство некласификовано на другом месту | CK110: 740 | CL110: Услуге јавног здравства | CO110: 800 - РЕКРЕАЦИЈА, СПОРТ, КУЛТУРА И ВЕРЕ
A111: Повећање обухвата деце предшколским васпитањем и образовањем | B111: ПГЦ_19 | C111: Проценат деце која су уписана у предшколске установе (Број деце која су уписана у предшколске установе у односу на укупан број деце у граду/општини (јаслена група, предшколска група и ППП) | D111: Проценат уписане деце у односу на број укупно пријављене деце | BR111: 800 | BS111: РЕКРЕАЦИЈА, СПОРТ, КУЛТУРА И ВЕРЕ | CK111: 750 | CL111: Здравство истраживање и развој | CO111: 810 - Услуге рекреације и спорта
A112: Унапређење доступности предшколског васпитања за децу из осетљивих група | B112: ПГЦ_20 | C112: Проценат деце са додатним образовним потребама која су укључена у редовне програме ПОВ у односу на укупан број деце. | D112: Проценат објеката који су прилагодили простор за децу са инвалидитетом у односу на укупан број објеката ПУ | E112: Проценат Рома који похађају предшколски програм у односу на укупан број ромске деце | BR112: 810 | BS112: Услуге рекреације и спорта | CK112: 760 | CL112: Здравство некласификовано на другом месту | CO112: 820 - Услуге културе
A113: Потпуни обухват основним образовањем и васпитањем | B113: ПГЦ_21 | C113: Обухват деце основним образовањем (разложено према полу) | D113: Стопа прекида основног образовања (разложено према полу) | BR113: 820 | BS113: Услуге културе | CK113: 800 | CL113: РЕКРЕАЦИЈА, СПОРТ, КУЛТУРА И ВЕРЕ | CO113: 830 - Услуге емитовања и штампања
A114: Унапређење доступности основног образовања деци из осетљивих група | B114: ПГЦ_22 | C114: Проценат деце која се школују у редовним основним школама на основу индивидуалног образовног плана ( ИОП2 ) у односу на укупан број деце одговарајуће старосне групе | D114: Број објеката који су прилагодили простор за децу са инвалидитетом у односу на укупан број објеката основних школа | BR114: 830 | BS114: Услуге емитовања и штампања | CK114: 810 | CL114: Услуге рекреације и спорта | CO114: 840 - Верске и остале услуге заједнице
A115: Унапређен квалитет основног образовања | B115: ПГЦ_23 | C115: Просечан број поена на матурском испиту (математика/српски/ општи | D115: Проценат ученика који је учествовао на републичким такмичењима | BR115: 840 | BS115: Верске и остале услуге заједнице | CK115: 820 | CL115: Услуге културе | CO115: 850 - Рекреација, спорт, култура и вере - истраживање и развој
A116: Повећање обухвата средњошколског образовања | B116: ПГЦ_24 | C116: Број деце која су обухваћена средњим образовањем (разложен по и полу) | D116: Стопа прекида средњег образовања (разложено према полу) | BR116: 850 | BS116: Рекреација, спорт, култура и вере - истраживање и развој | CK116: 830 | CL116: Услуге емитовања и штампања | CO116: 860 - Рекреација, спорт, култура и вере, некласификовано на другом месту
A117: Унапређење доступности средњег образовања | B117: ПГЦ_25 | C117: Број објеката који су прилагодили простор за децу са инвалидитетом у односу на укупан број објеката средњих школа | D117: Проценат деце која се школују у средњим школама на основу индивидуалног образовног плана ( ИОП2 ) у односу на укупан број деце одговарајуће старосне групе | BR117: 860 | BS117: Рекреација, спорт, култура и вере, некласификовано на другом месту | CK117: 840 | CL117: Верске и остале услуге заједнице | CO117: 900 - ОБРАЗОВАЊЕ
A118: Повећање доступности права и услуга социјалне заштите | B118: ПГЦ_26 | C118: Проценат корисника мера и услуга социјалне и дечје заштите који се финансирају из буџета града/општине у односу на број становника | D118: Проценат корисника финансијске подршке и подршке у натури у односу на укупан број корисника социјалне и дечје заштите | E118: Проценат корисника локалних социјалних услуга у односу на укупан број корисника социјалне и дечје заштите | BR118: 900 | BS118: ОБРАЗОВАЊЕ | CK118: 850 | CL118: Рекреација, спорт, култура и вере - истраживање и развој | CO118: 910 - Предшколско и основно образовање
A119: Унапређење квалитета услуга социјалне заштите | B119: ПГЦ_27 | C119: Удео корисника лиценцираних услуга у укупном броју корисника услуга | D119: Проценат лиценцираних пружалаца услуге у односу на укупан број подржаних пружалаца услуге | BR119: 910 | BS119: Предшколско и основно образовање | CK119: 860 | CL119: Рекреација, спорт, култура и вере, некласификовано на другом месту | CO119: 911 - Предшколско образовање
A120: Унапређење ефикасности пружених услуга | B120: ПГЦ_28 | C120: Проценат корисника који су учествовали/партиципирали у цени услуге | BR120: 911 | BS120: Предшколско образовање | CK120: 900 | CL120: ОБРАЗОВАЊЕ | CO120: 912 - Основно образовање
A121: Повећање доступности права и механизама социјалне заштите за жене у локлној заједнице | B121: ПГЦ_29 | C121: Удео жена корисница социјалних помоћи у укупном броју корисника социјалне помоћи | D121: Број услуга намењених женама са искуством насиља у породици или у партнерском односу | E121: Удео средстава намењених женама са искуством насиља у породици или у партнерском односу у односу на укупан износ средстава за социјалне услуге у заједници | BR121: 912 | BS121: Основно образовање | CK121: 910 | CL121: Предшколско и основно образовање | CO121: 913 - Основно образовање са домом ученика
A122: Унапређење здравља становништва | B122: ПГЦ_30 | C122: Очекивано трајање живота становника града/општине | D122: Покривеност становништва примарном здравственом заштитом | E122: Стандардизоване стопе смртности водећих хроничних незаразних болести - Кардио и цереброваскуларне болести (инфаркт и инсулт мождани) | F122: Стандардизоване стопе смртности водећих хроничних незаразних болести - дијабет | G122: Стандардизоване стопе смртности водећих хроничних незаразних болести - малигна обољења | H122: Стандардизоване стопе смртности водећих хроничних незаразних болести - остало (прецизирати по опредељењу ЈЛС) | BR122: 913 | BS122: Основно образовање са домом ученика | CK122: 911 | CL122: Предшколско образовање | CO122: 914 - Основно образовање са средњом школом
A123: Подстицање развоја културе | B123: ПГЦ_31 | C123: Број грађана у граду/општини у односу на укупан број установа културе | D123: Укупан број посетилаца на свим културним догађајима који су одржани | E123: Укупан број чланова удружења грађана из области културе | BR123: 914 | BS123: Основно образовање са средњом школом | CK123: 912 | CL123: Основно образовање | CO123: 915 - Специјално основно образовање
A124: Остваривање јавног интереса из обласи информисања | B124: ПГЦ_32 | C124: Број сати произведених и емитованих ТВ и радио садржаја који доприносе остварењу општег интереса | BR124: 915 | BS124: Специјално основно образовање | CK124: 913 | CL124: Основно образовање са домом ученика | CO124: 916 - Основно образовање са средњом школом и домом ученика
A125: Обезбеђење услова за бављење спортом свих грађана и грађанки града/општине | B125: ПГЦ_33 | C125: Број спортских организација преко којих се остварује јавни интерес у области спорта | D125: Број чланова спортских организација и удружења | E125: Број жена чланова спортских организација и удружења | F125: Број спроведених акција, програма и пројеката који подржавају активно и рекреативно бављење спортом | BR125: 916 | BS125: Основно образовање са средњом школом и домом ученика | CK125: 914 | CL125: Основно образовање са средњом школом | CO125: 920 - Средње образовање
A126: Активно партнерство субјеката омладинске политике у развоју омладинске политике и спровођењу омладинских активности, као и у развоју и спровођењу локалних политика које се тичу младих | B126: ПГЦ_34 | C126: % укључених младих у омладинске програме / пројекте у односу на укупан број младих у локалној заједници | D126: Број институција и организација са којима је остварено партнерство путем споразума о сарадњи | E126: Регистрован број волонтера | BR126: 920 | BS126: Средње образовање | CK126: 915 | CL126: Специјално основно образовање | CO126: 921 - Ниже средње образовање
A127: Одрживо управно и финансијско функционисање града/општине у складу надлежностима и пословима локалне самоуправе | B127: ПГЦ_35 | C127: Суфицит или дефицит локалног буџета | D127: Однос броја запослених у граду/општини и законом утврђеног максималног броја запослених | E127: Број донетих аката органа и служби града/општине | F127: Број остварених услуга градске/општинске управе (укупан број предмета који су у току, број решења, дозвола, потврда и других докумената издатих физичким и правним лицима) | BR127: 921 | BS127: Ниже средње образовање | CK127: 916 | CL127: Основно образовање са средњом школом и домом ученика | CO127: 922 - Више средње образовање
A128: Ефикасно и ефективно функционисање органа политичког система локалне самоуправе | B128: ПГЦ_36 | BR128: 922 | BS128: Више средње образовање | CK128: 920 | CL128: Средње образовање | CO128: 923 - Средње образовање са домом ученика
A129: Смањење потрошње енергије | B129: ПГЦ_37 | C129: Укупна потрошња примарне енергије у јавним зградама (ten ) | D129: Укупна потрошња примарне енергије у јавним зградама по становнику (ten) | E129: Укупна потрошња примарне енергије у јавним зградама по м2 површине јавних зграда | BR129: 923 | BS129: Средње образовање са домом ученика | CK129: 921 | CL129: Ниже средње образовање | CO129: 930 - Више образовање
A130: Смањење расхода за енергију | B130: ПГЦ_38 | C130: Укупни расходи за набавку енергије (РСД) | D130: Укупни расходи за набавку енергије у јавним зградама (РСД) | E130: Процентуално учешће расхода за набавку енергије у укупним расходима | BR130: 930 | BS130: Више образовање | CK130: 922 | CL130: Више средње образовање | CO130: =BR131&" - "&BS131 -> 931 - Више образовање
A131: Повећање удела обновљивих извора енергије у укупној потрошњи | B131: ПГЦ_39 | C131: Удео обновљивих извора енергије у укупној потрошњи | BR131: 931 | BS131: Више образовање | CK131: 923 | CL131: Средње образовање са домом ученика | CO131: 932 - Више образовање са студентским домом
BR132: 932 | BS132: Више образовање са студентским домом | CK132: 930 | CL132: Више образовање | CO132: 940 - Високо образовање
BR133: 940 | BS133: Високо образовање | CK133: 931 | CL133: Више образовање | CO133: 941 - Високо образовање - први степен
A134: 1101-0001 Просторно и урбанистичко планирање | B134: ПА_1 | D134: Повећање покривености територије планском и урбанистичком документацијом | BR134: 941 | BS134: Високо образовање - први степен | CK134: 932 | CL134: Више образовање са студентским домом | CO134: 942 - Високо образовање - други степен
A135: 1101-0002 Спровођење урбанистичких и просторних планова | B135: ПА_2 | D135: Ефикасно администрирање захтева за издавање грађевинских дозвола (ефикасно издавање грађевинских дозвола) | E135: Ефикасан процес озакоњења | BR135: 942 | BS135: Високо образовање - други степен | CK135: 940 | CL135: Високо образовање | CO135: 950 - Образовање које није дефинисано нивоом
A136: 1101-0003 Управљање грађевинским земљиштем | B136: ПА_3 | D136: Стављање у функцију грађевинског земљишта | BR136: 950 | BS136: Образовање које није дефинисано нивоом | CK136: 941 | CL136: Високо образовање - први степен | CO136: 960 - Помоћне услуге образовању
A137: 1101-0004 Социјално становање | B137: ПА_4 | D137: Унапређење стамбеног положаја грађана | BR137: 960 | BS137: Помоћне услуге образовању | CK137: 942 | CL137: Високо образовање - други степен | CO137: 970 - Образовање - истраживање и развој
A138: 0601-0001 Управљање/одржавање јавним осветљењем | B138: ПА_5 | D138: Адекватанno управљање јавним осветљењем | E138: Ефикасно и рационално спровођење јавног осветљења и минималан негативан утицај на животну средину | BR138: 970 | BS138: Образовање - истраживање и развој | CK138: 950 | CL138: Образовање које није дефинисано нивоом | CO138: 980 - Образовање некласификовано на другом месту
A139: 0601-0002 Одржавање јавних зелених површина | B139: ПА_6 | D139: Максимална могућа покривеност насеља и територије услугама уређења и одржавања зеленила | E139: Адекватан квалитет пружених услуга уређења и одржавања јавних зелених површина | BR139: 980 | BS139: Образовање некласификовано на другом месту | CK139: 960 | CL139: Помоћне услуге образовању | CO139: -
A140: 0601-0003 Одржавање чистоће на површинама јавне намене | B140: ПА_7 | D140: Максимална могућа покривеност насеља и територије услугама одржавања чистоће јавних површина | CK140: 970 | CL140: Образовање - истраживање и развој | CO140: -
A141: 0601-0004 Зоохигијена | B141: ПА_8 | D141: Унапређење заштите од заразних и других болести које преносе животиње | CK141: 980 | CL141: Образовање некласификовано на другом месту | CO141: -
A142: 0601-0005 Уређивање, одржавање и коришћење пијаца | B142: ПА_9 | D142: Адекватан квалитет пружених услуга уређивања, одржавања и коришћења пијаца
A143: 0601-0006 Одржавање гробаља и погребне услуге | B143: ПА_10 | D143: Адекватан квалитет пружених услуга одржавања гробаља и погребних услуга
A144: 0601-0007 Прозводња и дистрибуције топлотне енергије | B144: ПА_11 | D144: Оптимална покривеност корисника и територије услугама даљинског грејања и развој дистрибутивног система | E144: Адекватан квалитет пружених услуга уз рационално спровођење даљинског грејања | F144: Ефикасно и рационално спровођење даљинског грејања и минималан негативан утицај на животну средину
A145: 0601-0008 Управљање и снабдевање водом за пиће | B145: ПА_12 | D145: Адекватан квалитет пружених услуга водоснабдевања
A146: 0601-0009 Остале комуналне услуге | B146: ПА_13
A147: 1501-0001 Унапређење привредног и инвестиционог амбијента | B147: ПА_14 | D147: Унапређење административних процедура и развој адекватних сервиса и услуга за пружање подршке постојећој привреди | E147: Успостављање функционалне пословне инфраструктуре | F147: Ревитализација браунфилд локација за покретање привредних активости
A148: 1501-0002 Мере активне политике запошљавања | B148: ПА_15 | D148: Успостављање механизама за финансијску подршку запошљавању
A149: 1501-0003 Подстицаји за развој предузетништва | B149: ПА_16 | D149: Подстицаји града/општине за развој предузетништва | E149: Успостављање механизама за финансијску подршку производним предузећима и предузетницима/предузетницама који послују на територији града/општине за развој нових производа и проширење производње
A150: 1502-0001 Управљање развојем туризма | B150: ПА_17 | D150: Повећање квалитета туристичке понуде и услуге
A151: 1502-0002 Промоција туристичке понуде | B151: ПА_18 | D151: Адекватна промоција туристичке понуде града/општине на циљаним тржиштима
A152: 0101-0001 Подршка за спровођење пољопривредне политике у локалној заједници | B152: ПА_19 | D152: Стварање услова за развој и унапређење пољопривредне производње | E152: Ефикасно управљање пољопривредним земљиштем у државној својини
A153: 0101-0002 Мере подршке руралном развоју | B153: ПА_20 | D153: Изградња одрживог, ефикасаног и конкурентног пољопривредног сектора
A154: 0401-0001 Управљање заштитом животне средине | B154: ПА_21 | D154: Испуњење обавеза у складу са законима у домену постојања стратешких и оперативних планова као и мера заштите
A155: 0401-0002 Праћење квалитета елемената животне средине | B155: ПА_22 | D155: Праћење у складу са прописаним законским обавезама | E155: Контрола квалитета елемената животне средине
A156: 0401-0003 Заштита природе | B156: ПА_23 | D156: Унапређење заштите природних вредности
A157: 0401-0004 Управљање отпадним водама | B157: ПА_24 | D157: Максимална могућа покривеност корисника и територије услугама уклањања отпадних вода | E157: Адекватан квалитет пружених услуга одвођења отпадних вода | F157: Ефикасно и рационално спровођење уклањања отпадних вода и минималан негативан утицај на животну средину
A158: 0401-0005 Управљање комуналним отпадом | B158: ПА_25 | D158: Спровођење редовних мерења на територији града/општине и испуњење обавеза у складу са законима
A159: 0401-0006 Управљање осталим врстама отпада | B159: ПА_26 | D159: Одрживо управљање осталим врстама отпада
A160: 0701-0001 Управљање саобраћајем | B160: ПА_27 | D160: Испуњење обавеза у складу са законима у домену постојања стратешких и оперативних планова
A161: 0701-0002 Одржавање саобраћајне инфраструктуре | B161: ПА_28 | D161: Одржавање квалитета путне мреже кроз реконструкцију и редовно одржавање асфалтног покривача | E161: Одржавање квалитета улица кроз реконструкцију и редовно одржавање асфалтног покривача | F161: Опремање и одржавање саобраћајне сигнализације на путевима и улицама
A162: 0701-0003 Управљање јавним паркиралиштима | B162: ПА_29 | D162: Оптимална покривеност корисника и територије услугама паркинг сервиса
A163: 0701-0004 Јавни градски и приградски превоз путника | B163: ПА_30 | D163: Максимална могућа покривеност корисника и територије услугама јавног превоза | E163: Адекватан квалитет пружених услуга јавног превоза | F163: Ефикасно и рационално спровођење јавног превоза и минималан негативан утицај на животну средину
A164: 2001-0001 Функционисање предшколских установа | B164: ПА_31 | D164: Обезбеђени адекватни услови за Васпитно-образовни рад са децом уз повећан обухват | E164: Унапређење квалитета предшколског образовања и васпитања
A165: 2002-0001 Функционисање основних школа | B165: ПА_32 | D165: Обезбеђени прописани услови за васпитно-образовни рад са децом у основним школама | E165: Унапређење квалитета образовања и васпитања у основним школама | F165: Повећање доступности и приступачности основног образовања деци
A166: 2003-0001 Функционисање средњих школа | B166: ПА_33 | D166: Обезбеђени прописани услови за васпитно-образовни рад у средњим школама и безбедно одвијање наставе | E166: Унапређење квалитета образовања у средњим школама
A167: 0901-0001 Социјалне помоћи | B167: ПА_34 | D167: Унапређење заштите сиромашних
A168: 0901-0002 Прихватилишта и друге врсте смештаја | B168: ПА_35 | D168: Обезбеђење услуге смештаја
A169: 0901-0003 Подршка социо-хуманитарним организацијама | B169: ПА_36 | D169: Подстицање развоја разноврсних социјалних и других услуга у заједници
A170: 0901-0004 Саветодавно-терапијске и социјално-едукативне услуге | B170: ПА_37 | D170: Подршка развоју мреже услуга социјалне заштите предвиђене Одлуком о социјалној заштити и Законом о социјалној заштити
A171: 0901-0005 Активности Црвеног крста | B171: ПА_38 | D171: Социјално деловање - олакшавање људске патње пружањем неопходне ургентне помоћи лицима у невољи, развијањем солидарности међу људима, организовањем различитих облика помоћи
A172: 0901-0006 Подршка деци и породицама са децом | B172: ПА_39 | D172: Обезбеђивање финансијске подршке за децу и породицу | E172: Унапређење популационе политике | F172: Унапређење услуга социјалне заштите за децу и породицу
A173: 0901-0007 Подршка старијим лицима и/или особома са инвалидитетом | B173: ПА_40 | D173: Обезбеђивање услуга социјалне заштите за старије и одрасле са инвалидитетом
A174: 1801-0001 Функционисање установа примарне здравствене заштите | B174: ПА_41 | D174: Унапређење доступности, квалитета и ефикасности ПЗЗ
A175: 1801-0002 Мртвозорство | B175: ПА_42
A176: 1801-0003 Спровођење активности из области друштвене бриге за јавно здравље | B176: ПА_43 | D176: Стварање услова за очување и унапређење здравља становништва
A177: 1201-0001 Функционисање локалних установа културе | B177: ПА_44 | D177: Обезбеђење редовног функционисања установа културе
A178: 1201-0002 Јачање културне продукције и уметничког стваралаштва | B178: ПА_45 | D178: Повећање учешћа грађана у културној продукцији и уметничком стваралаштву | E178: Унапређење разноврсности културне понуде
A179: 1201-0003 Унапређење система очувања и представљања културно-историјског наслеђа | B179: ПА_46 | D179: Унапређење очувања културно-историјског наслеђа
A180: 1201-0004 Остваривање и унапређивање јавног интереса у области јавног информисања | B180: ПА_47 | D180: Повећана понуда квалитетних медијских садржаја из области друштвеног живота локалне заједнице
A181: 1201-0005 Унапређење јавног информисања на језицима националних мањина | B181: ПА_48 | D181: Унапређење права националних мањина за информаисање на сопственом језику
A182: 1201-0006 Унапређење јавног информисања особа са инвалидитетом | B182: ПА_49 | D182: Унапређење права особа са инвалидитетом за информаисање на сопственом језику
A183: 1301-0001 Подршка локалним спортским организацијама, удружењима и савезима | B183: ПА_50 | D183: Обезбеђивање услова за рад и унапређење капацитета спортских организација преко којих се остварује јавни интерес у области спорта у граду/општини | E183: Унапређење рекреативног спорта
A184: 1301-0002 Подршка предшколском и школском спорту | B184: ПА_51 | D184: Унапређење предшколског и школског спорта
A185: 1301-0003 Одржавање спортске инфраструктуре | B185: ПА_52 | D185: Редовно одржавање постојећих спортских објеката од интереса за град/општину
A186: 1301-0004 Функционисање локалних спортских установа | B186: ПА_53 | D186: Обезбеђивање услова за рад установа из области спорта
A187: 1301-0005 Спровођење омладинске политике | B187: ПА_54 | D187: Подршка активном укључивању младих у различите друштвене активности
A188: 0602-0001 Функционисање локалне самоуправе и градских општина | B188: ПА_55 | D188: Функционисање управе
A189: 0602-0002 Функционисање месних заједница | B189: ПА_56 | D189: Обезбеђено задовољавање потреба и интереса локалног становништва деловањем месних заједница
A190: 0602-0003 Сервисирање јавног дуга | B190: ПА_57 | D190: Одржавање финансијске стабилности града/општине и финансирање капиталних инвестиционих расхода
A191: 0602-0004 Општинско/градско правобранилаштво | B191: ПА_58 | D191: Заштита имовинских права и интереса града/општине
A192: 0602-0005 Заштитник грађана | B192: ПА_59 | D192: Обезбеђена заштита права грађана пред управом и јавним службама града/општине и контрола над повредама прописа и општих аката града/општине
A193: 0602-0006 Инспекцијски послови | B193: ПА_60 | D193: Квалитетно обављање инспекцијских послова
A194: 0602-0007 Функционисање националних савета националних мањина | B194: ПА_61 | D194: Остваривање права националних мањина у локалној заједници
A195: 0602-0008 Правна помоћ | B195: ПА_62 | D195: Организована правна помоћ грађанима
A196: 0602-0009 Текућа буџетска резерва | B196: ПА_63
A197: 0602-0010 Стална буџетска резерва | B197: ПА_64
A198: 0602-0011 Робне резерве | B198: ПА_65
A199: 0602-0012 Комунална полиција | B199: ПА_66 | D199: Обезбеђење комуналног реда
A200: 0602-0013 Администрирање изворних прихода локалне самоуправе | B200: ПА_67 | D200: Ефикасно администрирање изворних прихода локалне самоуправе
... 5262 more rows
